Workbook

Sheet Welcome
B2: Welcome to the SAGA Index
B3: If there are any questions or corrections please PM me on the appropriate board or e-mail me at:
B4: sthelen@nycap.rr.com
B6: Update thread on WotC Forums
B8: Thanks to everyone that has sent encouragement and especially to those that found errors or omissions.
B10: ewokontoast
B11: satavenger
B12: Shane
B13: Wizards
B14: SWRPGNetwork
B16: JemyM: Wookieepedia links, outsourced work, major redesign & invaluable input
B17: 5urge: Sortable lists, WEB links, NPCs, Vehicles, Droids
B18: RavingDork: Host, keen eye, & quality control
B19: tsuyoshikentsu: Accessories
B20: Lord_Ball
B21: Richterbelmont10
B22: Old_Benn: Starship information
B23: Majestic Moose: Galaxy of Intrigue (the Savior!)
B24: Leo the Rat: "All" column in Talents
B26: Information and tips on how to use this index
B28: Books & abbreviations
B29: CR = Core Rules S = Starships of the Galaxy T = Threats of the Galaxy K = Knights of the Old Republic Campaign Guide F = Force Unleashed Campaign Guide SV = Scum & Villainy C = Clone Wars Campaign Guide L = Legacy Era Campaign Guide J = Jedi Academy Training Manual R = Rebellion Era Campaign Guide GW = Galaxy at War SGD = Scavenger's Guide to Droids GI = Galaxy of Intrigue UR = Unknown Regions D# = Dawn of defiance (# equals episode) W = Webpage, requires internet access!
B31: TIP: Filter function & Tags
B32: To really unlock the power of this document, learn how to use the filter function. In top of every column is a small grey box with a downpointing arrow. If you click this you will get filter options.
B33: Some information can be filtered by selecting the info you like from the list. You can for example with a couple of clicks disable books you do not have, or you can get all labor droids by only selecting degree 5 in the degree column.
B34: You can also make a textfilter. One column to try this on is the TAG column on the feats tab. Invisible to you, the column is filled with searchwords that can be used to find the feats you need. Add a textfilter that contains "Fired" and see what happens.
B35: Abilities (strength etc) - Feats that is specifically useful for someone with a high ability. Attack types - Melee, armed, unarmed, ranged, grenade, fired, thrown. Combat moves - Aid fire, Attack of Opportunity, Autofire, Grapple, Pin, Rage, Second Wind Defenses - Feats that boosts fortitude, reflex and Will Defenses. "Defensive" – Feats that help you to avoid attacks or otherwise keep you in fighting condition. Force – Feats limited to Force-sensitive individuals. Mobility – Feats that allow you to better traverse the battlefield. "Offensive" – Any feat that better enables you to bring harm to your enemies Skills (deception etc) – Feats that augment your skills or require skill checks to use. Species (twi'lek etc) – Feats exclusive to certain races (including droids & shapeshifter). Starship - Feats useful in a starship. Team – See Galaxy at War for details on Team feats. All Team feats are also Skill and Support feats. Support – Any feat that benefits your allies rather than you. Vehicle – Feats limited to mounted/vehicular combat (and sometimes just starship combat).
B37: The W column
B38: Requires internet access! The W column is meant to be a GM tool for those who like to try to keep canon. When clicking the link, the wookieepedia link that corresponds to the item you want information on is displayed in your browser. You can of course search this information yourself, but sometimes wookieepedia is difficult to search in, especially when you are in a hurry!
B39: Note that normally a website is simply listed as "w". If it's listed as "u" it means that the entry is unique, usually a character or unique vehicle. If it's listed as "R" it means that the entry on wookieepedia is there but not written yet (Red). If it's listed as "X" it means that it's not yet available.
B40: Troubleshooting: Sometimes EXCEL stops opening webpages. If this happens, quit both excel and your browser. Verify in task manager that both are really closed. Then them both again.
B42: Unknown data (RED)
B43: When data is simply not available, it will commonly be marked with a ? and/or in red. Sometimes an estimated guess have been made, but the red is there to make you see that it's not official information. When data is missing from wookieepedia it will have a X in the web column.
B45: Width and abbreviations
B46: SAGA Index uses a lot of abbreviations to make the document less wide, just to fit more information on low-res monitors, like the laptops commonly used during a game session. If you find that an abbreviation just doesn't make any sense, please let us know so we can improve the index.
B47: In concern for width, SAGA Index is also preconfigured to not show all information for items that have too much information in it. You can double-click on the line between two columns (like between A and B) to automatically extend a column width to display all information in it.
B49: The Prestige tab (SAGA Classes)
B50: The Prestige tab has two sheets within it with two different looks for various information. To get the details of the prestige classes you click the + sign to the left. You can collapse it again by clicking it again. You can collapse them all simultaneously by selecting everything (with Ctrl + A) then Data (menu) -> Group and Outline -> Hide Detail
B52: The 0 NPC tab (SAGA Classes)
B53: The 0 NPC tab is a chart for seeing where an NPC is at each level. This NPC has stats with no modifiers, ex. "10"

Sheet Character Creation
B2: Character Creation
B3: On this page you will find basic information that is useful when creating a character.
B5: Saga Classes
B6: Class | C6: Source | D6: HP | E6: HP @ 1st | F6: BAB | G6: Force Pts | H6: Destiny | I6: Skills | J6: FEATs | K6: Talents | L6: Ref | M6: Fort | N6: Will | O6: Starting Feats
B7: Jedi | C7: 38 | D7: d10 | E7: 30 | F7: +1 | G7: 5 | H7: 1 | I7: 2+Int | J7: 1 | K7: 1 | L7: +1 | M7: +1 | N7: +1 | O7: Force-Sensitive, WP lightsabers, WP simple
B8: Noble | C8: 42 | D8: d6 | E8: 18 | F8: 0/1/2/3/3 | G8: 5 | H8: 1 | I8: 6+Int | J8: 1 | K8: 1 | L8: +1 | M8: 0 | N8: +2 | O8: Linguist, WP Pistols, WP Simple
B9: Scoundrel | C9: 45 | D9: d6 | E9: 18 | F9: 0/1/2/3/3 | G9: 5 | H9: 1 | I9: 4+Int | J9: 1 | K9: 1 | L9: +2 | M9: 0 | N9: +1 | O9: Point Blank Shot, WP Pistols, WP Simple
B10: Scout | C10: 48 | D10: d8 | E10: 24 | F10: 0/1/2/3/3 | G10: 5 | H10: 1 | I10: 5+Int | J10: 1 | K10: 1 | L10: +2 | M10: +1 | N10: 0 | O10: Shake It Off, WP Rifles, Pistols, Simple
B11: Soldier | C11: 50 | D11: d10 | E11: 30 | F11: +1 | G11: 5 | H11: 1 | I11: 3+Int | J11: 1 | K11: 1 | L11: +1 | M11: +2 | N11: 0 | O11: AP light, AP medium, Rifles, Pistols, Simple
B12: Nonheroic | C12: 277 | D12: d4 | E12: 4 | F12: 0/1/2/3/3 | G12: 0 | H12: 0 | I12: 1+Int | J12: 1 | K12: 0 | L12: 0 | M12: 0 | N12: 0 | O12: 3: AP light, med, Skill Focus, Skill Training, advanced melee, heavy, pistols, rifles, simple
B13: Note:
B14: * Humans get +1 feat and +1 skill during character creation
B15: * Feats are gained every 3rd level
B16: * Class feats are gained every even level, , heroic only
B17: * Talents are gained every odd level, heroic only
B18: * Heroic classes gain +1 to 2 ability scores every 4th level
B19: * Non-heroic and Beasts gain +1 to 1 ability score every 4th level
B20: * Non-heroic and Beasts gain no Force/Destiny points
B22: Experience and Level-Dependent Benefits | O22: Attack Bonus by Level
B23: Level | C23: XP | D23: Force | E23: Ability** | F23: FEATs | G23: PC FEAT | H23: Talents | I23: Damage | J23: Defense | K23: Skills | L23: SCORE* | N23: Modifier | O23: Jedi | P23: Noble | Q23: Scn | R23: Scout | S23: Sold | T23: Nonher
B24: 1 | C24: 0 | D24: 5 | F24: 1 (2 Human) | H24: 1 | I24: 0 | J24: 1 | K24: 0 | L24: 0 | M24: 1 | N24: -5 | O24: 1 | P24: 0 | Q24: 0 | R24: 0 | S24: 1 | T24: 0
B25: 2 | C25: 1000 | D25: 6 | G25: 1 | I25: 1 | J25: 2 | K25: 1 | L25: 2 | M25: 3 | N25: -4 | O25: 2 | P25: 1 | Q25: 1 | R25: 1 | S25: 2 | T25: 1
B26: 3 | C26: 3000 | D26: 6 | F26: 2 | H26: 2 | I26: 1 | J26: 3 | K26: 1 | L26: 4 | M26: 5 | N26: -3 | O26: 3 | P26: 2 | Q26: 2 | R26: 2 | S26: 3 | T26: 2
B27: 4 | C27: 6000 | D27: 7 | E27: 1,2 | G27: 2 | I27: 2 | J27: 4 | K27: 2 | L27: 6 | M27: 7 | N27: -2 | O27: 4 | P27: 3 | Q27: 3 | R27: 3 | S27: 4 | T27: 3
B28: 5 | C28: 10000 | D28: 7 | H28: 3 | I28: 2 | J28: 5 | K28: 2 | L28: 8 | M28: 9 | N28: -1 | O28: 5 | P28: 3 | Q28: 3 | R28: 3 | S28: 5 | T28: 3
B29: 6 | C29: 15000 | D29: 8 | F29: 3 | G29: 3 | I29: 3 | J29: 6 | K29: 3 | L29: 10 | M29: 11 | N29: 0 | O29: 6 | P29: 4 | Q29: 4 | R29: 4 | S29: 6 | T29: 4
B30: 7 | C30: 21000 | D30: 8 | H30: 4 | I30: 3 | J30: 7 | K30: 3 | L30: 12 | M30: 13 | N30: 1 | O30: 7 | P30: 5 | Q30: 5 | R30: 5 | S30: 7 | T30: 5
B31: 8 | C31: 28000 | D31: 9 | E31: 3,4 | G31: 4 | I31: 4 | J31: 8 | K31: 4 | L31: 14 | M31: 15 | N31: 2 | O31: 8 | P31: 6 | Q31: 6 | R31: 6 | S31: 8 | T31: 6
B32: 9 | C32: 36000 | D32: 9 | F32: 4 | H32: 5 | I32: 4 | J32: 9 | K32: 4 | L32: 16 | M32: 17 | N32: 3 | O32: 9 | P32: 6 | Q32: 6 | R32: 6 | S32: 9 | T32: 6
B33: 10 | C33: 45000 | D33: 10 | G33: 5 | I33: 5 | J33: 10 | K33: 5 | L33: 18 | M33: 19 | N33: 4 | O33: 10 | P33: 7 | Q33: 7 | R33: 7 | S33: 10 | T33: 7
B34: 11 | C34: 55000 | D34: 10 | H34: 6 | I34: 5 | J34: 11 | K34: 5 | L34: 20 | M34: 21 | N34: 5 | O34: 11 | P34: 8 | Q34: 8 | R34: 8 | S34: 11 | T34: 8
B35: 12 | C35: 66000 | D35: 11 | E35: 5,6 | F35: 5 | G35: 6 | I35: 6 | J35: 12 | K35: 6 | L35: 22 | M35: 23 | N35: 6 | O35: 12 | P35: 9 | Q35: 9 | R35: 9 | S35: 12 | T35: 9
B36: 13 | C36: 78000 | D36: 11 | H36: 7 | I36: 6 | J36: 13 | K36: 6 | L36: 24 | M36: 25 | N36: 7 | O36: 13 | P36: 9 | Q36: 9 | R36: 9 | S36: 13 | T36: 9
B37: 14 | C37: 91000 | D37: 12 | G37: 7 | I37: 7 | J37: 14 | K37: 7 | L37: 26 | M37: 27 | N37: 8 | O37: 14 | P37: 10 | Q37: 10 | R37: 10 | S37: 14 | T37: 10
B38: 15 | C38: 105000 | D38: 12 | F38: 6 | H38: 8 | I38: 7 | J38: 15 | K38: 7 | L38: 28 | M38: 29 | N38: 9 | O38: 15 | P38: 11 | Q38: 11 | R38: 11 | S38: 15 | T38: 11
B39: 16 | C39: 120000 | D39: 13 | E39: 7,8 | G39: 8 | I39: 8 | J39: 16 | K39: 8 | L39: 30 | M39: 31 | N39: 10 | O39: 16 | P39: 12 | Q39: 12 | R39: 12 | S39: 16 | T39: 12
B40: 17 | C40: 136000 | D40: 13 | H40: 9 | I40: 8 | J40: 17 | K40: 8 | L40: 32 | M40: 33 | N40: 11 | O40: 17 | P40: 12 | Q40: 12 | R40: 12 | S40: 17 | T40: 12
B41: 18 | C41: 153000 | D41: 14 | F41: 7 | G41: 9 | I41: 9 | J41: 18 | K41: 9 | L41: 34 | M41: 35 | N41: 12 | O41: 18 | P41: 13 | Q41: 13 | R41: 13 | S41: 18 | T41: 13
B42: 19 | C42: 171000 | D42: 14 | H42: 10 | I42: 9 | J42: 19 | K42: 9 | L42: 36 | M42: 37 | N42: 13 | O42: 19 | P42: 14 | Q42: 14 | R42: 14 | S42: 19 | T42: 14
B43: 20 | C43: 190000 | D43: 15 | E43: 9,10 | G43: 10 | I43: 10 | J43: 20 | K43: 10 | L43: 38 | M43: 39 | N43: 14 | O43: 20 | P43: 15 | Q43: 15 | R43: 15 | S43: 20 | T43: 15
B44: * For scores higher than 40, see the table below
B45: ** Non-heroic and Beasts gain +1 to 1 ability score every 4th level
C47: Speed: | D47: Normally 6 (4 if small)
C48: Damage Threshold: | D48: Fort Def + Size mod (+5 Large, +10 Huge, +20 Gargantuan, +50 Colossal)
C49: Skill mod trained: | D49: 1/2 level + mod +5
C50: Skill mod untrained: | D50: 1/2 level + mod
C51: Abilities: | D51: +1 every four levels x2
C52: Damage: | D52: +1/2 HL level
C53: Reflex Defense: | D53: Reflex: 10+ HL or armor + Dex + class + natural + size
C54: Fortitude Defense: | D54: Fortitude: 10 + HL + Con + class + equipment
C55: Will Defense: | D55: Will: 10 + HL + Wis + class
C56: Money at higher levels: | D56: (level x [level - 1]) x 2000 credits
C57: FP per level: | D57: 1-7 1d6, 8-14 2d6, 15+ 3d6
C58: Destiny at higher levels: | D58: CL/5 rounded down
C59: Nonheroic (p277): | D59: +1 ability/4 levels, 3 starting feats, do not gain talents, do not add level to defense, do not gain Force/Destiny points
C60: Beast (p274): | D60: +1 ability 4/levels, no starting feats, do not gain talents, do not add level to defense and do not gain Force/Destiny points, Starting into 1 or 2 (can multiclass at 3)
C61: Abilitymod calculator: | D61: 121 | E61: =IF(D61>=10,(ROUNDDOWN((D61-10)/2,0)),(ROUNDUP((D61-10)/2,0))) -> 55 | F61: =IF(IF(D61>=10,(ROUNDDOWN((D61-10)/2,0)),(ROUNDUP((D61-10)/2,0)))=E61,"","NO! You were not supposed to type there! Now undo that mistake!") -> 
C63: Abilities beyond 40
C64: SCORE | E64: Modifier | G64: SCORE | I64: Modifier | K64: SCORE | M64: Modifier | P64: SCORE | R64: Modifier
C65: 40 | D65: 41 | E65: 15 | G65: 64 | H65: 65 | I65: 27 | K65: 88 | L65: 89 | M65: 39 | P65: 112 | Q65: 113 | R65: 51
C66: 42 | D66: 43 | E66: 16 | G66: 66 | H66: 67 | I66: 28 | K66: 90 | L66: 91 | M66: 40 | P66: 114 | Q66: 115 | R66: 52
C67: 44 | D67: 45 | E67: 17 | G67: 68 | H67: 69 | I67: 29 | K67: 92 | L67: 93 | M67: 41 | P67: 116 | Q67: 117 | R67: 53
C68: 46 | D68: 47 | E68: 18 | G68: 70 | H68: 71 | I68: 30 | K68: 94 | L68: 95 | M68: 42 | P68: 118 | Q68: 119 | R68: 54
C69: 48 | D69: 49 | E69: 19 | G69: 72 | H69: 73 | I69: 31 | K69: 96 | L69: 97 | M69: 43 | P69: 120 | R69: 55
C70: 50 | D70: 51 | E70: 20 | G70: 74 | H70: 75 | I70: 32 | K70: 98 | L70: 99 | M70: 44
C71: 52 | D71: 53 | E71: 21 | G71: 76 | H71: 77 | I71: 33 | K71: 100 | L71: 101 | M71: 45
C72: 54 | D72: 55 | E72: 22 | G72: 78 | H72: 79 | I72: 34 | K72: 102 | L72: 103 | M72: 46
C73: 56 | D73: 57 | E73: 23 | G73: 80 | H73: 81 | I73: 35 | K73: 104 | L73: 105 | M73: 47
C74: 58 | D74: 59 | E74: 24 | G74: 82 | H74: 83 | I74: 36 | K74: 106 | L74: 107 | M74: 48
C75: 60 | D75: 61 | E75: 25 | G75: 84 | H75: 85 | I75: 37 | K75: 108 | L75: 109 | M75: 49
C76: 62 | D76: 63 | E76: 26 | G76: 86 | H76: 87 | I76: 38 | K76: 110 | L76: 111 | M76: 50
B78: Spend Force Point (1 per round unless noted otherwise) to:
B79: * Return Force power to suite * Avoid death if reduced to 0 hp (spend as swift action to increase Dark Side score by 1)
B81: Spend Destiny Point (as many as levels) to:
B82: * Automatically score a critical (no attack roll required) * Automatically cause an attack made against you to miss * Act out of turn (changes position in Initiative order) 1/encounter * Take damage that would otherwise harm another within your reach * Increase the effect of some Force powers (as noted) * Use some applications of Force secrets (as noted) * Immediately gain 3 Force Points
B83: Aging Effects (cumulative)
B84: Age | C84: Bonus | F84: Penalty
B85: Child | C85: Str & Con -3 | F85: Dex, Int, Wis, Cha -1
B86: Young Adult | C86: none | F86: Str, Dex, Con, Int, Wis, Cha -1
B87: Adult | C87: none | F87: none
B88: Middle Age | C88: Int, Wis, Cha +1 | F88: Str, Dex, Con -1
B89: Old | C89: Int, Wis, Cha +1 | F89: Str, Dex, Con -2
B91: Droid Traits
B93: Droid | C93: p187/p190/p194/p196 | M93: Appendix damage | S93: Self
B94: Size | C94: Abilities* | E94: REF | F94: Stealth | G94: HP | H94: TH | I94: Carry | J94: CF | K94: Probe | L94: Instr. | M94: Tool | N94: Claw | O94: Hand | Q94: Storage max limit | S94: Destruct | U94: Radius
B95: Colossal | C95: +32 Str, -4 Dex | E95: -10 | F95: -20 | G95: +100 | H95: +50 | I95: x20 | J95: x20 | K95: 1d6 | L95: 1d8 | M95: 2d6 | N95: 2d8 | O95: 2d6 | Q95: 5000 | S95: 20d6 | U95: 10
B96: Gargantuan | C96: +24Str, -4 Dex | E96: -5 | F96: -15 | G96: +50 | H96: +20 | I96: x10 | J96: x10 | K96: 1d4 | L96: 1d6 | M96: 1d8 | N96: 2d6 | O96: 1d8 | Q96: 500 | S96: 20d6 | U96: 10
B97: Huge | C97: +16 Str, -4 Dex | E97: -2 | F97: -10 | G97: +20 | H97: +10 | I97: x5 | J97: x5 | K97: 1d3 | L97: 1d4 | M97: 1d6 | N97: 1d8 | O97: 1d6 | Q97: 50 | S97: 10d6 | U97: 5
B98: Large | C98: +8 Str, -2 Dex | E98: -1 | F98: -5 | G98: +10 | H98: +5 | I98: x2 | J98: x2 | K98: 1d2 | L98: 1d3 | M98: 1d4 | N98: 1d6 | O98: 1d4 | Q98: 20 | S98: 8d6 | U98: 4
B99: Medium | C99: None | E99: 0 | F99: 0 | G99: - | H99: - | I99: x1 | J99: x1 | K99: 1 | L99: 1d2 | M99: 1d3 | N99: 1d4 | O99: 1d3 | Q99: 10 | S99: 6d6 | U99: 3
B100: Small | C100: -2 Str, +2 Dex | E100: +1 | F100: +5 | G100: - | H100: - | I100: x0,75 | J100: x2 | K100: - | L100: 1 | M100: 1d2 | N100: 1d3 | O100: 1d2 | Q100: 5 | S100: 4d6 | U100: 2
B101: Tiny | C101: -4 Str, +4 Dex | E101: +2 | F101: +10 | G101: - | H101: - | I101: x0,5 | J101: x5 | K101: - | L101: - | M101: 1 | N101: 1d2 | O101: 1 | Q101: 0 | S101: - | U101: -
B102: Diminutive | C102: -6 Str, +6 Dex | E102: +5 | F102: +15 | G102: - | H102: - | I102: x0,25 | J102: x10 | K102: - | L102: - | M102: - | N102: 1 | O102: - | Q102: 0 | S102: - | U102: -
B103: Fine | C103: -8 Str, +8 Dex | E103: +10 | F103: +20 | G103: - | H103: - | I103: x0,01 | J103: x20 | K103: - | L103: - | N103: - | O103: - | Q103: 0 | S103: - | U103: -
B104: * Abilities can never be below 1
B106: Degrees | C106: Abilities | F106: Typical Roles
B107: 1st | C107: +2 Int, +2 Wis, -2 Str | F107: medical, scientific
B108: 2nd | C108: +2 Int, -2 Cha | F108: astromech, technical
B109: 3rd | C109: +2 Wis, +2 Cha, -2 Str | F109: protocol, service
B110: 4th | C110: +2 Dex, -2 Int, -2 Cha | F110: combat, security
B111: 5th | C111: +4 Str, -4 Int, -4 Cha | F111: labor, utility
B113: Beast Traits
B115: Beast | C115: p274 | M115: Natural Weapon Damage
B116: Size | C116: Abilities* | F116: REF | G116: Stealth | H116: TH | I116: Carry** | J116: Height | K116: Bite | L116: Claw | M116: Gore | N116: Slam | O116: Sting
B117: Colossal | C117: +32 Str, +32 Con, -4 Dex | F117: -10 | G117: -20 | H117: +50 | I117: x20 | J117: 19.3+ | K117: 4d6 | L117: 3d6 | M117: 4d6 | N117: 3d6 | O117: 3d6
B118: Gargantuan | C118: +24Str, +24 Con, -4 Dex | F118: -5 | G118: -15 | H118: +20 | I118: x10 | J118: 9.7-19.2m | K118: 3d6 | L118: 2d6 | M118: 3d6 | N118: 2d6 | O118: 2d6
B119: Huge | C119: +16 Str, +16 Con, -4 Dex | F119: -2 | G119: -10 | H119: +10 | I119: x5 | J119: 4.9-9.6m | K119: 2d6 | L119: 1d8 | M119: 2d6 | N119: 1d8 | O119: 1d8
B120: Large | C120: +8 Str, +8 Con, -2 Dex | F120: -1 | G120: -5 | H120: +5 | I120: x2 | J120: 2.5-4.8m | K120: 1d8 | L120: 1d6 | M120: 1d8 | N120: 1d6 | O120: 1d6
B121: Medium | C121: None | F121: 0 | G121: 0 | H121: - | I121: x1 | J121: 1.3-2.4m | K121: 1d6 | L121: 1d4 | M121: 1d6 | N121: 1d4 | O121: 1d4
B122: Small | C122: -2 Str, +2 Dex | F122: +1 | G122: +5 | H122: - | I122: x0,75 | J122: 0.7-1.2m | K122: 1d4 | L122: 1d3 | M122: 1d4 | N122: 1d3 | O122: 1d3
B123: Tiny | C123: -4 Str, +4 Dex | F123: +2 | G123: +10 | H123: - | I123: x0,5 | J123: 0.4-0.6m | K123: 1d3 | L123: 1d2 | M123: 1d3 | N123: 1d2 | O123: 1d2
B124: Diminutive | C124: -6 Str, +6 Dex | F124: +5 | G124: +15 | H124: - | I124: x0,25 | J124: 0.2-0.3m | K124: 1d2 | L124: 1 | M124: 1d2 | N124: 1 | O124: 1
B125: Fine | C125: -8 Str, +8 Dex | F125: +10 | G125: +20 | H125: - | I125: x0,01 | J125: 0.1m- | K125: 1 | L125: 1 | M125: 1 | N125: 1 | O125: 1
B126: * Abilities can never be below 1
B127: ** Beasts with four or more legs double their carrying capacity
B129: Airborne: | C129: May reroll initiative checks but must keep the second result, even if it's worse
B130: Aquatic: | C130: Can't drown in water and doesn't need to make Swim checks; low-light vision (p257)
B131: Arctic: | C131: May reroll survival checks to endure extreme cold, keeping the better result
B132: Desert: | C132: May reroll survival checks to endure extreme heat, keeping the better result
B133: Subterranean: | C133: May reroll Perception checks but must keep the second result, even if it's worse; darkvision (p257)

Sheet 0 NPCs
B2: 0 NPC's
B3: On this page you will find precalculated tables for hypothetical NPC's.
B5: Jedi | G5: 2+Int | H5: Humans +1 | J5: (2 Human) | L5: +1 | M5: +1 | N5: +1
B6: Level | C6: HP | D6: BAB | E6: Force Pts | F6: Destiny | G6: Skill | H6: Trained | I6: Focused | J6: FEATs | K6: Talents | L6: Ref | M6: Fort | N6: Will | O6: Ability | P6: Damage | Q6: Defense | R6: CL
B7: 1 | C7: =H30 -> 30 | D7: 1 | E7: 5 | F7: =ROUNDUP(R7/5,0) -> 1 | G7: 0 | H7: =SUM(G7+5) -> 5 | I7: =SUM(G7+10) -> 10 | J7: 1 | K7: 1 | L7: =(10+Q7+1) -> 12 | M7: =(10+Q7+1) -> 12 | N7: =(10+Q7+1) -> 12 | P7: 0 | Q7: 1 | R7: 1
B8: 2 | C8: =ROUNDDOWN((C7+(H31)*(B8-1)),0) -> 35 | D8: 2 | E8: 6 | F8: 1 | G8: 1 | H8: 6 | I8: 11 | J8: C1 | L8: 13 | M8: 13 | N8: 13 | P8: 1 | Q8: 2 | R8: 2
B9: 3 | C9: =ROUNDDOWN((C7+(H31)*(B9-1)),0) -> 41 | D9: 3 | E9: 6 | F9: 1 | G9: 1 | H9: 6 | I9: 11 | J9: 2 | K9: 2 | L9: 14 | M9: 14 | N9: 14 | P9: 1 | Q9: 3 | R9: 3
B10: 4 | C10: =ROUNDDOWN((C7+(H31)*(B10-1)),0) -> 46 | D10: 4 | E10: 7 | F10: 1 | G10: 2 | H10: 7 | I10: 12 | J10: C2 | L10: 15 | M10: 15 | N10: 15 | O10: 1,2 | P10: 2 | Q10: 4 | R10: 4
B11: 5 | C11: =ROUNDDOWN((C7+(H31)*(B11-1)),0) -> 52 | D11: 5 | E11: 7 | F11: 1 | G11: 2 | H11: 7 | I11: 12 | K11: 3 | L11: 16 | M11: 16 | N11: 16 | P11: 2 | Q11: 5 | R11: 5
B12: 6 | C12: =ROUNDDOWN((C7+(H31)*(B12-1)),0) -> 57 | D12: 6 | E12: 8 | F12: 2 | G12: 3 | H12: 8 | I12: 13 | J12: 3, C3 | L12: 17 | M12: 17 | N12: 17 | P12: 3 | Q12: 6 | R12: 6
B13: 7 | C13: =ROUNDDOWN((C7+(H31)*(B13-1)),0) -> 63 | D13: 7 | E13: 8 | F13: 2 | G13: 3 | H13: 8 | I13: 13 | K13: 4 | L13: 18 | M13: 18 | N13: 18 | P13: 3 | Q13: 7 | R13: 7
B14: 8 | C14: =ROUNDDOWN((C7+(H31)*(B14-1)),0) -> 68 | D14: 8 | E14: 9 | F14: 2 | G14: 4 | H14: 9 | I14: 14 | J14: C4 | L14: 19 | M14: 19 | N14: 19 | O14: 3,4 | P14: 4 | Q14: 8 | R14: 8
B15: 9 | C15: =ROUNDDOWN((C7+(H31)*(B15-1)),0) -> 74 | D15: 9 | E15: 9 | F15: 2 | G15: 4 | H15: 9 | I15: 14 | J15: 4 | K15: 5 | L15: 20 | M15: 20 | N15: 20 | P15: 4 | Q15: 9 | R15: 9
B16: 10 | C16: =ROUNDDOWN((C7+(H31)*(B16-1)),0) -> 79 | D16: 10 | E16: 10 | F16: 2 | G16: 5 | H16: 10 | I16: 15 | J16: C5 | L16: 21 | M16: 21 | N16: 21 | P16: 5 | Q16: 10 | R16: 10
B17: 11 | C17: =ROUNDDOWN((C7+(H31)*(B17-1)),0) -> 85 | D17: 11 | E17: 10 | F17: 3 | G17: 5 | H17: 10 | I17: 15 | K17: 6 | L17: 22 | M17: 22 | N17: 22 | P17: 5 | Q17: 11 | R17: 11
B18: 12 | C18: =ROUNDDOWN((C7+(H31)*(B18-1)),0) -> 90 | D18: 12 | E18: 11 | F18: 3 | G18: 6 | H18: 11 | I18: 16 | J18: 5, C6 | L18: 23 | M18: 23 | N18: 23 | O18: 5,6 | P18: 6 | Q18: 12 | R18: 12
B19: 13 | C19: =ROUNDDOWN((C7+(H31)*(B19-1)),0) -> 96 | D19: 13 | E19: 11 | F19: 3 | G19: 6 | H19: 11 | I19: 16 | K19: 7 | L19: 24 | M19: 24 | N19: 24 | P19: 6 | Q19: 13 | R19: 13
B20: 14 | C20: =ROUNDDOWN((C7+(H31)*(B20-1)),0) -> 101 | D20: 14 | E20: 12 | F20: 3 | G20: 7 | H20: 12 | I20: 17 | J20: C7 | L20: 25 | M20: 25 | N20: 25 | P20: 7 | Q20: 14 | R20: 14
B21: 15 | C21: =ROUNDDOWN((C7+(H31)*(B21-1)),0) -> 107 | D21: 15 | E21: 12 | F21: 3 | G21: 7 | H21: 12 | I21: 17 | J21: 6 | K21: 8 | L21: 26 | M21: 26 | N21: 26 | P21: 7 | Q21: 15 | R21: 15
B22: 16 | C22: =ROUNDDOWN((C7+(H31)*(B22-1)),0) -> 112 | D22: 16 | E22: 13 | F22: 4 | G22: 8 | H22: 13 | I22: 18 | J22: C8 | L22: 27 | M22: 27 | N22: 27 | O22: 7,8 | P22: 8 | Q22: 16 | R22: 16
B23: 17 | C23: =ROUNDDOWN((C7+(H31)*(B23-1)),0) -> 118 | D23: 17 | E23: 13 | F23: 4 | G23: 8 | H23: 13 | I23: 18 | K23: 9 | L23: 28 | M23: 28 | N23: 28 | P23: 8 | Q23: 17 | R23: 17
B24: 18 | C24: =ROUNDDOWN((C7+(H31)*(B24-1)),0) -> 123 | D24: 18 | E24: 14 | F24: 4 | G24: 9 | H24: 14 | I24: 19 | J24: 7, C9 | L24: 29 | M24: 29 | N24: 29 | P24: 9 | Q24: 18 | R24: 18
B25: 19 | C25: =ROUNDDOWN((C7+(H31)*(B25-1)),0) -> 129 | D25: 19 | E25: 14 | F25: 4 | G25: 9 | H25: 14 | I25: 19 | K25: 10 | L25: 30 | M25: 30 | N25: 30 | P25: 9 | Q25: 19 | R25: 19
B26: 20 | C26: =ROUNDDOWN((C7+(H31)*(B26-1)),0) -> 134 | D26: 20 | E26: 15 | F26: 4 | G26: 10 | H26: 15 | I26: 20 | J26: C10 | L26: 31 | M26: 31 | N26: 31 | O26: 9,10 | P26: 10 | Q26: 20 | R26: 20
B28: Ability Scores (recommended)
B29: Score | C29: Mod | D29: Ability | E29: Point Buy
B30: 15 | C30: 2 | D30: Cha | E30: 8 | G30: HP at 1st level: | H30: 30
B31: 14 | C31: 2 | D31: Wis | E31: 6 | G31: HP average: | H31: 5.5
B32: 13 | C32: 1 | D32: Str | E32: 5
B33: 12 | C33: 1 | D33: Dex | E33: 4
B34: 10 | C34: 0 | D34: Int | E34: 2
B35: 8 | C35: -1 | D35: Con | E35: 0
B41: Noble | G41: 6+Int | H41: Humans +1 | J41: (2 Human) | L41: +1 | M41: 0 | N41: +2
B42: Level | C42: HP | D42: BAB | E42: Force Pts | F42: Destiny | G42: Skill | H42: Trained | I42: Focused | J42: FEATs | K42: Talents | L42: Ref | M42: Fort | N42: Will | O42: Ability | P42: Damage | Q42: Defense | R42: CL
B43: 1 | C43: =H66 -> 18 | D43: 0 | E43: 5 | F43: =ROUNDUP(R43/5,0) -> 1 | G43: 0 | H43: =SUM(G43+5) -> 5 | I43: =SUM(G43+10) -> 10 | J43: 1 | K43: 1 | L43: =(10+Q43+1) -> 12 | M43: =(10+Q43) -> 11 | N43: =(10+Q43+2) -> 13 | P43: 0 | Q43: 1 | R43: 1
B44: 2 | C44: =ROUNDDOWN((C43+(H67)*(B44-1)),0) -> 21 | D44: 1 | E44: 6 | F44: 1 | G44: 1 | H44: 6 | I44: 11 | J44: C1 | L44: 13 | M44: 12 | N44: 14 | P44: 1 | Q44: 2 | R44: 2
B45: 3 | C45: =ROUNDDOWN((C43+(H67)*(B45-1)),0) -> 25 | D45: 2 | E45: 6 | F45: 1 | G45: 1 | H45: 6 | I45: 11 | J45: 2 | K45: 2 | L45: 14 | M45: 13 | N45: 15 | P45: 1 | Q45: 3 | R45: 3
B46: 4 | C46: =ROUNDDOWN((C43+(H67)*(B46-1)),0) -> 28 | D46: 3 | E46: 7 | F46: 1 | G46: 2 | H46: 7 | I46: 12 | J46: C2 | L46: 15 | M46: 14 | N46: 16 | O46: 1,2 | P46: 2 | Q46: 4 | R46: 4
B47: 5 | C47: =ROUNDDOWN((C43+(H67)*(B47-1)),0) -> 32 | D47: 3 | E47: 7 | F47: 1 | G47: 2 | H47: 7 | I47: 12 | K47: 3 | L47: 16 | M47: 15 | N47: 17 | P47: 2 | Q47: 5 | R47: 5
B48: 6 | C48: =ROUNDDOWN((C43+(H67)*(B48-1)),0) -> 35 | D48: 4 | E48: 8 | F48: 2 | G48: 3 | H48: 8 | I48: 13 | J48: 3, C3 | L48: 17 | M48: 16 | N48: 18 | P48: 3 | Q48: 6 | R48: 6
B49: 7 | C49: =ROUNDDOWN((C43+(H67)*(B49-1)),0) -> 39 | D49: 5 | E49: 8 | F49: 2 | G49: 3 | H49: 8 | I49: 13 | K49: 4 | L49: 18 | M49: 17 | N49: 19 | P49: 3 | Q49: 7 | R49: 7
B50: 8 | C50: =ROUNDDOWN((C43+(H67)*(B50-1)),0) -> 42 | D50: 6 | E50: 9 | F50: 2 | G50: 4 | H50: 9 | I50: 14 | J50: C4 | L50: 19 | M50: 18 | N50: 20 | O50: 3,4 | P50: 4 | Q50: 8 | R50: 8
B51: 9 | C51: =ROUNDDOWN((C43+(H67)*(B51-1)),0) -> 46 | D51: 6 | E51: 9 | F51: 2 | G51: 4 | H51: 9 | I51: 14 | J51: 4 | K51: 5 | L51: 20 | M51: 19 | N51: 21 | P51: 4 | Q51: 9 | R51: 9
B52: 10 | C52: =ROUNDDOWN((C43+(H67)*(B52-1)),0) -> 49 | D52: 7 | E52: 10 | F52: 2 | G52: 5 | H52: 10 | I52: 15 | J52: C5 | L52: 21 | M52: 20 | N52: 22 | P52: 5 | Q52: 10 | R52: 10
B53: 11 | C53: =ROUNDDOWN((C43+(H67)*(B53-1)),0) -> 53 | D53: 8 | E53: 10 | F53: 3 | G53: 5 | H53: 10 | I53: 15 | K53: 6 | L53: 22 | M53: 21 | N53: 23 | P53: 5 | Q53: 11 | R53: 11
B54: 12 | C54: =ROUNDDOWN((C43+(H67)*(B54-1)),0) -> 56 | D54: 9 | E54: 11 | F54: 3 | G54: 6 | H54: 11 | I54: 16 | J54: 5, C6 | L54: 23 | M54: 22 | N54: 24 | O54: 5,6 | P54: 6 | Q54: 12 | R54: 12
B55: 13 | C55: =ROUNDDOWN((C43+(H67)*(B55-1)),0) -> 60 | D55: 9 | E55: 11 | F55: 3 | G55: 6 | H55: 11 | I55: 16 | K55: 7 | L55: 24 | M55: 23 | N55: 25 | P55: 6 | Q55: 13 | R55: 13
B56: 14 | C56: =ROUNDDOWN((C43+(H67)*(B56-1)),0) -> 63 | D56: 10 | E56: 12 | F56: 3 | G56: 7 | H56: 12 | I56: 17 | J56: C7 | L56: 25 | M56: 24 | N56: 26 | P56: 7 | Q56: 14 | R56: 14
B57: 15 | C57: =ROUNDDOWN((C43+(H67)*(B57-1)),0) -> 67 | D57: 11 | E57: 12 | F57: 3 | G57: 7 | H57: 12 | I57: 17 | J57: 6 | K57: 8 | L57: 26 | M57: 25 | N57: 27 | P57: 7 | Q57: 15 | R57: 15
B58: 16 | C58: =ROUNDDOWN((C43+(H67)*(B58-1)),0) -> 70 | D58: 12 | E58: 13 | F58: 4 | G58: 8 | H58: 13 | I58: 18 | J58: C8 | L58: 27 | M58: 26 | N58: 28 | O58: 7,8 | P58: 8 | Q58: 16 | R58: 16
B59: 17 | C59: =ROUNDDOWN((C43+(H67)*(B59-1)),0) -> 74 | D59: 12 | E59: 13 | F59: 4 | G59: 8 | H59: 13 | I59: 18 | K59: 9 | L59: 28 | M59: 27 | N59: 29 | P59: 8 | Q59: 17 | R59: 17
B60: 18 | C60: =ROUNDDOWN((C43+(H67)*(B60-1)),0) -> 77 | D60: 13 | E60: 14 | F60: 4 | G60: 9 | H60: 14 | I60: 19 | J60: 7, C9 | L60: 29 | M60: 28 | N60: 30 | P60: 9 | Q60: 18 | R60: 18
B61: 19 | C61: =ROUNDDOWN((C43+(H67)*(B61-1)),0) -> 81 | D61: 14 | E61: 14 | F61: 4 | G61: 9 | H61: 14 | I61: 19 | K61: 10 | L61: 30 | M61: 29 | N61: 31 | P61: 9 | Q61: 19 | R61: 19
B62: 20 | C62: =ROUNDDOWN((C43+(H67)*(B62-1)),0) -> 84 | D62: 15 | E62: 15 | F62: 4 | G62: 10 | H62: 15 | I62: 20 | J62: C10 | L62: 31 | M62: 30 | N62: 32 | O62: 9,10 | P62: 10 | Q62: 20 | R62: 20
B64: Ability Scores (recommended)
B65: Score | C65: Mod | D65: Ability | E65: Point Buy
B66: 15 | C66: 2 | D66: Cha | E66: 8 | G66: HP at 1st level: | H66: 18
B67: 14 | C67: 2 | D67: Int | E67: 6 | G67: HP average: | H67: 3.5
B68: 13 | C68: 1 | D68: Wis | E68: 5
B69: 12 | C69: 1 | D69: Dex | E69: 4
B70: 10 | C70: 0 | D70: Con | E70: 2
B71: 8 | C71: -1 | D71: Str | E71: 0
B77: Scoundrel | G77: 4+Int | H77: Humans +1 | J77: (2 Human) | L77: +2 | M77: 0 | N77: +1
B78: Level | C78: HP | D78: BAB | E78: Force Pts | F78: Destiny | G78: Skill | H78: Trained | I78: Focused | J78: FEATs | K78: Talents | L78: Ref | M78: Fort | N78: Will | O78: Ability | P78: Damage | Q78: Defense | R78: CL
B79: 1 | C79: =H102 -> 18 | D79: 0 | E79: 5 | F79: =ROUNDUP(R79/5,0) -> 1 | G79: 0 | H79: =SUM(G79+5) -> 5 | I79: =SUM(G79+10) -> 10 | J79: 1 | K79: 1 | L79: =(10+Q79+2) -> 13 | M79: =(10+Q79) -> 11 | N79: =(10+Q79+1) -> 12 | P79: 0 | Q79: 1 | R79: 1
B80: 2 | C80: =ROUNDDOWN((C79+(H103)*(B80-1)),0) -> 21 | D80: 1 | E80: 6 | F80: 1 | G80: 1 | H80: 6 | I80: 11 | J80: C1 | L80: =(10+Q80+2) -> 14 | M80: =(10+Q80) -> 12 | N80: =(10+Q80+1) -> 13 | P80: 1 | Q80: 2 | R80: 2
B81: 3 | C81: =ROUNDDOWN((C79+(H103)*(B81-1)),0) -> 25 | D81: 2 | E81: 6 | F81: 1 | G81: 1 | H81: 6 | I81: 11 | J81: 2 | K81: 2 | L81: 15 | M81: 13 | N81: 14 | P81: 1 | Q81: 3 | R81: 3
B82: 4 | C82: =ROUNDDOWN((C79+(H103)*(B82-1)),0) -> 28 | D82: 3 | E82: 7 | F82: 1 | G82: 2 | H82: 7 | I82: 12 | J82: C2 | L82: 16 | M82: 14 | N82: 15 | O82: 1,2 | P82: 2 | Q82: 4 | R82: 4
B83: 5 | C83: =ROUNDDOWN((C79+(H103)*(B83-1)),0) -> 32 | D83: 3 | E83: 7 | F83: 1 | G83: 2 | H83: 7 | I83: 12 | K83: 3 | L83: 17 | M83: 15 | N83: 16 | P83: 2 | Q83: 5 | R83: 5
B84: 6 | C84: =ROUNDDOWN((C79+(H103)*(B84-1)),0) -> 35 | D84: 4 | E84: 8 | F84: 2 | G84: 3 | H84: 8 | I84: 13 | J84: 3, C3 | L84: 18 | M84: 16 | N84: 17 | P84: 3 | Q84: 6 | R84: 6
B85: 7 | C85: =ROUNDDOWN((C79+(H103)*(B85-1)),0) -> 39 | D85: 5 | E85: 8 | F85: 2 | G85: 3 | H85: 8 | I85: 13 | K85: 4 | L85: 19 | M85: 17 | N85: 18 | P85: 3 | Q85: 7 | R85: 7
B86: 8 | C86: =ROUNDDOWN((C79+(H103)*(B86-1)),0) -> 42 | D86: 6 | E86: 9 | F86: 2 | G86: 4 | H86: 9 | I86: 14 | J86: C4 | L86: 20 | M86: 18 | N86: 19 | O86: 3,4 | P86: 4 | Q86: 8 | R86: 8
B87: 9 | C87: =ROUNDDOWN((C79+(H103)*(B87-1)),0) -> 46 | D87: 6 | E87: 9 | F87: 2 | G87: 4 | H87: 9 | I87: 14 | J87: 4 | K87: 5 | L87: 21 | M87: 19 | N87: 20 | P87: 4 | Q87: 9 | R87: 9
B88: 10 | C88: =ROUNDDOWN((C79+(H103)*(B88-1)),0) -> 49 | D88: 7 | E88: 10 | F88: 2 | G88: 5 | H88: 10 | I88: 15 | J88: C5 | L88: 22 | M88: 20 | N88: 21 | P88: 5 | Q88: 10 | R88: 10
B89: 11 | C89: =ROUNDDOWN((C79+(H103)*(B89-1)),0) -> 53 | D89: 8 | E89: 10 | F89: 3 | G89: 5 | H89: 10 | I89: 15 | K89: 6 | L89: 23 | M89: 21 | N89: 22 | P89: 5 | Q89: 11 | R89: 11
B90: 12 | C90: =ROUNDDOWN((C79+(H103)*(B90-1)),0) -> 56 | D90: 9 | E90: 11 | F90: 3 | G90: 6 | H90: 11 | I90: 16 | J90: 5, C6 | L90: 24 | M90: 22 | N90: 23 | O90: 5,6 | P90: 6 | Q90: 12 | R90: 12
B91: 13 | C91: =ROUNDDOWN((C79+(H103)*(B91-1)),0) -> 60 | D91: 9 | E91: 11 | F91: 3 | G91: 6 | H91: 11 | I91: 16 | K91: 7 | L91: 25 | M91: 23 | N91: 24 | P91: 6 | Q91: 13 | R91: 13
B92: 14 | C92: =ROUNDDOWN((C79+(H103)*(B92-1)),0) -> 63 | D92: 10 | E92: 12 | F92: 3 | G92: 7 | H92: 12 | I92: 17 | J92: C7 | L92: 26 | M92: 24 | N92: 25 | P92: 7 | Q92: 14 | R92: 14
B93: 15 | C93: =ROUNDDOWN((C79+(H103)*(B93-1)),0) -> 67 | D93: 11 | E93: 12 | F93: 3 | G93: 7 | H93: 12 | I93: 17 | J93: 6 | K93: 8 | L93: 27 | M93: 25 | N93: 26 | P93: 7 | Q93: 15 | R93: 15
B94: 16 | C94: =ROUNDDOWN((C79+(H103)*(B94-1)),0) -> 70 | D94: 12 | E94: 13 | F94: 4 | G94: 8 | H94: 13 | I94: 18 | J94: C8 | L94: 28 | M94: 26 | N94: 27 | O94: 7,8 | P94: 8 | Q94: 16 | R94: 16
B95: 17 | C95: =ROUNDDOWN((C79+(H103)*(B95-1)),0) -> 74 | D95: 12 | E95: 13 | F95: 4 | G95: 8 | H95: 13 | I95: 18 | K95: 9 | L95: 29 | M95: 27 | N95: 28 | P95: 8 | Q95: 17 | R95: 17
B96: 18 | C96: =ROUNDDOWN((C79+(H103)*(B96-1)),0) -> 77 | D96: 13 | E96: 14 | F96: 4 | G96: 9 | H96: 14 | I96: 19 | J96: 7, C9 | L96: 30 | M96: 28 | N96: 29 | P96: 9 | Q96: 18 | R96: 18
B97: 19 | C97: =ROUNDDOWN((C79+(H103)*(B97-1)),0) -> 81 | D97: 14 | E97: 14 | F97: 4 | G97: 9 | H97: 14 | I97: 19 | K97: 10 | L97: 31 | M97: 29 | N97: 30 | P97: 9 | Q97: 19 | R97: 19
B98: 20 | C98: =ROUNDDOWN((C79+(H103)*(B98-1)),0) -> 84 | D98: 15 | E98: 15 | F98: 4 | G98: 10 | H98: 15 | I98: 20 | J98: C10 | L98: 32 | M98: 30 | N98: 31 | O98: 9,10 | P98: 10 | Q98: 20 | R98: 20
B100: Ability Scores (recommended)
B101: Score | C101: Mod | D101: Ability | E101: Point Buy
B102: 15 | C102: 2 | D102: Dex | E102: 8 | G102: HP at 1st level: | H102: 18
B103: 14 | C103: 2 | D103: Int | E103: 6 | G103: HP average: | H103: 3.5
B104: 13 | C104: 1 | D104: Cha | E104: 5
B105: 12 | C105: 1 | D105: Wis | E105: 4
B106: 10 | C106: 0 | D106: Con | E106: 2
B107: 8 | C107: -1 | D107: Str | E107: 0
B113: Scout | G113: 5+Int | H113: Humans +1 | J113: (2 Human) | L113: +2 | M113: +1 | N113: 0
B114: Level | C114: HP | D114: BAB | E114: Force Pts | F114: Destiny | G114: Skill | H114: Trained | I114: Focused | J114: FEATs | K114: Talents | L114: Ref | M114: Fort | N114: Will | O114: Ability | P114: Damage | Q114: Defense | R114: CL
B115: 1 | C115: =H138 -> 24 | D115: 0 | E115: 5 | F115: =ROUNDUP(R115/5,0) -> 1 | G115: 0 | H115: =SUM(G115+5) -> 5 | I115: =SUM(G115+10) -> 10 | J115: 1 | K115: 1 | L115: =(10+Q115+2) -> 13 | M115: =(10+Q115+1) -> 12 | N115: =(10+Q115) -> 11 | P115: 0 | Q115: 1 | R115: 1
B116: 2 | C116: =ROUNDDOWN((C115+(H139)*(B116-1)),0) -> 28 | D116: 1 | E116: 6 | F116: 1 | G116: 1 | H116: 6 | I116: 11 | J116: C1 | L116: =(10+Q116+2) -> 14 | M116: =(10+Q116+1) -> 13 | N116: =(10+Q116) -> 12 | P116: 1 | Q116: 2 | R116: 2
B117: 3 | C117: =ROUNDDOWN((C115+(H139)*(B117-1)),0) -> 33 | D117: 2 | E117: 6 | F117: 1 | G117: 1 | H117: 6 | I117: 11 | J117: 2 | K117: 2 | L117: 15 | M117: 14 | N117: 13 | P117: 1 | Q117: 3 | R117: 3
B118: 4 | C118: =ROUNDDOWN((C115+(H139)*(B118-1)),0) -> 37 | D118: 3 | E118: 7 | F118: 1 | G118: 2 | H118: 7 | I118: 12 | J118: C2 | L118: 16 | M118: 15 | N118: 14 | O118: 1,2 | P118: 2 | Q118: 4 | R118: 4
B119: 5 | C119: =ROUNDDOWN((C115+(H139)*(B119-1)),0) -> 42 | D119: 3 | E119: 7 | F119: 1 | G119: 2 | H119: 7 | I119: 12 | K119: 3 | L119: 17 | M119: 16 | N119: 15 | P119: 2 | Q119: 5 | R119: 5
B120: 6 | C120: =ROUNDDOWN((C115+(H139)*(B120-1)),0) -> 46 | D120: 4 | E120: 8 | F120: 2 | G120: 3 | H120: 8 | I120: 13 | J120: 3, C3 | L120: 18 | M120: 17 | N120: 16 | P120: 3 | Q120: 6 | R120: 6
B121: 7 | C121: =ROUNDDOWN((C115+(H139)*(B121-1)),0) -> 51 | D121: 5 | E121: 8 | F121: 2 | G121: 3 | H121: 8 | I121: 13 | K121: 4 | L121: 19 | M121: 18 | N121: 17 | P121: 3 | Q121: 7 | R121: 7
B122: 8 | C122: =ROUNDDOWN((C115+(H139)*(B122-1)),0) -> 55 | D122: 6 | E122: 9 | F122: 2 | G122: 4 | H122: 9 | I122: 14 | J122: C4 | L122: 20 | M122: 19 | N122: 18 | O122: 3,4 | P122: 4 | Q122: 8 | R122: 8
B123: 9 | C123: =ROUNDDOWN((C115+(H139)*(B123-1)),0) -> 60 | D123: 6 | E123: 9 | F123: 2 | G123: 4 | H123: 9 | I123: 14 | J123: 4 | K123: 5 | L123: 21 | M123: 20 | N123: 19 | P123: 4 | Q123: 9 | R123: 9
B124: 10 | C124: =ROUNDDOWN((C115+(H139)*(B124-1)),0) -> 64 | D124: 7 | E124: 10 | F124: 2 | G124: 5 | H124: 10 | I124: 15 | J124: C5 | L124: 22 | M124: 21 | N124: 20 | P124: 5 | Q124: 10 | R124: 10
B125: 11 | C125: =ROUNDDOWN((C115+(H139)*(B125-1)),0) -> 69 | D125: 8 | E125: 10 | F125: 3 | G125: 5 | H125: 10 | I125: 15 | K125: 6 | L125: 23 | M125: 22 | N125: 21 | P125: 5 | Q125: 11 | R125: 11
B126: 12 | C126: =ROUNDDOWN((C115+(H139)*(B126-1)),0) -> 73 | D126: 9 | E126: 11 | F126: 3 | G126: 6 | H126: 11 | I126: 16 | J126: 5, C6 | L126: 24 | M126: 23 | N126: 22 | O126: 5,6 | P126: 6 | Q126: 12 | R126: 12
B127: 13 | C127: =ROUNDDOWN((C115+(H139)*(B127-1)),0) -> 78 | D127: 9 | E127: 11 | F127: 3 | G127: 6 | H127: 11 | I127: 16 | K127: 7 | L127: 25 | M127: 24 | N127: 23 | P127: 6 | Q127: 13 | R127: 13
B128: 14 | C128: =ROUNDDOWN((C115+(H139)*(B128-1)),0) -> 82 | D128: 10 | E128: 12 | F128: 3 | G128: 7 | H128: 12 | I128: 17 | J128: C7 | L128: 26 | M128: 25 | N128: 24 | P128: 7 | Q128: 14 | R128: 14
B129: 15 | C129: =ROUNDDOWN((C115+(H139)*(B129-1)),0) -> 87 | D129: 11 | E129: 12 | F129: 3 | G129: 7 | H129: 12 | I129: 17 | J129: 6 | K129: 8 | L129: 27 | M129: 26 | N129: 25 | P129: 7 | Q129: 15 | R129: 15
B130: 16 | C130: =ROUNDDOWN((C115+(H139)*(B130-1)),0) -> 91 | D130: 12 | E130: 13 | F130: 4 | G130: 8 | H130: 13 | I130: 18 | J130: C8 | L130: 28 | M130: 27 | N130: 26 | O130: 7,8 | P130: 8 | Q130: 16 | R130: 16
B131: 17 | C131: =ROUNDDOWN((C115+(H139)*(B131-1)),0) -> 96 | D131: 12 | E131: 13 | F131: 4 | G131: 8 | H131: 13 | I131: 18 | K131: 9 | L131: 29 | M131: 28 | N131: 27 | P131: 8 | Q131: 17 | R131: 17
B132: 18 | C132: =ROUNDDOWN((C115+(H139)*(B132-1)),0) -> 100 | D132: 13 | E132: 14 | F132: 4 | G132: 9 | H132: 14 | I132: 19 | J132: 7, C9 | L132: 30 | M132: 29 | N132: 28 | P132: 9 | Q132: 18 | R132: 18
B133: 19 | C133: =ROUNDDOWN((C115+(H139)*(B133-1)),0) -> 105 | D133: 14 | E133: 14 | F133: 4 | G133: 9 | H133: 14 | I133: 19 | K133: 10 | L133: 31 | M133: 30 | N133: 29 | P133: 9 | Q133: 19 | R133: 19
B134: 20 | C134: =ROUNDDOWN((C115+(H139)*(B134-1)),0) -> 109 | D134: 15 | E134: 15 | F134: 4 | G134: 10 | H134: 15 | I134: 20 | J134: C10 | L134: 32 | M134: 31 | N134: 30 | O134: 9,10 | P134: 10 | Q134: 20 | R134: 20
B136: Ability Scores (recommended)
B137: Score | C137: Mod | D137: Ability | E137: Point Buy
B138: 15 | C138: 2 | D138: Dex | E138: 8 | G138: HP at 1st level: | H138: 24
B139: 14 | C139: 2 | D139: Int | E139: 6 | G139: HP average: | H139: 4.5
B140: 13 | C140: 1 | D140: Wis | E140: 5
B141: 12 | C141: 1 | D141: Con | E141: 4
B142: 10 | C142: 0 | D142: Str | E142: 2
B143: 8 | C143: -1 | D143: Cha | E143: 0
B149: Soldier | G149: 3+Int | H149: Humans +1 | J149: (2 Human) | L149: +1 | M149: +2 | N149: 0
B150: Level | C150: HP | D150: BAB | E150: Force Pts | F150: Destiny | G150: Skill | H150: Trained | I150: Focused | J150: FEATs | K150: Talents | L150: Ref | M150: Fort | N150: Will | O150: Ability | P150: Damage | Q150: Defense | R150: CL
B151: 1 | C151: =H174 -> 30 | D151: 1 | E151: 5 | F151: =ROUNDUP(R151/5,0) -> 1 | G151: 0 | H151: =SUM(G151+5) -> 5 | I151: =SUM(G151+10) -> 10 | J151: 1 | K151: 1 | L151: =(10+Q151+1) -> 12 | M151: =(10+Q151+2) -> 13 | N151: =(10+Q151) -> 11 | P151: 0 | Q151: 1 | R151: 1
B152: 2 | C152: =ROUNDDOWN((C151+(H175)*(B152-1)),0) -> 35 | D152: 2 | E152: 6 | F152: 1 | G152: 1 | H152: 6 | I152: 11 | J152: C1 | L152: =(10+Q152+1) -> 13 | M152: 14 | N152: 12 | P152: 1 | Q152: 2 | R152: 2
B153: 3 | C153: =ROUNDDOWN((C151+(H175)*(B153-1)),0) -> 41 | D153: 3 | E153: 6 | F153: 1 | G153: 1 | H153: 6 | I153: 11 | J153: 2 | K153: 2 | L153: 14 | M153: 15 | N153: 13 | P153: 1 | Q153: 3 | R153: 3
B154: 4 | C154: =ROUNDDOWN((C151+(H175)*(B154-1)),0) -> 46 | D154: 4 | E154: 7 | F154: 1 | G154: 2 | H154: 7 | I154: 12 | J154: C2 | L154: 15 | M154: 16 | N154: 14 | O154: 1,2 | P154: 2 | Q154: 4 | R154: 4
B155: 5 | C155: =ROUNDDOWN((C151+(H175)*(B155-1)),0) -> 52 | D155: 5 | E155: 7 | F155: 1 | G155: 2 | H155: 7 | I155: 12 | K155: 3 | L155: 16 | M155: 17 | N155: 15 | P155: 2 | Q155: 5 | R155: 5
B156: 6 | C156: =ROUNDDOWN((C151+(H175)*(B156-1)),0) -> 57 | D156: 6 | E156: 8 | F156: 2 | G156: 3 | H156: 8 | I156: 13 | J156: 3, C3 | L156: 17 | M156: 18 | N156: 16 | P156: 3 | Q156: 6 | R156: 6
B157: 7 | C157: =ROUNDDOWN((C151+(H175)*(B157-1)),0) -> 63 | D157: 7 | E157: 8 | F157: 2 | G157: 3 | H157: 8 | I157: 13 | K157: 4 | L157: 18 | M157: 19 | N157: 17 | P157: 3 | Q157: 7 | R157: 7
B158: 8 | C158: =ROUNDDOWN((C151+(H175)*(B158-1)),0) -> 68 | D158: 8 | E158: 9 | F158: 2 | G158: 4 | H158: 9 | I158: 14 | J158: C4 | L158: 19 | M158: 20 | N158: 18 | O158: 3,4 | P158: 4 | Q158: 8 | R158: 8
B159: 9 | C159: =ROUNDDOWN((C151+(H175)*(B159-1)),0) -> 74 | D159: 9 | E159: 9 | F159: 2 | G159: 4 | H159: 9 | I159: 14 | J159: 4 | K159: 5 | L159: 20 | M159: 21 | N159: 19 | P159: 4 | Q159: 9 | R159: 9
B160: 10 | C160: =ROUNDDOWN((C151+(H175)*(B160-1)),0) -> 79 | D160: 10 | E160: 10 | F160: 2 | G160: 5 | H160: 10 | I160: 15 | J160: C5 | L160: 21 | M160: 22 | N160: 20 | P160: 5 | Q160: 10 | R160: 10
B161: 11 | C161: =ROUNDDOWN((C151+(H175)*(B161-1)),0) -> 85 | D161: 11 | E161: 10 | F161: 3 | G161: 5 | H161: 10 | I161: 15 | K161: 6 | L161: 22 | M161: 23 | N161: 21 | P161: 5 | Q161: 11 | R161: 11
B162: 12 | C162: =ROUNDDOWN((C151+(H175)*(B162-1)),0) -> 90 | D162: 12 | E162: 11 | F162: 3 | G162: 6 | H162: 11 | I162: 16 | J162: 5, C6 | L162: 23 | M162: 24 | N162: 22 | O162: 5,6 | P162: 6 | Q162: 12 | R162: 12
B163: 13 | C163: =ROUNDDOWN((C151+(H175)*(B163-1)),0) -> 96 | D163: 13 | E163: 11 | F163: 3 | G163: 6 | H163: 11 | I163: 16 | K163: 7 | L163: 24 | M163: 25 | N163: 23 | P163: 6 | Q163: 13 | R163: 13
B164: 14 | C164: =ROUNDDOWN((C151+(H175)*(B164-1)),0) -> 101 | D164: 14 | E164: 12 | F164: 3 | G164: 7 | H164: 12 | I164: 17 | J164: C7 | L164: 25 | M164: 26 | N164: 24 | P164: 7 | Q164: 14 | R164: 14
B165: 15 | C165: =ROUNDDOWN((C151+(H175)*(B165-1)),0) -> 107 | D165: 15 | E165: 12 | F165: 3 | G165: 7 | H165: 12 | I165: 17 | J165: 6 | K165: 8 | L165: 26 | M165: 27 | N165: 25 | P165: 7 | Q165: 15 | R165: 15
B166: 16 | C166: =ROUNDDOWN((C151+(H175)*(B166-1)),0) -> 112 | D166: 16 | E166: 13 | F166: 4 | G166: 8 | H166: 13 | I166: 18 | J166: C8 | L166: 27 | M166: 28 | N166: 26 | O166: 7,8 | P166: 8 | Q166: 16 | R166: 16
B167: 17 | C167: =ROUNDDOWN((C151+(H175)*(B167-1)),0) -> 118 | D167: 17 | E167: 13 | F167: 4 | G167: 8 | H167: 13 | I167: 18 | K167: 9 | L167: 28 | M167: 29 | N167: 27 | P167: 8 | Q167: 17 | R167: 17
B168: 18 | C168: =ROUNDDOWN((C151+(H175)*(B168-1)),0) -> 123 | D168: 18 | E168: 14 | F168: 4 | G168: 9 | H168: 14 | I168: 19 | J168: 7, C9 | L168: 29 | M168: 30 | N168: 28 | P168: 9 | Q168: 18 | R168: 18
B169: 19 | C169: =ROUNDDOWN((C151+(H175)*(B169-1)),0) -> 129 | D169: 19 | E169: 14 | F169: 4 | G169: 9 | H169: 14 | I169: 19 | K169: 10 | L169: 30 | M169: 31 | N169: 29 | P169: 9 | Q169: 19 | R169: 19
B170: 20 | C170: =ROUNDDOWN((C151+(H175)*(B170-1)),0) -> 134 | D170: 20 | E170: 15 | F170: 4 | G170: 10 | H170: 15 | I170: 20 | J170: C10 | L170: 31 | M170: 32 | N170: 30 | O170: 9,10 | P170: 10 | Q170: 20 | R170: 20
B172: Ability Scores (recommended)
B173: Score | C173: Mod | D173: Ability | E173: Point Buy
B174: 15 | C174: 2 | D174: Dex | E174: 8 | G174: HP at 1st level: | H174: 30
B175: 14 | C175: 2 | D175: Con | E175: 6 | G175: HP average: | H175: 5.5
B176: 13 | C176: 1 | D176: Str | E176: 5
B177: 12 | C177: 1 | D177: Int | E177: 4
B178: 10 | C178: 0 | D178: Wis | E178: 2
B179: 8 | C179: -1 | D179: Cha | E179: 0
B185: Nonheroic | G185: 1+Int | H185: Humans +1 | J185: (2 Human) | L185: 0 | M185: 0 | N185: 0
B186: Level | C186: HP | D186: BAB | E186: Force Pts | F186: Destiny | G186: Skill | H186: Trained | I186: Focused | J186: FEATs | K186: Talents | L186: Ref | M186: Fort | N186: Will | O186: Ability | P186: Damage | Q186: Defense | R186: CL
B187: 1 | C187: =ROUNDDOWN(H211*B187,0) -> 2 | D187: 0 | E187: 0 | F187: 0 | G187: 0 | H187: =SUM(G187+5) -> 5 | I187: =SUM(G187+10) -> 10 | J187: 3 | L187: =(10+Q187) -> 10 | M187: =(10+Q187) -> 10 | N187: =(10+Q187) -> 10 | P187: 0 | Q187: 0 | R187: =ROUNDDOWN(B187/3,0) -> 0
B188: 2 | C188: =ROUNDDOWN(H211*B188,0) -> 5 | D188: 1 | E188: 0 | F188: 0 | G188: 1 | H188: 6 | I188: 11 | L188: =(10+Q188) -> 10 | M188: =(10+Q188) -> 10 | N188: =(10+Q188) -> 10 | P188: 0 | Q188: 0 | R188: 0
B189: 3 | C189: =ROUNDDOWN(H211*B189,0) -> 7 | D189: 2 | E189: 0 | F189: 0 | G189: 1 | H189: 6 | I189: 11 | J189: 1 | L189: 10 | M189: 10 | N189: 10 | P189: 0 | Q189: 0 | R189: 1
B190: 4 | C190: =ROUNDDOWN(H211*B190,0) -> 10 | D190: 3 | E190: 0 | F190: 0 | G190: 2 | H190: 7 | I190: 12 | L190: 10 | M190: 10 | N190: 10 | O190: 1 | P190: 0 | Q190: 0 | R190: 1
B191: 5 | C191: =ROUNDDOWN(H211*B191,0) -> 12 | D191: 3 | E191: 0 | F191: 0 | G191: 2 | H191: 7 | I191: 12 | L191: 10 | M191: 10 | N191: 10 | P191: 0 | Q191: 0 | R191: 1
B192: 6 | C192: =ROUNDDOWN(H211*B192,0) -> 15 | D192: 4 | E192: 0 | F192: 0 | G192: 3 | H192: 8 | I192: 13 | J192: 2 | L192: 10 | M192: 10 | N192: 10 | P192: 0 | Q192: 0 | R192: 2
B193: 7 | C193: =ROUNDDOWN(H211*B193,0) -> 17 | D193: 5 | E193: 0 | F193: 0 | G193: 3 | H193: 8 | I193: 13 | L193: 10 | M193: 10 | N193: 10 | P193: 0 | Q193: 0 | R193: 2
B194: 8 | C194: =ROUNDDOWN(H211*B194,0) -> 20 | D194: 6 | E194: 0 | F194: 0 | G194: 4 | H194: 9 | I194: 14 | L194: 10 | M194: 10 | N194: 10 | O194: 2 | P194: 0 | Q194: 0 | R194: 2
B195: 9 | C195: =ROUNDDOWN(H211*B195,0) -> 22 | D195: 6 | E195: 0 | F195: 0 | G195: 4 | H195: 9 | I195: 14 | J195: 3 | L195: 10 | M195: 10 | N195: 10 | P195: 0 | Q195: 0 | R195: 3
B196: 10 | C196: =ROUNDDOWN(H211*B196,0) -> 25 | D196: 7 | E196: 0 | F196: 0 | G196: 5 | H196: 10 | I196: 15 | L196: 10 | M196: 10 | N196: 10 | P196: 0 | Q196: 0 | R196: 3
B197: 11 | C197: =ROUNDDOWN(H211*B197,0) -> 27 | D197: 8 | E197: 0 | F197: 0 | G197: 5 | H197: 10 | I197: 15 | L197: 10 | M197: 10 | N197: 10 | P197: 0 | Q197: 0 | R197: 3
B198: 12 | C198: =ROUNDDOWN(H211*B198,0) -> 30 | D198: 9 | E198: 0 | F198: 0 | G198: 6 | H198: 11 | I198: 16 | J198: 4 | L198: 10 | M198: 10 | N198: 10 | O198: 3 | P198: 0 | Q198: 0 | R198: 4
B199: 13 | C199: =ROUNDDOWN(H211*B199,0) -> 32 | D199: 9 | E199: 0 | F199: 0 | G199: 6 | H199: 11 | I199: 16 | L199: 10 | M199: 10 | N199: 10 | P199: 0 | Q199: 0 | R199: 4
B200: 14 | C200: =ROUNDDOWN(H211*B200,0) -> 35 | D200: 10 | E200: 0 | F200: 0 | G200: 7 | H200: 12 | I200: 17 | L200: 10 | M200: 10 | N200: 10 | P200: 0 | Q200: 0 | R200: 4
B201: 15 | C201: =ROUNDDOWN(H211*B201,0) -> 37 | D201: 11 | E201: 0 | F201: 0 | G201: 7 | H201: 12 | I201: 17 | J201: 5 | L201: 10 | M201: 10 | N201: 10 | P201: 0 | Q201: 0 | R201: 5
B202: 16 | C202: =ROUNDDOWN(H211*B202,0) -> 40 | D202: 12 | E202: 0 | F202: 0 | G202: 8 | H202: 13 | I202: 18 | L202: 10 | M202: 10 | N202: 10 | O202: 4 | P202: 0 | Q202: 0 | R202: 5
B203: 17 | C203: =ROUNDDOWN(H211*B203,0) -> 42 | D203: 12 | E203: 0 | F203: 0 | G203: 8 | H203: 13 | I203: 18 | L203: 10 | M203: 10 | N203: 10 | P203: 0 | Q203: 0 | R203: 5
B204: 18 | C204: =ROUNDDOWN(H211*B204,0) -> 45 | D204: 13 | E204: 0 | F204: 0 | G204: 9 | H204: 14 | I204: 19 | J204: 6 | L204: 10 | M204: 10 | N204: 10 | P204: 0 | Q204: 0 | R204: 6
B205: 19 | C205: =ROUNDDOWN(H211*B205,0) -> 47 | D205: 14 | E205: 0 | F205: 0 | G205: 9 | H205: 14 | I205: 19 | L205: 10 | M205: 10 | N205: 10 | P205: 0 | Q205: 0 | R205: 6
B206: 20 | C206: =ROUNDDOWN(H211*B206,0) -> 50 | D206: 15 | E206: 0 | F206: 0 | G206: 10 | H206: 15 | I206: 20 | L206: 10 | M206: 10 | N206: 10 | O206: 5 | P206: 0 | Q206: 0 | R206: 6
B208: Ability Scores (recommended)
B209: Score | C209: Mod | D209: Ability | E209: Point Buy
B210: 15 | C210: 2 | E210: 8 | G210: HP at 1st level: | H210: 0
B211: 14 | C211: 2 | E211: 6 | G211: HP average: | H211: 2.5
B212: 13 | C212: 1 | E212: 5
B213: 12 | C213: 1 | E213: 4
B214: 10 | C214: 0 | E214: 2
B215: 8 | C215: -1 | E215: 0
B221: Beast | G221: 1+Int | L221: 0 | M221: 0 | N221: 0
B222: Level | C222: HP | D222: BAB | E222: Force Pts | F222: Destiny | G222: Skill | H222: Trained | I222: Focused | J222: FEATs | K222: Talents | L222: Ref | M222: Fort | N222: Will | O222: Ability | P222: Damage | Q222: Defense | R222: CL
B223: 1 | C223: =ROUNDDOWN(H247*B223,0) -> 4 | D223: 0 | E223: 0 | F223: 0 | G223: 0 | H223: =SUM(G223+5) -> 5 | I223: =SUM(G223+10) -> 10 | J223: 1 | L223: =(10+Q223) -> 10 | M223: =(10+Q223) -> 10 | N223: =(10+Q223) -> 10 | P223: 0 | Q223: 0 | R223: =SUM(B223-1) -> 0
B224: 2 | C224: =ROUNDDOWN(H247*B224,0) -> 9 | D224: 1 | E224: 0 | F224: 0 | G224: 1 | H224: 6 | I224: 11 | J224: 2 | L224: =(10+Q224) -> 10 | M224: =(10+Q224) -> 10 | N224: =(10+Q224) -> 10 | P224: 0 | Q224: 0 | R224: 1
B225: 3 | C225: =ROUNDDOWN(H247*B225,0) -> 13 | D225: 2 | E225: 0 | F225: 0 | G225: 1 | H225: 6 | I225: 11 | J225: 3 | L225: 10 | M225: 10 | N225: 10 | P225: 0 | Q225: 0 | R225: 2
B226: 4 | C226: =ROUNDDOWN(H247*B226,0) -> 18 | D226: 3 | E226: 0 | F226: 0 | G226: 2 | H226: 7 | I226: 12 | J226: 4 | L226: 10 | M226: 10 | N226: 10 | O226: 1 | P226: 0 | Q226: 0 | R226: 3
B227: 5 | C227: =ROUNDDOWN(H247*B227,0) -> 22 | D227: 3 | E227: 0 | F227: 0 | G227: 2 | H227: 7 | I227: 12 | L227: 10 | M227: 10 | N227: 10 | P227: 0 | Q227: 0 | R227: 4
B228: 6 | C228: =ROUNDDOWN(H247*B228,0) -> 27 | D228: 4 | E228: 0 | F228: 0 | G228: 3 | H228: 8 | I228: 13 | J228: 5,6 | L228: 10 | M228: 10 | N228: 10 | P228: 0 | Q228: 0 | R228: 5
B229: 7 | C229: =ROUNDDOWN(H247*B229,0) -> 31 | D229: 5 | E229: 0 | F229: 0 | G229: 3 | H229: 8 | I229: 13 | L229: 10 | M229: 10 | N229: 10 | P229: 0 | Q229: 0 | R229: 6
B230: 8 | C230: =ROUNDDOWN(H247*B230,0) -> 36 | D230: 6 | E230: 0 | F230: 0 | G230: 4 | H230: 9 | I230: 14 | J230: 7 | L230: 10 | M230: 10 | N230: 10 | O230: 2 | P230: 0 | Q230: 0 | R230: 7
B231: 9 | C231: =ROUNDDOWN(H247*B231,0) -> 40 | D231: 6 | E231: 0 | F231: 0 | G231: 4 | H231: 9 | I231: 14 | J231: 8 | L231: 10 | M231: 10 | N231: 10 | P231: 0 | Q231: 0 | R231: 8
B232: 10 | C232: =ROUNDDOWN(H247*B232,0) -> 45 | D232: 7 | E232: 0 | F232: 0 | G232: 5 | H232: 10 | I232: 15 | J232: 9 | L232: 10 | M232: 10 | N232: 10 | P232: 0 | Q232: 0 | R232: 9
B233: 11 | C233: =ROUNDDOWN(H247*B233,0) -> 49 | D233: 8 | E233: 0 | F233: 0 | G233: 5 | H233: 10 | I233: 15 | L233: 10 | M233: 10 | N233: 10 | P233: 0 | Q233: 0 | R233: 10
B234: 12 | C234: =ROUNDDOWN(H247*B234,0) -> 54 | D234: 9 | E234: 0 | F234: 0 | G234: 6 | H234: 11 | I234: 16 | J234: 10,11 | L234: 10 | M234: 10 | N234: 10 | O234: 3 | P234: 0 | Q234: 0 | R234: 11
B235: 13 | C235: =ROUNDDOWN(H247*B235,0) -> 58 | D235: 9 | E235: 0 | F235: 0 | G235: 6 | H235: 11 | I235: 16 | L235: 10 | M235: 10 | N235: 10 | P235: 0 | Q235: 0 | R235: 12
B236: 14 | C236: =ROUNDDOWN(H247*B236,0) -> 63 | D236: 10 | E236: 0 | F236: 0 | G236: 7 | H236: 12 | I236: 17 | J236: 12 | L236: 10 | M236: 10 | N236: 10 | P236: 0 | Q236: 0 | R236: 13
B237: 15 | C237: =ROUNDDOWN(H247*B237,0) -> 67 | D237: 11 | E237: 0 | F237: 0 | G237: 7 | H237: 12 | I237: 17 | J237: 13 | L237: 10 | M237: 10 | N237: 10 | P237: 0 | Q237: 0 | R237: 14
B238: 16 | C238: =ROUNDDOWN(H247*B238,0) -> 72 | D238: 12 | E238: 0 | F238: 0 | G238: 8 | H238: 13 | I238: 18 | J238: 14 | L238: 10 | M238: 10 | N238: 10 | O238: 4 | P238: 0 | Q238: 0 | R238: 15
... 489 more rows

Sheet Species
A1: BOOK | B1: PAGE | C1: WEB | D1: NPC or PC? | E1: SPECIES | F1: STR | G1: DEX | H1: CON | I1: INT | J1: WIS | K1: CHA | L1: Size | M1: Speed | N1: Height | O1: Weight | P1: Basic? | Q1: Vis | R1: Ref | S1: Fort | T1: Will | U1: CONDITIONAL FEAT | V1: SKILLS | W1: TRAITS | X1: SPECIES | Y1: Child | Z1: Young Adult | AA1: Adult | AB1: Middle Age | AC1: Old | AD1: Venerable | AE1: C/UC Mini? | AF1: Unique mini? | AG1: C/UC w/lightsaber | AH1: Unique w/lightsaber | AI1: Refers to SWM & minis w/lightsabers also counted in previous column's tally, counts multiple sculpts as singles *numerous examples
A2: L | B2: 198 | C2: w | D2: N | E2: Advozse | G2: -2 | H2: 2 | J2: 2 | L2: M | M2: 6 | P2: Y | Q2: L | R2: 1 | V2: reroll Perception, mtr | X2: =(E2) -> Advozse
A3: F | B3: 12 | C3: w | D3: P | E3: Aleena | G3: 2 | K3: -2 | L3: S | M3: 4 | N3: 0.8 | O3: 50 | P3: Y | V3: reroll Acrobatics, mtr | W3: swif +2 Dex skills & spd 8, rnds = Con mod, -1 down track | X3: Aleena | Y3: 12 | Z3: 18 | AA3: 45 | AB3: 60 | AC3: 79 | AD3: 80+ | AF3: 1 | AH3: 1
A4: W | C4: w | D4: N | E4: Amanin | F4: 2 | I4: -2 | K4: -2 | L4: M | M4: 6 | P4: N | S4: 1 | V4: take 10 on Climb | W4: reach 2sq, primitive, roll (-5 Perception double spd) | X4: Amanin | AE4: 1
A5: UR | B5: 10 | C5: w | D5: P | E5: Anzati | L5: M | M5: 6 | N5: 1.7 | O5: 60 | P5: Y | Q5: L | V5: Stealth & Survival are class skills | W5: Survival to track + = target's FP, stan v. Will Def w/in 6sq for target to lose stan next turn (atk mod = cl+Cha mod) - if fail target immune 24 hrs, swif to drain grabbed target - target -1 track & Anzati hp = 5+1/2 level | X5: Anzati | Y5: 12 | Z5: 99 | AA5: 649 | AB5: 799 | AC5: 950 | AD5: 951+ | AE5: 4 | AF5: 1
A6: CR | B6: 284 | C6: w | D6: N | E6: Aqualish | H6: 2 | J6: -2 | K6: -2 | L6: M | M6: 6 | P6: Y | U6: Toughness | V6: reroll Swim mtr, can take 10 | W6: breathe underwater | X6: Aqualish | AE6: 1
A7: W | C7: w | D7: N | E7: Arcona | J7: -2 | K7: 2 | L7: M | M7: 6 | P7: Y | S7: 2 | W7: Scent | X7: Arcona
A8: K | B8: 10 | C8: w | D8: P | E8: Arkanian | I8: 2 | K8: -2 | L8: M | M8: 6 | N8: 1.8 | O8: 75 | P8: Y | Q8: D | W8: use Int not Cha for Persuasion, 1/encounter +5 Knowledge, Mechanics, or Use Computer | X8: Arkanian | Y8: 12 | Z8: 18 | AA8: 44 | AB8: 76 | AC8: 99 | AD8: 100+ | AF8: 1
A9: K | B9: 11 | C9: w | D9: P | E9: Arkanian Offshoot | F9: 2* | G9: 2* | H9: -2 | L9: M | M9: 6 | N9: 1.8 | O9: 75 | P9: Y | U9: one SF Endurance, Mechanics, Pilot, Survival or Treat Injury | W9: 1/encounter reroll failed skill check with a trained skill, mtr | X9: Arkanian Offshoot | Y9: 8 | Z9: 13 | AA9: 30 | AB9: 45 | AC9: 55 | AD9: 56+
A10: SV | B10: 154 | C10: w | D10: N | E10: Balosar | G10: 2 | H10: -2 | J10: -2 | K10: 2 | L10: M | M10: 6 | P10: Y | W10: reroll Perception of sound, +5 Fort Def v. poison, +2 Will Def v. Deception & Persuasion | X10: Balosar
A11: GW | B11: 11 | C11: w | D11: P | E11: Barabel | F11: 2 | G11: -2 | J11: -2 | L11: M | M11: 6 | N11: 2 | O11: 110 | P11: N | Q11: D | R11: 2 | W11: claw/bite/tail d6, +5 Fort Def v. radiation, primitive, reroll Persuasion to intimidate, +5 thresh v. stun | X11: Barabel | Y11: 8 | Z11: 15 | AA11: 40 | AB11: 59 | AC11: 79 | AD11: 80+
A12: SV | B12: 154 | C12: w | D12: N | E12: Barabel | F12: 2 | G12: -2 | J12: -2 | L12: M | M12: 6 | P12: N | Q12: D | R12: 2 | W12: claw d6, +2 Fort Def v. radiation, primitive, reroll Persuasion to intimidate | X12: Barabel | AE12: 3 | AG12: 1
A13: GI | B13: 10 | C13: w | D13: P | E13: Bith | H13: -2 | I13: 2 | K13: 2 | L13: M | M13: 6 | N13: 1.7 | O13: 75 | P13: Y | W13: Meditative Trance - rest 4 hours = 8 hours, Scent, if spend FP gain a FP to use on Int skill by end of enc | X13: Bith | Y13: 11 | Z13: 15 | AA13: 50 | AB13: 70 | AC13: 84 | AD13: 85+ | AE13: 3 | AG13: 1
A14: T | B14: 26 | C14: w | D14: N | E14: Bith | H14: -2 | I14: 2 | L14: M | M14: 6 | P14: N | V14: reroll Perception, mtr | W14: 1/encounter any Int-based skill check as nat 20, can rest 8 hours in 4 | X14: =(E14) -> Bith | AE14: 1
A15: SV | B15: 6 | C15: w | D15: P | E15: Blood Carver | G15: 2 | J15: -2 | K15: -2 | L15: M | M15: 6 | N15: 2 | O15: 65/60 | P15: Y | U15: SF Acrobatics | W15: melee atk v. opp denied Dex to Ref Def = +1 die damage | X15: Blood Carver | Y15: 12 | Z15: 20 | AA15: 60 | AB15: 80 | AC15: 100 | AD15: 100+ | AE15: 3
A16: CR | B16: 23 | C16: w | D16: P | E16: Bothan | G16: 2 | H16: -2 | L16: M | M16: 6 | N16: 1.6 | O16: 55 | P16: Y | T16: 2 | U16: SF Gather Info | X16: Bothan | Y16: 11 | Z16: 16 | AA16: 45 | AB16: 65 | AC16: 84 | AD16: 85+ | AE16: 1
A17: F | B17: 13 | C17: w | D17: P | E17: Caamasi | F17: -2 | H17: -2 | J17: 4 | L17: M | M17: 6 | N17: 1.8 | O17: 80 | P17: Y | V17: reroll Persuasion, best | W17: stan Persuasion v. Will to move -1 down track, share memories | X17: Caamasi | Y17: 11 | Z17: 15 | AA17: 49 | AB17: 76 | AC17: 89 | AD17: 90+ | AF17: 1 | AH17: 1
A18: K | B18: 12 | C18: w | D18: P | E18: Cathar | G18: 2 | I18: -2 | L18: M | M18: 8 | N18: 1.7 | O18: 85 | P18: Y | V18: Climb & Stealth as class skills | W18: claw d6, 1/encounter when damages w/melee atk, make claw atk as swif | X18: Cathar | Y18: 10 | Z18: 15 | AA18: 40 | AB18: 62 | AC18: 79 | AD18: 80+
A19: J | B19: 106 | C19: w | D19: N | E19: Celegian | G19: -2 | I19: 2 | L19: M | M19: 6/10 | P19: Y | V19: reroll Swim mtr, can take 10 | W19: cyanogen breather, can use Telepathy untrained w/out force-sensitivity w/in 60 sq & LOS | X19: Celegian | AF19: 1 | AH19: 1
A20: CR | B20: 24 | C20: w | D20: P | E20: Cerean | G20: -2 | I20: 2 | J20: 2 | L20: M | M20: 6 | N20: 2/1.8 | O20: 78/58 | P20: Y | U20: SF Initiative | V20: reroll Initiative, mtr | X20: Cerean | Y20: 10 | Z20: 15 | AA20: 35 | AB20: 53 | AC20: 64 | AD20: 65+ | AE20: 1
A21: L | B21: 211 | C21: w | D21: N | E21: Chadra-Fan | J21: -2 | K21: 2 | L21: S | M21: 4 | P21: Y | Q21: D | V21: Mechanics class skill, reroll Mechanics, mtr | W21: with a jury-rig add +1d8 hp | X21: Chadra-Fan | AE21: 1 | AF21: 1
A22: UR | B22: 11 | C22: w | D22: P | E22: Chadra-Fan | G22: 2 | J22: -2 | L22: S | M22: 4 | N22: 1 | O22: 20 | P22: Y | Q22: D | V22: reroll Perception, mtr | W22: with a jury-rig add +1d8 hp | X22: Chadra-Fan | Y22: 11 | Z22: 15 | AA22: 40 | AB22: 59 | AC22: 79 | AD22: 80+ | AE22: 1 | AF22: 1
A23: L | B23: 10 | C23: w | D23: P | E23: Chagrian | F23: 2 | G23: -2 | L23: M | M23: 6 | N23: 1.9 | O23: 95/85 | P23: Y | Q23: L | W23: breathe underwater, +5 Fort Def v. radiation | X23: Chagrian | Y23: 12 | Z23: 16 | AA23: 42 | AB23: 56 | AC23: 75 | AD23: 76+ | AE23: 2 | AF23: 2
A24: C | B24: 159 | C24: w | D24: N | E24: Chagrian | F24: 2 | G24: -2 | L24: M | M24: 6 | N24: 1.9 | O24: 95/85 | P24: Y | Q24: L | W24: breathe underwater, +5 Fort Def v. radiation | X24: Chagrian | Y24: 12 | Z24: 16 | AA24: 42 | AB24: 56 | AC24: 75 | AD24: 76+ | AE24: 2 | AF24: 2
A25: L | B25: 11 | C25: w | D25: P | E25: Chiss | I25: 2 | L25: M | M25: 6 | N25: 1.85/1.7 | O25: 85/65 | P25: N | Q25: L | V25: +1 at first level | X25: Chiss | Y25: 10 | Z25: 13 | AA25: 50 | AB25: 62 | AC25: 79 | AD25: 80+
A26: F | B26: 192 | C26: w | D26: N | E26: Chiss | I26: 2 | L26: M | M26: 6 | N26: 1.85/1.7 | O26: 85/65 | P26: N | Q26: L | V26: +1 at first level | X26: Chiss | Y26: 10 | Z26: 13 | AA26: 50 | AB26: 62 | AC26: 79 | AD26: 80+ | AF26: 1
A27: UR | B27: 126 | C27: w | D27: P | E27: Chiss | I27: 2 | L27: M | M27: 6 | N27: 1.85/1.7 | O27: 85/65 | P27: N | Q27: L | V27: +1 at first level | X27: Chiss | Y27: 10 | Z27: 13 | AA27: 50 | AB27: 62 | AC27: 79 | AD27: 80+ | AE27: * | AF27: *
A28: T | B28: 34 | C28: w | D28: N | E28: Chistori | F28: 2 | G28: -2 | L28: M | M28: 6 | P28: N | R28: DR2 | W28: Rage, in cold -5 Fort | X28: Chistori
A29: SV | B29: 7 | C29: w | D29: P | E29: Clawdite | F29: -2 | K29: 2 | L29: M | M29: 6 | N29: 1.8/1.6 | O29: 65/55 | P29: Y | W29: Deception to disguise +10, 1/encounter Deception v. Will Def = -5 opp atk | X29: Clawdite | Y29: 11 | Z29: 15 | AA29: 30 | AB29: 49 | AC29: 69 | AD29: 70+
A30: C | B30: 91 | C30: w | D30: N | E30: Clone, Republic | L30: M | M30: 6 | N30: 1.8/1.6 | O30: 75/55 | P30: Y | U30: +1 feat at 1st | V30: +1 skill at 1st | W30: Str 15, Dex 13, Con 10, Int 12, Wis 10, Cha 8, add +2 to one ability | X30: Clone, Republic | AE30: 1
A31: L | B31: 12 | C31: w | D31: P | E31: Codru-Ji | L31: M | M31: 6 | N31: 1.6 | O31: 65/60 | P31: Y | U31: Dual Weapon Mastery I | W31: can hold four items at once, +5 grab attacks | X31: Codru-Ji | Y31: 8 | Z31: 12 | AA31: 44 | AB31: 60 | AC31: 84 | AD31: 85+
A32: J | B32: 128 | C32: w | D32: N | E32: Croke (best guess) | L32: D | M32: 4 | P32: Y | W32: as swif appear as S or M creature, Use the Force v. Perception only if Croke stunned or unconscious | X32: Croke (best guess)
A33: GW | B33: 12 | C33: w | D33: P | E33: Dashade | G33: 2 | J33: -2 | K33: -2 | L33: M | M33: 6 | N33: 1.85 | O33: 90 | P33: N | W33: +5 Fort Def v. radiation/heat/cold, reroll Persuasion to intimidate, +5 Fort Def & Will Def v. Use the Force | X33: Dashade | Y33: 10 | Z33: 15 | AA33: 44 | AB33: 69 | AC33: 84 | AD33: 85+ | AE33: 2
A34: GI | B34: 11 | C34: w | D34: P | E34: Defel | F34: -2 | I34: 2 | L34: S | M34: 6 | N34: 1.4 | O34: 45 | P34: Y | W34: in shadowy illumination or darker = Defel in total concealment, must wear special visor | X34: Defel | Y34: 6 | Z34: 10 | AA34: 49 | AB34: 74 | AC34: 89 | AD34: 90+ | AE34: 2
A35: L | B35: 214 | C35: w | D35: N | E35: Devaronian (females) | G35: -2 | I35: 2 | J35: 2 | L35: M | M35: 6 | P35: Y | U35: SF Deception | W35: 1/encounter stan Perception DC15 to gain +1 atk v. observed | X35: =(E35) -> Devaronian (females)
A36: W | C36: w | D36: N | E36: Devaronian (females) | G36: -2 | I36: 2 | J36: 2 | L36: M | M36: 6 | P36: Y | U36: SF Deception | W36: 1/encounter stan Perception DC15 to gain +1 atk v. observed | X36: Devaronian (females)
A37: L | B37: 214 | C37: w | D37: N | E37: Devaronian (males) | G37: 2 | I37: -2 | J37: -2 | L37: M | M37: 6 | P37: Y | U37: SF Deception | W37: 1/encounter stan Perception DC15 to gain +1 atk v. observed | X37: Devaronian (males) | AE37: *
A38: W | C38: w | D38: N | E38: Devaronian (males) | G38: 2 | I38: -2 | J38: -2 | L38: M | M38: 6 | P38: Y | U38: SF Deception | W38: 1/encounter stan Perception DC15 to gain +1 atk v. observed | X38: Devaronian (males)
A39: K | B39: 12 | C39: w | D39: P | E39: Draethos | H39: 2 | K39: -2 | L39: M | M39: 6 | N39: 1.8 | O39: 70 | P39: Y | Q39: L | R39: 1 | U39: gain WP Advanced Melee Weapons | W39: Telepathy +5 | X39: Draethos | Y39: 12 | Z39: 17 | AA39: 399 | AB39: 699 | AC39: 780 | AD39: 781+
A40: SGD | B40: 11 | C40: w | D40: P | E40: Droid, Astromech Droid | I40: 2 | K40: -2 | L40: S | M40: 6/4 | P40: Y | V40: trained in Mechanics, SF Mechanics or SF Use Comp | W40: Droid, start with bonus equipment see SGD | X40: Droid, Astromech Droid
A41: SGD | B41: 11 | C41: w | D41: P | E41: Droid, Battle Droid | G41: 2 | I41: -2 | L41: M | M41: 6 | P41: Y | U41: 1 Armor & 1 Weapon Proficiency | W41: Droid, start with bonus equipment see SGD | X41: Droid, Battle Droid
A42: SGD | B42: 11 | C42: w | D42: P | E42: Droid, Labor Droid | F42: 2 | I42: -2 | L42: M | M42: 6 | P42: Y | V42: reroll Strength checks & skill, keep better | W42: Droid, start with bonus equipment see SGD | X42: Droid, Labor Droid
A43: SGD | B43: 12 | C43: w | D43: P | E43: Droid, Mechanic Droid | I43: 2 | K43: -2 | L43: M | M43: 6 | P43: Y | V43: trained in Mechanics, reroll Mechanics | W43: Droid, start with bonus equipment see SGD | X43: Droid, Mechanic Droid
A44: SGD | B44: 12 | C44: w | D44: P | E44: Droid, Medical Droid | F44: -2 | I44: 2 | L44: M | M44: 6 | P44: Y | V44: trained in Treat Injury or Know (life sciences) = SF Treat Injury or Know (life sciences) | W44: Droid, start with bonus equipment see SGD | X44: Droid, Medical Droid | AE44: 1
A45: SGD | B45: 12 | C45: w | D45: P | E45: Droid, Probe Droid | J45: 2 | K45: -2 | L45: M | M45: 6 | P45: Y | V45: trained in Perception, SF Perception or Stealth | W45: Droid, start with bonus equipment see SGD | X45: Droid, Probe Droid | AE45: 4 | AF45: 1
A46: SGD | B46: 13 | C46: w | D46: P | E46: Droid, Protocol Droid | G46: -2 | J46: 2 | K46: 2 | L46: M | M46: 6 | P46: Y | V46: trained in Persuasion, select Skill Training Knowledge (bureaucracy, galactic lore, or social sciences) | W46: Droid, start with bonus equipment see SGD | X46: Droid, Protocol Droid
A47: SGD | B47: 13 | C47: w | D47: P | E47: Droid, Service Droid | F47: -2 | K47: 2 | L47: M | M47: 6 | P47: Y | V47: select Skill Training Perception, Knowledge (bureaucracy) or Knowledge (galactic lore) | W47: Droid, start with bonus equipment see SGD | X47: Droid, Service Droid | AE47: 4 | AF47: 2
A48: C | B48: 10 | C48: w | D48: P | E48: Dug | G48: 2 | K48: -2 | L48: S | M48: 6 | N48: 1 | O48: 35/30 | P48: N | V48: reroll Climb or Jump, mtr, can take 10 on Climb & Jump | X48: Dug | Y48: 9 | Z48: 14 | AA48: 44 | AB48: 59 | AC48: 74 | AD48: 75+ | AF48: 2
A49: CR | B49: 25 | C49: w | D49: P | E49: Duros | G49: 2 | H49: -2 | I49: 2 | L49: M | M49: 6 | N49: 1.8 | O49: 70 | P49: Y | V49: reroll Pilot, mtr | X49: Duros | Y49: 9 | Z49: 14 | AA49: 35 | AB49: 49 | AC49: 69 | AD49: 70+ | AF49: 1
A50: UR | B50: 127 | C50: w | D50: N | E50: Ebruchi | F50: 2 | H50: 2 | J50: -2 | K50: -2 | L50: M | M50: 6 | P50: N | T50: 2 | U50: Improved Damage Threshold w/Con 13 | W50: 1/enc Persuasion to intimidate to move target -1 track instead of intimidate (target must be w/in 6sq) | X50: Ebruchi | AE50: 1
A51: GI | B51: 133 | C51: w | D51: N | E51: Elomin | I51: 2 | K51: -2 | L51: M | M51: 6 | P51: Y | W51: 1/enc spend swif to allow each ally w/in 12 sq to move half spd as reac, +5 Will Def v. mind-affecting effects | X51: Elomin
A52: CR | B52: 25 | C52: w | D52: P | E52: Ewok | F52: -2 | G52: 2 | L52: S | M52: 4 | N52: 1 | O52: 30 | P52: N | U52: SF Survival | V52: reroll Stealth, mtr | W52: Primitive, Scent | X52: =(E52) -> Ewok | Y52: 9 | Z52: 13 | AA52: 29 | AB52: 44 | AC52: 59 | AD52: 60+ | AE52: 4
A53: SV | B53: 8 | C53: w | D53: P | E53: Falleen | J53: -2 | K53: 2 | L53: M | M53: 6 | N53: 1.6/1.4 | O53: 55/45 | P53: Y | W53: hold breath (25x Con score), pheromones (see SV p8), +5 v. Falleen pheromones | X53: =(E53) -> Falleen | Y53: 18 | Z53: 36 | AA53: 72 | AB53: 139 | AC53: 249 | AD53: 250+ | AF53: 2
A54: K | B54: 13 | C54: w | D54: P | E54: Feeorin | F54: 2 | G54: -2 | H54: 2 | J54: -2 | K54: -2 | L54: M | M54: 6 | N54: 2.2 | O54: 125 | P54: Y | Q54: L | S54: 2 | W54: 1/encounter after successful melee Atk thresh 5 lower, can use 2nd Wind when unconscious, Stronger by Age | X54: =(E54) -> Feeorin | Y54: 11 | Z54: 16 | AA54: 194 | AB54: 324 | AC54: 399 | AD54: 400+ | AF54: 2
A55: F | B55: 14 | C55: w | D55: P | E55: Felucian | H55: 2 | I55: -2 | L55: M | M55: 6 | N55: 1.9 | O55: 90 | P55: N | Q55: L | U55: Force Sensitivity | V55: reroll Stealth, best | W55: breathe underwater, Force Blast, Primitive, Weapon familiarity (skullblade) | X55: =(E55) -> Felucian | Y55: 8 | Z55: 19 | AA55: 49 | AB55: 70 | AC55: 85 | AD55: 86+ | AE55: 3
A56: GI | B56: 12 | C56: w | D56: P | E56: Fosh | G56: 2 | H56: -2 | K56: 2 | L56: S | M56: 6 | N56: 1.3 | O56: 40 | P56: Y | V56: reroll Deception, mtr | W56: always considered having medpac or med kit, can perform trained only Treat injury uses untrained (from glands) | X56: Fosh | Y56: 11 | Z56: 17 | AA56: 55 | AB56: 70 | AC56: 84 | AD56: 85+
A57: CR | B57: 26 | C57: w | D57: P | E57: Gamorrean | F57: 2 | G57: -2 | J57: -2 | L57: M | M57: 6 | N57: 1.8 | O57: 140 | P57: Y | S57: 2 | U57: Improved Damage Threshold | W57: Primitive | X57: =(E57) -> Gamorrean | Y57: 6 | Z57: 12 | AA57: 29 | AB57: 39 | AC57: 44 | AD57: 45+ | AE57: 3
A58: SV | B58: 8 | C58: w | D58: P | E58: Gand | J58: 2 | K58: -2 | L58: M | M58: 6 | N58: 1.6/1.4 | O58: 80/70 | P58: N | Q58: D | W58: when using second wind regain extra 5+level, special equipment, limb regeneration | X58: =(E58) -> Gand | Y58: 9 | Z58: 14 | AA58: 29 | AB58: 45 | AC58: 60 | AD58: 61+ | AE58: 1
A59: C | B59: 11 | C59: w | D59: P | E59: Gen'Dai | H59: 4 | J59: -2 | K59: -2 | L59: L | M59: 8 | N59: 2.5 | O59: 145 | P59: Y | W59: 2nd Wind +5hp, hibernation, mental instability after Adult, regeneration 1d10 min, resilient physiology (double thresh if fatal) | X59: =(E59) -> Gen'Dai | Y59: 9 | Z59: 200 | AA59: 999 | AB59: 1999 | AC59: 3999 | AD59: 4000+ | AE59: 5 | AF59: 2
A60: C | B60: 181 | C60: w | D60: N | E60: Geonosian | F60: 2 | I60: -2 | K60: -2 | L60: M | M60: 6/6 | P60: N | Q60: L | W60: flight, Fort Def +5 v. radiation | X60: =(E60) -> Geonosian
A61: GI | B61: 13 | C61: w | D61: P | E61: Givin | F61: -2 | I61: 2 | L61: M | M61: 6 | N61: 1.8 | O61: 70 | P61: Y | R61: DR2 | S61: 2 | V61: reroll Knowledge (any), mtr | W61: Immune to vacuum and inhaled chemicals/poisons | X61: Givin | Y61: 10 | Z61: 14 | AA61: 48 | AB61: 64 | AC61: 79 | AD61: 80+
A62: GI | B62: 14 | C62: w | D62: P | E62: Gotal | L62: M | M62: 6 | N62: 2 | O62: 85 | P62: Y | Q62: L | W62: read emotions of any sentient w/in 6sq as stan Perception v. Will, can use Sense Force & Surroundings of Use the Force untrained | X62: Gotal | Y62: 9 | Z62: 12 | AA62: 40 | AB62: 60 | AC62: 75 | AD62: 76+ | AE62: * | AF62: * | AG62: * | AH62: *
A63: F | B63: 15 | C63: w | D63: P | E63: Gran | I63: -2 | K63: 2 | L63: M | M63: 6 | N63: 1.6 | O63: 80 | P63: Y | Q63: D | U63: Precise Shot with PB Shot | W63: no distance penalties on Perception 50sq, can aim by taking one swif action 1/encounter | X63: =(E63) -> Gran | Y63: 10 | Z63: 15 | AA63: 40 | AB63: 62 | AC63: 79 | AD63: 80+ | AF63: 2
A64: CR | B64: 26 | C64: w | D64: P | E64: Gungan | G64: 2 | I64: -2 | K64: -2 | L64: M | M64: 6/4 | N64: 1.8 | O64: 70 | P64: Y | Q64: L | R64: 2 | V64: reroll Swim mtr, can take 10 | W64: proficient with atlatl & cesta with Simple, hold breath | X64: =(E64) -> Gungan | Y64: 12 | Z64: 15 | AA64: 35 | AB64: 54 | AC64: 64 | AD64: 65+ | AE64: 1 | AF64: 2 | AH64: 2
A65: GI | B65: 15 | C65: w | D65: P | E65: Herglic | F65: 4 | G65: -4 | L65: L | M65: 6 | N65: 2.2 | O65: 110 | P65: Y | U65: SF Gather Info | W65: Sturdy (gain extra hp with second wind = 5+one-half level) | X65: Herglic | Y65: 15 | Z65: 19 | AA65: 55 | AB65: 79 | AC65: 95 | AD65: 96+ | AE65: 2 | AF65: 1 | AH65: 1
A66: SV | B66: 155 | C66: w | D66: N | E66: Houk | F66: 2 | H66: 2 | J66: -2 | K66: -2 | L66: M | M66: 6 | P66: Y | R66: 1 | W66: can use Str mod to intimidate instead of Cha mod | X66: =(E66) -> Houk | AE66: 4
A67: CR | B67: 23 | C67: w | D67: P | E67: Human | L67: M | M67: 6 | N67: 1.8/1.6 | O67: 75/55 | P67: Y | U67: +1 feat at 1st | V67: +1 skill at 1st | X67: Human | Y67: 11 | Z67: 15 | AA67: 40 | AB67: 59 | AC67: 79 | AD67: 80+ | AF67: 1
A68: CR | B68: 284 | C68: w | D68: N | E68: Hutt | F68: 2 | G68: -6 | H68: 2 | I68: 2 | L68: L | M68: 2 | P68: Y | V68: reroll Persuasion, best | W68: Will +5 v. Use the Force, can't be tripped or knocked prone | X68: Hutt | AE68: 2
A69: C | B69: 12 | C69: w | D69: P | E69: Iktotchi | H69: 2 | K69: -2 | L69: M | M69: 6 | N69: 1.8 | O69: 80 | P69: Y | R69: 1 | V69: reroll Pilot, mtr | W69: 1/encounter as reac +2 Ref Def | X69: Iktotchi | Y69: 13 | Z69: 18 | AA69: 44 | AB69: 70 | AC69: 89 | AD69: 90+ | AE69: 1 | AF69: 2 | AH69: 2
A70: UR | B70: 12 | C70: w | D70: P | E70: Ishi Tib | I70: 2 | L70: M | M70: 6 | N70: 1.8 | O70: 60 | P70: Y | Q70: L | V70: reroll Knowledge (life), mtr, reroll Swim & take 10 | W70: breathe underwater, beak d6 | X70: Ishi Tib | Y70: 6 | Z70: 11 | AA70: 39 | AB70: 59 | AC70: 79 | AD70: 80+ | AF70: 1
A71: CR | B71: 27 | C71: w | D71: P | E71: Ithorian | G71: -2 | J71: 2 | K71: 2 | L71: M | M71: 6 | N71: 2 | O71: 90 | P71: Y | T71: 2 | U71: SF Knowledge (life sciences) | V71: reroll Survival, mtr | W71: Bellow stan d20+cl v. Fort Def in 6sq cone 3d6 dam or half | X71: Ithorian | Y71: 13 | Z71: 17 | AA71: 44 | AB71: 69 | AC71: 84 | AD71: 85+
A72: SV | B72: 9 | C72: w | D72: P | E72: Jawa | F72: -2 | G72: 2 | L72: S | M72: 4 | N72: 1 | O72: 25/20 | P72: N | Q72: D | V72: Mechanics is class skill | W72: reroll Mechanics mtr, can reroll Survival v. heat & keep better, with ion weapon add half level to damage | X72: Jawa | Y72: 9 | Z72: 14 | AA72: 39 | AB72: 59 | AC72: 79 | AD72: 80+
A73: C | B73: 12 | C73: w | D73: P | E73: Kaleesh | G73: -2 | H73: 2 | I73: -2 | K73: 2 | L73: M | M73: 6 | N73: 1.8/1.6 | O73: 80/75 | P73: Y | Q73: D | U73: SF Survival | V73: reroll Endurance, mtr | W73: +5 Will Def v. mind-affecting effects | X73: Kaleesh | Y73: 9 | Z73: 24 | AA73: 40 | AB73: 55 | AC73: 79 | AD73: 80+ | AE73: 2
A74: C | B74: 13 | C74: w | D74: P | E74: Kaminoan | I74: 2 | J74: -2 | L74: M | M74: 6 | N74: 2.7/2.1 | O74: 70/65 | P74: Y | S74: 2 | U74: SF Treat Injury | X74: Kaminoan | Y74: 6 | Z74: 10 | AA74: 39 | AB74: 59 | AC74: 79 | AD74: 80+ | AF74: 1
A75: CR | B75: 28 | C75: w | D75: P | E75: Kel Dor | G75: 2 | H75: -2 | J75: 2 | L75: M | M75: 6 | N75: 1.8 | O75: 70 | P75: Y | Q75: L | V75: reroll Use the Force to sense feelings, best | X75: Kel Dor | Y75: 11 | Z75: 15 | AA75: 44 | AB75: 59 | AC75: 69 | AD75: 70+
A76: C | B76: 14 | C76: w | D76: P | E76: Kerkoiden | H76: -2 | J76: 2 | L76: M | M76: 6 | N76: 1.4 | O76: 55 | P76: Y | W76: +2 dam v. target that has been damaged since last turn, can use Wis to replace Cha on Deception & Persuasion | X76: Kerkoiden | Y76: 11 | Z76: 18 | AA76: 45 | AB76: 70 | AC76: 90 | AD76: 91+ | AE76: 1
A77: K | B77: 14 | C77: w | D77: P | E77: Khil | H77: -2 | I77: 2 | K77: 2 | L77: M | M77: 6 | N77: 1.5 | O77: 60 | P77: Y | W77: 1/encounter can treat skill as if taken 10 (see book), can aid another as a swif action (see book), do not starve | X77: Khil | Y77: 10 | Z77: 15 | AA77: 49 | AB77: 74 | AC77: 89 | AD77: 90+
A78: UR | B78: 131 | C78: w | D78: N | E78: Killik | H78: 2 | I78: -2 | L78: M | M78: 6 | P78: N | Q78: L | R78: 1 | W78: Joiners (target to 0 hp see p.131), telepathy w/Killiks 1 km, multiple atks reduced by 2, claws d6 | X78: Killik | AE78: 1 | AF78: 1 | AG78: 1 | AH78: 1
A79: K | B79: 15 | C79: w | D79: P | E79: Kissai | J79: -2 | K79: 2 | L79: M | M79: 6 | N79: 1.8 | O79: 90 | P79: Y | U79: lanvorak simple not exotic | W79: if receive morale or insight bonus add +1, 1/encounter Uncanny Dodge I or II | X79: Kissai | Y79: 10 | Z79: 15 | AA79: 30 | AB79: 42 | AC79: 59 | AD79: 60+ | AE79: 1 | AF79: 1 | AG79: 1 | AH79: 1
A80: L | B80: 13 | C80: w | D80: P | E80: Klatoonian | H80: 2 | I80: -2 | J80: -2 | L80: M | M80: 6 | N80: 1.8 | O80: 80/75 | P80: N | T80: 2 | X80: Klatoonian | Y80: 9 | Z80: 14 | AA80: 49 | AB80: 69 | AC80: 89 | AD80: 90+ | AE80: 4 | AF80: 2 | AH80: 1
A81: J | B81: 111 | C81: w | D81: N | E81: Krevaaki | J81: 2 | K81: -2 | L81: M | M81: 6 | P81: Y | R81: 1 | S81: 1 | V81: Climb +2 | W81: Grapple +2, Sense Motive from Perception against Krevaaki is -5 | X81: Krevaaki
A82: UR | B82: 12 | C82: w | D82: P | E82: Krevaaki | J82: 2 | K82: -2 | L82: M | M82: 6 | N82: 2 | O82: 65 | P82: Y | R82: 1 | S82: 1 | U82: SF Climb | V82: Climb +2 | W82: Grapple +2, Sense Motive from Perception against Krevaaki is -5 | X82: Krevaaki | Y82: 12 | Z82: 17 | AA82: 62 | AB82: 94 | AC82: 129 | AD82: 130+ | AF82: 1 | AH82: 1
A83: UR | B83: 135 | C83: w | D83: N | E83: Lugubraa | F83: 2 | G83: -2 | H83: 2 | J83: -2 | L83: M | M83: 6 | P83: N | Q83: D | U83: Improved Damage Threshold | W83: d6 claws, d4 bite, lockbite = successful grapple atk for +5 grapple w/same target, after 50 years age +d4+2 Int pts, max 8 before 50 | X83: Lugubraa | AE83: 1 | AF83: 3 | AH83: 3
A84: GW | B84: 12 | C84: w | D84: P | E84: Lurmen | F84: -2 | J84: 2 | L84: S | M84: 4 | N84: 1 | O84: 20 | P84: Y | V84: take 10 on Climb | W84: primitive, if trained in Treat Injury reduce DCs by Wis mod, Roller: swif +4 spd (limited actions) swif to emerge | X84: Lurmen | Y84: 12 | Z84: 18 | AA84: 35 | AB84: 60 | AC84: 75 | AD84: 76+
A85: T | B85: 117 | C85: w | D85: N | E85: Mantellian Savrip | F85: 4 | G85: -2 | H85: 4 | I85: -4 | J85: -4 | K85: -4 | L85: L | M85: 8 | P85: N | R85: 2 | W85: claw d6, poison (d20+level against Fort Def), primitive, rage | X85: Mantellian Savrip | AE85: 3 | AF85: 2
A86: K | B86: 15 | C86: w | D86: P | E86: Massassi | F86: 4 | I86: -2 | J86: -2 | K86: -2 | L86: M | M86: 6 | N86: 1.9 | O86: 95 | P86: N | U86: SF Survival | W86: 1/encounter with a morale bonus gain hp 4x level, primitive, 1/encounter Uncanny Dodge I or II, lanvorak simple not exotic | X86: Massassi | Y86: 10 | Z86: 13 | AA86: 25 | AB86: 35 | AC86: 50 | AD86: 51+ | AE86: 3 | AF86: 2
A87: K | B87: 16 | C87: w | D87: P | E87: Miraluka | G87: -2 | I87: 2 | L87: M | M87: 6 | N87: 1.8 | O87: 75 | P87: Y | U87: Force Training with Use the Force | W87: Force Sight | X87: Miraluka | Y87: 11 | Z87: 15 | AA87: 44 | AB87: 69 | AC87: 84 | AD87: 85+ | AE87: 1
A88: T | B88: 31 | C88: w | D88: N | E88: Miraluka | G88: -2 | I88: 2 | L88: M | M88: 6 | N88: 1.8 | O88: 75 | P88: Y | U88: Force Training with Use the Force | W88: Force Sight | X88: Miraluka | Y88: 11 | Z88: 15 | AA88: 44 | AB88: 69 | AC88: 84 | AD88: 85+ | AE88: 2
A89: CR | B89: 28 | C89: w | D89: P | E89: Mon Calamari | H89: -2 | I89: 2 | J89: 2 | L89: M | M89: 6/4 | N89: 1.8 | O89: 72 | P89: Y | Q89: L | U89: SF Perception | V89: reroll Swim mtr, can take 10 | W89: breathe underwater | X89: Mon Calamari | Y89: 11 | Z89: 16 | AA89: 40 | AB89: 57 | AC89: 79 | AD89: 80+ | AF89: 1
A90: GI | B90: 16 | C90: w | D90: P | E90: Mrlssi | F90: -2 | I90: 2 | K90: 2 | L90: S | M90: 4 | N90: 1.2 | O90: 40 | P90: Y | U90: SF Persuasion | V90: Mechanics is class skill, bonus 1 trained Knowledge skill at 1st level | X90: Mrlssi | Y90: 4 | Z90: 8 | AA90: 35 | AB90: 69 | AC90: 89 | AD90: 90+
A91: L | B91: 14 | C91: w | D91: P | E91: Nagai | G91: 2 | H91: -2 | K91: 2 | L91: M | M91: 6 | N91: 1.8/1.6 | O91: 60/45 | P91: Y | R91: 2 | U91: WP tehk'la blades with Simple | V91: reroll Persuasion, mtr | X91: =(E91) -> Nagai | Y91: 11 | Z91: 18 | AA91: 44 | AB91: 60 | AC91: 74 | AD91: 75+
A92: C | B92: 15 | C92: w | D92: P | E92: Nautolan | H92: 2 | I92: -2 | J92: -2 | L92: M | M92: 6/4 | N92: 1.8 | O92: 75 | P92: Y | Q92: L | R92: DR2 | V92: reroll Swim mtr, can take 10 | W92: breathe underwater, reroll Perception to sense deception or influence mtr unless underwater take best | X92: Nautolan | Y92: 9 | Z92: 14 | AA92: 40 | AB92: 54 | AC92: 69 | AD92: 70+ | AE92: 3 | AF92: 1
A93: W | C93: w | D93: P | E93: Nazren | F93: 2 | G93: -2 | H93: 2 | K93: -2 | L93: M | M93: 6 | N93: 2.1 | O93: 130 | P93: Y | W93: 1/encounter if to be moved down track the Nazren may reduce the steps by 1 | X93: Nazren | Y93: 15 | Z93: 30 | AA93: 200 | AB93: 275 | AC93: 299 | AD93: 300+
A94: UR | B94: 18 | D94: N | E94: Near-Human Ability adjustment | F94: 2/-2 | G94: 2/-2 | H94: 2/-2 | I94: 2/-2 | J94: 2/-2 | K94: 2/-2 | L94: M | M94: 6 | P94: Y* | U94: +1 at first level* | V94: +1 at first level* | W94: one +2, one -2 | X94: Near-Human Ability adjustment | AE94: 1
A95: UR | B95: 18 | D95: N | E95: Near-Human Additional arms | L95: M | M95: 6 | P95: Y* | U95: +1 at first level* | V95: +1 at first level* | W95: multiple atk penalties reduced by 2 | X95: Near-Human Additional arms | AE95: 4
A96: UR | B96: 163 | C96: X | D96: N | E96: Near-Human Altiri | L96: M | M96: 6 | P96: Y | V96: +1 at first level | W96: Cha bonus doubled w/Persuasion on Humans & near-Humans | X96: Near-Human Altiri
A97: UR | B97: 163 | C97: X | D97: N | E97: Near-Human Anarrian | L97: M | M97: 6 | P97: Y | U97: +1 at first level | W97: 1/enc: 1. reroll Str check/skill using Str mod x2 or 2. add 2 to one dam roll w/melee & not Weapon Finesse | X97: Near-Human Anarrian | AE97: 1
A98: UR | B98: 18 | D98: N | E98: Near-Human Biotech augmentation | L98: M | M98: 6 | P98: Y* | U98: +1 at first level* | V98: +1 at first level* | W98: select bio-implant LECG 67-68 | X98: Near-Human Biotech augmentation | AE98: 10 | AF98: 1 | AG98: 1
A99: UR | B99: 18 | D99: N | E99: Near-Human Breathe underwater | L99: M | M99: 6 | P99: Y* | U99: +1 at first level* | V99: +1 at first level* | W99: cannot drown in water | X99: Near-Human Breathe underwater
A100: UR | B100: 18 | D100: N | E100: Near-Human Climate adaptation | L100: M | M100: 6 | P100: Y* | U100: +1 at first level* | V100: +1 at first level* | W100: resistant to specific climate, can reroll Endurance or Survival v. environment | X100: Near-Human Climate adaptation | AF100: 1
A101: UR | B101: 18 | D101: N | E101: Near-Human Conductive | L101: M | M101: 6 | P101: Y* | U101: +1 at first level* | V101: +1 at first level* | W101: unarmed 1d6 dam | X101: Near-Human Conductive
A102: UR | B102: 18 | D102: N | E102: Near-Human Cultural cybernetics | L102: M | M102: 6 | P102: Y* | U102: +1 at first level* | V102: +1 at first level* | W102: select one cybernetic enhancement | X102: Near-Human Cultural cybernetics
A103: UR | B103: 18 | D103: N | E103: Near-Human Darkvision | L103: M | M103: 6 | P103: Y* | Q103: D | U103: +1 at first level* | V103: +1 at first level* | X103: Near-Human Darkvision | AE103: 1 | AF103: 2
A104: UR | B104: 18 | D104: N | E104: Near-Human Empath | L104: M | M104: 6 | P104: Y* | U104: +1 at first level* | V104: +1 at first level* | W104: use telepathy untrained, can sense emotions if Use the Force exceeds target's Will Def | X104: Near-Human Empath | AE104: 1
A105: UR | B105: 18 | D105: N | E105: Near-Human Expert swimmer | L105: M | M105: 6 | P105: Y* | U105: +1 at first level* | V105: +1 at first level* | W105: reroll Swim, take 10 on Swim | X105: Near-Human Expert swimmer
A106: UR | B106: 18 | D106: N | E106: Near-Human Heightened awareness | L106: M | M106: 6 | P106: Y* | U106: +1 at first level* | V106: +1 at first level* | W106: reroll Perception | X106: Near-Human Heightened awareness | AE106: 1 | AF106: 1
A107: UR | B107: 18 | D107: N | E107: Near-Human Low-light vision | L107: M | M107: 6 | P107: Y* | Q107: L | U107: +1 at first level* | V107: +1 at first level* | X107: Near-Human Low-light vision | AE107: 3
A108: UR | B108: 18 | D108: N | E108: Near-Human Natural armor | L108: M | M108: 6 | P108: Y* | R108: 1 | U108: +1 at first level* | V108: +1 at first level* | X108: Near-Human Natural armor | AE108: 1
A109: UR | B109: 18 | D109: N | E109: Near-Human Natural weapon | L109: M | M109: 6 | P109: Y* | U109: +1 at first level* | V109: +1 at first level* | W109: unarmed 1d6 dam | X109: Near-Human Natural weapon
A110: UR | B110: 18 | D110: N | E110: Near-Human Naturally acrobatic | L110: M | M110: 6 | P110: Y* | U110: +1 at first level* | V110: +1 at first level* | W110: considered trained in Acrobatics | X110: Near-Human Naturally acrobatic | AE110: 1
A111: UR | B111: 179 | C111: X | D111: N | E111: Near-Human O'reenians | L111: M | M111: 6 | V111: reroll Perception, reroll Endurance | X111: Near-Human O'reenians | AF111: 4 | AH111: 4
A112: UR | B112: 18 | D112: N | E112: Near-Human Persistent | L112: M | M112: 6 | P112: Y* | U112: +1 at first level* | V112: +1 at first level* | W112: reroll Endurance | X112: Near-Human Persistent | AE112: 1
A113: UR | B113: 18 | D113: N | E113: Near-Human Quick | L113: M | M113: 6 | P113: Y* | U113: +1 at first level* | V113: +1 at first level* | W113: speed +1 | X113: Near-Human Quick | AE113: 4 | AF113: 4
A114: UR | B114: 18 | D114: N | E114: Near-Human Quick healing | L114: M | M114: 6 | P114: Y* | U114: +1 at first level* | V114: +1 at first level* | W114: at end of enc regain hp = +1d4 + Con mod | X114: Near-Human Quick healing | AE114: 1
A115: UR | B115: 18 | D115: N | E115: Near-Human Resistant | L115: M | M115: 6 | P115: Y* | S115: 2 | U115: +1 at first level* | V115: +1 at first level* | W115: GM can restrict to specific hazard | X115: Near-Human Resistant | AE115: 4
A116: UR | B116: 18 | D116: N | E116: Near-Human Scent | L116: M | M116: 6 | P116: Y* | U116: +1 at first level* | V116: +1 at first level* | W116: ignore concealment w/in 10sq for Perception & no penalty to Track for visibility | X116: Near-Human Scent | AE116: 5 | AF116: 7
A117: UR | B117: 18 | D117: N | E117: Near-Human Spring step | L117: M | M117: 6 | P117: Y* | U117: +1 at first level* | V117: +1 at first level* | W117: reduce sq for running start by 2 for High Jump or Long Jump | X117: Near-Human Spring step | AF117: 2
A118: UR | B118: 18 | D118: N | E118: Near-Human Strength surge | L118: M | M118: 6 | P118: Y* | U118: +1 at first level* | V118: +1 at first level* | W118: 1/enc: 1. reroll Str check/skill using Str mod x2 or 2. add 2 to one dam roll w/melee & not Weapon Finesse | X118: Near-Human Strength surge
A119: UR | B119: 18 | D119: N | E119: Near-Human Weapon familiarity | L119: M | M119: 6 | P119: Y* | U119: +1 at first level* | V119: +1 at first level* | W119: treat exotic as simple if commonly used by culture | X119: Near-Human Weapon familiarity | AF119: 1
A120: UR | B120: 18 | D120: N | E120: Near-Human Visually striking | L120: M | M120: 6 | P120: Y* | U120: +1 at first level* | V120: +1 at first level* | W120: Cha bonus doubled w/Persuasion on Human, near-Humans & similar | X120: Near-Human Visually striking | AF120: 1
A121: CR | B121: 285 | C121: w | D121: N | E121: Neimodian | F121: -2 | I121: 2 | J121: 2 | L121: M | M121: 6 | P121: Y | U121: SF Deception | V121: reroll Deception, mtr | X121: Neimodian | AE121: 1
A122: GI | B122: 17 | C122: w | D122: P | E122: Neimoidian | F122: -2 | K122: 2 | L122: M | M122: 6 | N122: 1.9 | O122: 70 | P122: Y | U122: SF Deception, SF Persuasion | X122: Neimoidian | Y122: 11 | Z122: 16 | AA122: 40 | AB122: 57 | AC122: 79 | AD122: 80+
A123: C | B123: 16 | C123: w | D123: P | E123: Nelvaanian | I123: -2 | J123: 2 | L123: M | M123: 6 | N123: 2/1.5 | O123: 130/50 | P123: N | Q123: L | W123: Primitive, Scent, if begin turn in concealment & target unaware avoid attacks of opportunity | X123: =(E123) -> Nelvaanian | Y123: 7 | Z123: 20 | AA123: 30 | AB123: 45 | AC123: 64 | AD123: 65+
A124: UR | B124: 13 | C124: w | D124: P | E124: Nikto | F124: 2 | I124: -2 | K124: -2 | L124: M | M124: 6 | N124: 1.8 | O124: 60 | P124: Y* | R124: 2 | S124: 2 | V124: reroll Survival, mtr | W124: *or Huttese | X124: =(E124) -> Nikto | Y124: 10 | Z124: 15 | AA124: 35 | AB124: 54 | AC124: 64 | AD124: 65+ | AE124: 1 | AG124: 1
A125: F | B125: 185 | C125: w | D125: N | E125: Noghri | G125: 2 | J125: 2 | K125: -4 | L125: S | M125: 4 | P125: N | U125: Running Attack with Dex 13 | W125: Primitive, Scent | X125: =(E125) -> Noghri | AE125: 4 | AF125: 1
A126: F | B126: 15 | C126: w | D126: P | E126: Nosaurian | G126: 2 | K126: -2 | L126: M | M126: 6 | N126: 1.4 | O126: 75 | P126: Y | V126: Climb as class skill, reroll Survival, mtr | W126: Natural Weapon (horns), 1d6 piercing | X126: =(E126) -> Nosaurian | Y126: 10 | Z126: 15 | AA126: 45 | AB126: 79 | AC126: 99 | AD126: 100+ | AE126: 1 | AF126: 2 | AH126: 2
A127: GI | B127: 144 | C127: w | D127: N | E127: Nyriaanan | J127: 2 | K127: -2 | L127: M | M127: 6 | P127: N | Q127: L | U127: Bonus Feat like humans at 1st level | V127: Survival is class skill | X127: Nyriaanan | AE127: 9 | AF127: 9
A128: GI | B128: 131 | C128: w | D128: N | E128: Pa'lowick | F128: -2 | J128: 2 | L128: M | M128: 6 | P128: N | V128: can reroll & take 10 on Swim | W128: Primitive, Hold Breath | X128: =(E128) -> Pa'lowick
A129: W | C129: w | D129: P | E129: Pau'an | F129: -2 | J129: 2 | K129: 2 | L129: M | M129: 6 | N129: 1.9 | O129: 70 | P129: Y | Q129: L | U129: SF Persuasion | W129: add +1 to insight or morale bonuses | X129: Pau'an | Y129: 16 | Z129: 30 | AA129: 400 | AB129: 500 | AC129: 699 | AD129: 700+
A130: W | C130: w | D130: N | E130: Phindian | I130: 2 | K130: -2 | L130: M | M130: 6 | P130: Y | U130: SF Mechanics, Skill training (Knowledge [technology]) | X130: Phindian
A131: W | C131: w | D131: N | E131: Polis Massan | F131: -2 | J131: 2 | L131: S | M131: 6 | P131: Y | Q131: D | U131: SF Treat Injury | W131: Mute, Limited Telepathy within 10 sq | X131: Polis Massan | AE131: 12 | AF131: 3
A132: CR | B132: 29 | C132: w | D132: P | E132: Quarren | H132: 2 | J132: -2 | K132: -2 | L132: M | M132: 6/4 | N132: 1.8 | O132: 72 | P132: Y | Q132: L | U132: SF Persuasion | V132: reroll Swim mtr, can take 10 | W132: breathe underwater | X132: Quarren | Y132: 11 | Z132: 16 | AA132: 40 | AB132: 57 | AC132: 79 | AD132: 80+ | AE132: 12 | AF132: 3
A133: K | B133: 17 | C133: w | D133: P | E133: Rakata | I133: 2 | J133: -2 | L133: M | M133: 6 | N133: 2 | O133: 85 | P133: N | U133: Weapon Focus with simple or exotic | W133: use a trained-only aspect of Mechanics, Pilot, Treat Injury or Use Computer, Force Blind, Primitive, Rage | X133: Rakata | Y133: 11 | Z133: 16 | AA133: 50 | AB133: 69 | AC133: 79 | AD133: 80+ | AE133: 1
A134: T | B134: 153 | C134: w | D134: N | E134: Replica Droid | F134: 2 | G134: 2 | K134: -2 | P134: Y | U134: SF Deception | W134: Variable size, droid traits, bonus equipment (see p.153) | X134: Replica Droid | AE134: 1 | AF134: 8 | AH134: 7
A135: CR | B135: 29 | C135: w | D135: P | E135: Rodian | G135: 2 | J135: -2 | K135: -2 | L135: M | M135: 6 | N135: 1.6 | O135: 60 | P135: Y | Q135: L | U135: SF Survival | V135: reroll Perception, mtr | X135: Rodian | Y135: 12 | Z135: 15 | AA135: 35 | AB135: 49 | AC135: 59 | AD135: 60+ | AF135: 1
A136: SV | B136: 10 | C136: w | D136: P | E136: Ryn | K136: 2 | L136: M | M136: 6 | N136: 1.6/1.4 | O136: 60/50 | P136: Y | W136: can reroll Deception & take better, swif to create diversion to hide 10sq, prehensile tail, Gather Info without fee (can pay if fail) | X136: Ryn | Y136: 10 | Z136: 20 | AA136: 40 | AB136: 60 | AC136: 80 | AD136: 81+
A137: L | B137: 204 | C137: w | D137: N | E137: Sakiyan | L137: M | M137: 6 | P137: Y | Q137: D | R137: 2 | U137: SF Perception | X137: Sakiyan
A138: K | B138: 18 | C138: w | D138: P | E138: Selkath | K138: 2 | L138: M | M138: 6/4 | N138: 1.5 | O138: 60 | P138: N | V138: take 10 on Swim | W138: Breathe underwater, when healing others +5 hp, 1/encounter swif grant ally 10+target level hp | X138: Selkath | Y138: 10 | Z138: 15 | AA138: 54 | AB138: 84 | AC138: 99 | AD138: 100+ | AF138: 1
A139: J | B139: 79 | C139: w | D139: N | E139: Shard | G139: -2 | J139: 2 | L139: M | P139: Y | V139: Use Computer is bonus trained skill | W139: Droid Shell but retains Constitution, Binary language | X139: Shard
A140: UR | B140: 14 | C140: w | D140: P | E140: Shistavanen | G140: 2 | I140: -2 | K140: -2 | L140: M | M140: 6 | N140: 1.6 | O140: 60 | P140: N | Q140: L | U140: SF Perception | V140: Survival is a class skill, reroll Initiative, mtr | W140: claw d6 | X140: Shistavanen | Y140: 9 | Z140: 13 | AA140: 40 | AB140: 60 | AC140: 95 | AD140: 96+ | AE140: 1
A141: W | C141: w | D141: N | E141: Skakoan | G141: -2 | I141: 2 | L141: M | M141: 6 | P141: Y | U141: AP (light), SF Mechanics | W141: 1/encounter stan Mechanics or Use Computer action as swift action, Special Equipment | X141: Skakoan | AF141: 1
A142: UR | B142: 14 | C142: w | D142: P | E142: Sluissi | G142: -2 | I142: 2 | L142: M | M142: 6 | N142: 1.7 | O142: 60 | P142: Y | U142: Tech Specialist w/Mechanics | W142: Mechanics +10 if take double time, +5 v. Trip, long jump w/out running start | X142: Sluissi | Y142: 8 | Z142: 14 | AA142: 39 | AB142: 59 | AC142: 75 | AD142: 76+ | AE142: 2
A143: K | B143: 19 | C143: w | D143: P | E143: Snivvian | J143: 2 | L143: S | M143: 4 | N143: 1.4 | O143: 55 | P143: N | W143: 1/encounter use Perception for Deception or Persuasion, +5 Fort Def v. cold | X143: Snivvian | Y143: 11 | Z143: 17 | AA143: 49 | AB143: 79 | AC143: 105 | AD143: 106+ | AE143: 1 | AF143: 1 | AH143: 1
A144: UR | B144: 143 | C144: w | D144: N | E144: Sorcerer of Rhand | F144: -2 | G144: -2 | I144: 4 | J144: 2 | K144: -2 | L144: M | M144: 6 | P144: Y | U144: Force-sensitivity, Force Training* | V144: reroll Persuasion to intimidate, keep better | W144: *half of force powers must be "dark," gains 1 to 3 special qualities, +5 Will Def v. Persuasion | X144: Sorcerer of Rhand
A145: UR | B145: 15 | C145: w | D145: P | E145: Squib | F145: -2 | G145: 2 | L145: S | M145: 6 | N145: 1 | O145: 22 | P145: Y | U145: Squib tensor rifle w/WP (rifle) | V145: Persuasion class skill, reroll Know (tech, mtr) | W145: +5 Persuasion to haggle, not limited to common knowledge w/untrained Know (tech) check | X145: Squib | Y145: 8 | Z145: 12 | AA145: 38 | AB145: 63 | AC145: 64 | AD145: 65+
A146: UR | B146: 147 | C146: w | D146: N | E146: Ssi-Ruuk | F146: 2 | J146: -2 | L146: M | M146: 6 | P146: N | R146: 2 | U146: SF Persuasion | W146: force-blind, smell: w/in 6sq can reroll Persuasion & keep better | X146: Ssi-Ruuk | AE146: 1
A147: D9 | B147: 12 | C147: w | D147: N | E147: Stereb | F147: 4 | G147: -2 | H147: 2 | I147: -2 | K147: -2 | L147: M | M147: 6 | P147: N | Q147: D | S147: 2 | U147: SF Mechanics with stone | V147: take 10 on Survival when underground | W147: primitive, +5 damage threshold | X147: Stereb | AE147: 2 | AF147: 2
A148: CR | B148: 30 | C148: w | D148: P | E148: Sullustan | G148: 2 | H148: -2 | L148: M | M148: 6 | N148: 1.5 | O148: 55 | P148: Y | Q148: D | V148: take 10 on Climb, reroll Perception, mtr | X148: Sullustan | Y148: 9 | Z148: 14 | AA148: 39 | AB148: 55 | AC148: 69 | AD148: 70+
A149: F | B149: 16 | C149: w | D149: P | E149: Talz | H149: 2 | I149: -2 | L149: M | M149: 6 | N149: 2 | O149: 90 | P149: N | Q149: D | U149: SF Mechanics | W149: claws d6 | X149: Talz | Y149: 3 | Z149: 8 | AA149: 25 | AB149: 40 | AC149: 52 | AD149: 53+
A150: GW | B150: 13 | C150: w | D150: P | E150: Taung | H150: 2 | K150: -2 | L150: M | M150: 6 | N150: 2 | O150: 95 | P150: Y | R150: 1 | S150: 1 | T150: 1 | V150: reroll Knowledge (tactics), mtr | W150: Max Dex bonus of armor +1 | X150: Taung | Y150: 6 | Z150: 12 | AA150: 45 | AB150: 64 | AC150: 84 | AD150: 85+
A151: J | B151: 109 | C151: w | D151: N | E151: Tchuukthai (best guess) | L151: L | M151: 6 | P151: Y | W151: +5 v. trip or being knocked prone, bite 1d8 | X151: Tchuukthai (best guess)
A152: GW | B152: 14 | C152: w | D152: P | E152: Thakwaash | F152: 4 | G152: -2 | K152: -2 | L152: M | M152: 6 | N152: 2.8 | O152: 130 | P152: N | R152: 1 | W152: 1/encounter as free action remove any mind-affecting effects | X152: Thakwaash | Y152: 9 | Z152: 14 | AA152: 49 | AB152: 74 | AC152: 89 | AD152: 90+
A153: UR | B153: 149 | C153: w | D153: N | E153: Tof | F153: 2 | G153: -2 | J153: -2 | K153: 2 | L153: L | M153: 6 | P153: N | U153: Rapid Shot or Rapid Strike, Mighty Swing if have Martial Arts I & Str 13 | W153: 1/enc ignore one fear-related or mind-affecting effect, +5 Will Def v. intimidate | X153: Tof
A154: F | B154: 17 | C154: w | D154: P | E154: Togorian | F154: 4 | I154: -2 | J154: -2 | L154: L | M154: 6 | N154: 2.5 | O154: 170 | P154: Y | Q154: L | R154: 1 | W154: use Str not Cha to intimidate | X154: Togorian | Y154: 9 | Z154: 14 | AA154: 44 | AB154: 64 | AC154: 79 | AD154: 80+
A155: F | B155: 17 | C155: w | D155: P | E155: Togruta | G155: 2 | H155: -2 | L155: M | M155: 6 | N155: 1.7 | O155: 75 | P155: Y | V155: reroll Stealth, mtr | W155: flank = +2 dam, ignore cover and concealment within 10sq | X155: Togruta | Y155: 11 | Z155: 17 | AA155: 54 | AB155: 74 | AC155: 94 | AD155: 95+
A156: SV | B156: 11 | C156: w | D156: P | E156: Toydarian | F156: -2 | J156: 2 | L156: S | M156: 4/6 | N156: 1.2 | O156: 50/45 | P156: N | U156: SF Deception | W156: Will Def +5 v. mind-affecting Use the Force checks | X156: Toydarian | Y156: 6 | Z156: 14 | AA156: 60 | AB156: 75 | AC156: 90 | AD156: 91+
A157: CR | B157: 31 | C157: w | D157: P | E157: Trandoshan | F157: 2 | G157: -2 | L157: M | M157: 6 | N157: 2 | O157: 80 | P157: Y | Q157: D | R157: 1 | U157: Toughness | W157: limb regeneration | X157: Trandoshan | Y157: 11 | Z157: 14 | AA157: 34 | AB157: 49 | AC157: 59 | AD157: 60+
A158: GW | B158: 15 | C158: w | D158: P | E158: Trianii | J158: 2 | L158: M | M158: 6 | N158: 2 | O158: 95 | P158: N | V158: reroll Acrobatics, mtr | W158: claws d6, prehensile tail can hold Small or smaller item & if item is Medium Trianii is encumbered & heavy load | X158: Trianii | Y158: 11 | Z158: 17 | AA158: 44 | AB158: 64 | AC158: 84 | AD158: 85+
A159: W | C159: w | D159: N | E159: Tusken Raider | G159: 2 | I159: -2 | J159: -2 | L159: M | M159: 6 | P159: N | V159: reroll Stealth and Survival | X159: Tusken Raider
A160: CR | B160: 31 | C160: w | D160: P | E160: Twi'lek | J160: -2 | K160: 2 | L160: M | M160: 6 | N160: 1.8/1.6 | O160: 55 | P160: Y | Q160: L | S160: 2 | V160: reroll Deception, mtr | X160: Twi'lek | Y160: 12 | Z160: 15 | AA160: 44 | AB160: 59 | AC160: 79 | AD160: 80+
A161: SV | B161: 12 | C161: w | D161: P | E161: Ubese | G161: 2 | H161: -2 | L161: M | M161: 6 | N161: 1.9/1.7 | O161: 65/55 | P161: Y | U161: SF Perception | V161: reroll Survival, mtr | W161: charge atk +2, special equipment | X161: Ubese | Y161: 11 | Z161: 15 | AA161: 40 | AB161: 60 | AC161: 70 | AD161: 71+
A162: F | B162: 223 | C162: w | D162: N | E162: Ugnaught (best guess) | L162: S | M162: 6 | P162: Y | X162: Ugnaught (best guess)
A163: D4 | C163: w | D163: N | E163: Ugor (best guess) | L163: M | M163: 4 | P163: Y | W163: as full-round raise or lower an ability by max 5 but transfer from another ability & adjust bonuses & penalties | X163: Ugor (best guess)
A164: GI | B164: 18 | C164: w | D164: P | E164: Umbaran | G164: 2 | H164: -2 | J164: 2 | L164: M | M164: 6 | N164: 1.7 | O164: 60 | P164: Y | Q164: D | U164: SF Gather Info | V164: reroll Stealth, mtr | X164: Umbaran | Y164: 10 | Z164: 15 | AA164: 44 | AB164: 69 | AC164: 89 | AD164: 90+
A165: C | B165: 160 | C165: w | D165: N | E165: Umbaran | H165: -2 | J165: 2 | K165: 2 | L165: M | M165: 6 | P165: Y | Q165: L | U165: SF Persuasion | V165: reroll Persuasion, mtr | W165: if exposed to bright light blinded 1 round | X165: =(E165) -> Umbaran
A166: T | B166: 127 | C166: w | D166: N | E166: Utai | H166: 2 | K166: -2 | L166: S | M166: 4 | P166: N | Q166: L | V166: reroll Ride, mtr | W166: can use Persuasion to change attitude of an undomesticated creature, auto aid another if adjacent & understands | X166: Utai
A167: UR | B167: 153 | C167: w | D167: N | E167: Vagaari | F167: 2 | J167: -2 | L167: M | M167: 6 | P167: N | U167: SF Deception | V167: reroll Knowledge (life) & Treat Injury, mtr | W167: reroll Persuasion to intimidate if in traditional mask & keep better, considered trained | X167: Vagaari
A168: L | B168: 59 | C168: w | D168: N | E168: Vahla | H168: -2 | I168: 2 | L168: M | M168: 6 | P168: Y | U168: Force-sensitivity | V168: reroll Acrobatics, mtr | W168: spend 2 Force Points to lower Dark Side score | X168: Vahla
A169: L | B169: 15 | C169: w | D169: P | E169: Weequay | H169: 2 | I169: -2 | K169: -2 | L169: M | M169: 6 | N169: 1.7/1.6 | O169: 75/65 | P169: N | R169: 1 | U169: SF Endurance | W169: pheromone communication within 20 sq | X169: Weequay | Y169: 12 | Z169: 17 | AA169: 49 | AB169: 74 | AC169: 89 | AD169: 90+
A170: UR | B170: 16 | C170: w | D170: P | E170: Verpine | L170: M | M170: 6 | N170: 1.9 | O170: 60 | P170: Y | R170: 1 | U170: SF Mechanics | V170: reroll Perception, mtr | W170: communicate w/other Verpine w/in 1km | X170: Verpine | Y170: 4 | Z170: 9 | AA170: 40 | AB170: 60 | AC170: 80 | AD170: 81+
A171: F | B171: 18 | C171: w | D171: P | E171: Whiphid | F171: 4 | I171: -2 | J171: -2 | L171: L | M171: 6 | N171: 2.5 | O171: 55 | P171: N | W171: cold +5 Fort, claws d6, scent | X171: Whiphid | Y171: 10 | Z171: 15 | AA171: 84 | AB171: 99 | AC171: 249 | AD171: 250+
A172: CR | B172: 32 | C172: w | D172: P | E172: Wookiee | F172: 4 | G172: -2 | H172: 2 | J172: -2 | K172: -2 | L172: M | M172: 6 | N172: 2.2/2 | O172: 125/100 | P172: Y | U172: WP bowcasters with rifles | V172: take 10 on Climb, reroll Persuasion to intimidate, mtr | W172: Rage, recover hp x2 | X172: Wookiee | Y172: 12 | Z172: 17 | AA172: 300 | AB172: 350 | AC172: 399 | AD172: 400+
A173: SV | B173: 156 | C173: w | D173: N | E173: Wroonian | G173: 2 | H173: -2 | L173: M | M173: 6 | P173: Y | T173: 2 | V173: reroll Persuasion, mtr | X173: Wroonian
A174: J | B174: 107 | C174: w | D174: N | E174: Vultan | I174: 2 | J174: -2 | L174: M | M174: 6 | P174: Y | V174: +1 skill at 1st | W174: gain SF (Knowledge) x1 if trained in 2 or more Knowledge skills | X174: Vultan
A175: C | B175: 17 | C175: w | D175: P | E175: Vurk | G175: -2 | H175: 2 | K175: 2 | L175: M | M175: 6/4 | N175: 2.1/1.9 | O175: 90/85 | P175: Y | V175: reroll Swim mtr, can take 10, reroll Survival mtr | X175: Vurk | Y175: 6 | Z175: 14 | AA175: 30 | AB175: 49 | AC175: 69 | AD175: 70+
A176: F | B176: 19 | C176: w | D176: P | E176: Yarkora | G176: -2 | J176: 2 | K176: 2 | L176: M | M176: 6 | N176: 2 | O176: 95 | P176: Y | V176: Gather Info as class skill, reroll Deception, mtr | W176: 1/encounter as stan Deception v. Will Def v. target's w/in 6 sq to not threaten any squares, mtr | X176: Yarkora | Y176: 10 | Z176: 18 | AA176: 64 | AB176: 94 | AC176: 124 | AD176: 125+
A177: GW | B177: 16 | C177: w | D177: P | E177: Yevetha | F177: 2 | K177: -2 | L177: M | M177: 6 | N177: 1.9 | O177: 80 | P177: N | W177: claws d6, 1/encounter Mechanics check as nat 20, +2 Will Def v. Persuasion from a different species | X177: Yevetha | Y177: 5 | Z177: 11 | AA177: 44 | AB177: 66 | AC177: 80 | AD177: 81+
A178: L | B178: 16 | C178: w | D178: P | E178: Yuuzhan Vong | F178: 2 | J178: -2 | L178: M | M178: 6 | N178: 1.9/1.7 | O178: 70/60 | P178: N | U178: WP amphistaff with Simple | W178: Force Immunity, Atk w/mechanical objects -5, can't take WP heavy weapons, pistols or rifles at 1st level | X178: Yuuzhan Vong | Y178: 11 | Z178: 17 | AA178: 40 | AB178: 60 | AC178: 75 | AD178: 76+
A179: CR | B179: 285 | C179: w | D179: N | E179: Yuuzhan Vong | F179: 2 | J179: -2 | L179: M | M179: 6 | N179: 1.9/1.7 | O179: 70/60 | P179: N | U179: WP amphistaff with Simple | W179: Force Immunity, Atk w/mechanical objects -5, can't take WP heavy weapons, pistols or rifles at 1st level | X179: Yuuzhan Vong | Y179: 11 | Z179: 17 | AA179: 40 | AB179: 60 | AC179: 75 | AD179: 76+
A180: GW | B180: 17 | C180: w | D180: P | E180: Yuzzem | F180: 4 | J180: -2 | K180: -2 | L180: L | M180: 6 | N180: 2.5 | O180: 180 | P180: N | V180: reroll Climb, mtr | W180: claws/bite d8, can use Str mod for Persuasion to intimidate, scent ignores concealment for cover in 10sq | X180: Yuzzem | Y180: 8 | Z180: 15 | AA180: 40 | AB180: 59 | AC180: 79 | AD180: 80+
A181: CR | B181: 32 | C181: w | D181: P | E181: Zabrak | L181: M | M181: 6 | N181: 1.8 | O181: 75 | P181: Y | R181: 1 | S181: 1 | T181: 1 | V181: reroll Perception, mtr | X181: Zabrak | Y181: 8 | Z181: 14 | AA181: 44 | AB181: 55 | AC181: 69 | AD181: 70+
A182: L | B182: 17 | C182: w | D182: P | E182: Zeltron | J182: -2 | K182: 2 | L182: M | M182: 6 | N182: 1.8/1.65 | O182: 70/55 | P182: Y | W182: add Cha bonus to Perception checks to sense deception/influence, +5 Persuasion to change attitude | X182: Zeltron | Y182: 11 | Z182: 18 | AA182: 49 | AB182: 64 | AC182: 79 | AD182: 80+
A183: GW | B183: 17 | C183: w | D183: P | E183: Zygerrian | H183: 2 | J183: -2 | L183: M | M183: 6 | N183: 1.7 | O183: 60 | P183: Y | T183: 2 | U183: Martial Arts I | W183: can use Cha mod to calculate Will Def | X183: Zygerrian | Y183: 9 | Z183: 16 | AA183: 39 | AB183: 60 | AC183: 80 | AD183: 81+
AE185: 4
AE186: 1 | AI186: Abyssin
AF187: 1 | AI187: Chevin
AE188: 1 | AI188: Dresellian
AE189: 1 | AI189: Farghul
AF190: 1 | AI190: Kubaz
AF191: 1 | AH191: 1 | AI191: Lannik
AE192: 1 | AI192: Mustafarian
AE193: 2 | AF193: 2 | AI193: Muun
AE194: 1 | AI194: T'surr

Sheet Qualities
A1: SPECIES SPECIAL QUALITY | B1: DESCRIPTION
A2: Able Healer | B2: +5 hp restored when healing others, 1x Encounter give ally 10+level hp until end of encounter
A3: Acrobatic Prowess | B3: Reroll acrobatics, result must be accepted
A4: Adept Diplomat | B4: Reroll persuasion, keep better result
A5: Aggressive | B5: If successful charge, keep the +2 vs that target to end of encounter
A6: Ancient Knowledge | B6: Lack of proficiency penalty -2 (weapon, armor), 1x Encounter use a trained application of Mechanics, Pilot, Treat Injury, Use Computer
A7: Animal Handler | B7: Reroll ride, result must be accepted. Use persuasion to change attitude on undomesticated animal if it's INT is 2 or lower.
A8: Antennapalps | B8: Reroll perception, result must be accepted, retract as free action to pass as human
A9: Armor Training | B9: +1 max dex mod on worn armor
A10: Athletic | B10: Reroll Climb & Jump, reroll must be accepted. Can take 10 when distracted/threatened.
A11: Authority | B11: +1 to insight or morale bonuses they grant themselves or allies
A12: Bellow | B12: 6 square cone, 1d20+level vs FortDef. Success = 3d6 sonic. Miss = /2 Fort Def. -1 Condition. Additional die for additional loss.
A13: Bonus Feat | B13: +1 feat at starting level
A14: Bonus Trained Skill | B14: +1 trained skill at starting level
A15: Breathe Underwater | B15: Cannot drown underwater.
A16: Broadcast Telepath | B16: Can use telepathy untrained, no check, no force sensitivity, 60 squares
A17: Brutal | B17: 1x Encounter, after successful melee attack, treat threshold as -5
A18: Carapace | B18: +1 natural armor, +1 species to Fort Def
A19: Careful Worker | B19: x2 time on Mechanics check give +10 circumstance bonus
A20: Cathar Instincts | B20: Climb and Stealth are class skills
A21: Climber's Heritage | B21: Climb as class skill
A22: Cold Resistance | B22: 5 species Fort Def vs cold
A23: Cold-Blooded | B23: -5 penalty to Fort Def in extreme cold
A24: Conditional Bonus Feat | B24: If trained, get focus as bonus feat
A25: Confusion | B25: 1/encounter as stan Deception v. Will Def v. target's w/in 6 sq to not threaten any squares, mtr
A26: Connections | B26: Gather Info without fee (can pay if fail)
A27: Cooperative Spirit | B27: Get aid (adjacent) or aid others as swift action (only Climb, Endurance, Gather Information, Jump, Knowledge (any), Mechanics, Pilot, Ride, Survival, Swim, Treat Injury, or Use Computer)
A28: Cooperative Spirit | B28: Aid adjacent (if they understand) is automatic
A29: Cyanogen Breather | B29: Suffocate outside special chamber
A30: Dark Side Stigma | B30: -1 DSP = 2FP
A31: Darkvision | B31: Ignore concealment from darkness, cannot perceive color
A32: Deathstrike | B32: Melee vs opponent with denied dex mod to Ref Def, +1 die Fort Def
A33: Deceptive | B33: Reroll deception, result must be accepted
A34: Deductive Reasoning | B34: Reroll Knowledge, result must be accepted
A35: Dependable Worker | B35: 1x Encounter, treat skill check as 10 after roll (only Climb, Endurance, Gather Information, Jump, Knowledge [any), Mechanics, Pilot, Ride, Survival, Swim, Treat Injury, or Use Computer)
A36: Desert Dweller | B36: Reroll survival vs heat, keep better result
A37: Determination | B37: 1x Encounter, reroll one skill check with trained skill
A38: Driven | B38: +5 Will Defense vs mind-affecting effects
A39: Droid Shell | B39: Special, see J p79
A40: Duty Bound | B40: When receiving morale bonus, Level x4 hp until end of encounter
A41: Ecological Awareness | B41: Reroll Knowledge (life sciences) and keep best result
A42: Empathy | B42: Add cha mod to perception checks to sense deception or influence
A43: Energy Reading | B43: Perception vs targets Will Def to sense emotional state. Range 6 sq
A44: Environmental Adaptation | B44: +5 species Fort Def vs extreme heat, cold and radiation
A45: Evolved Intellect | B45: 1xEncounter, treat 1 intelligence-based skill check as a natural 20
A46: Exoskeleton | B46: DR 2, +2 Fort Def
A47: Expert Climber | B47: Take 10 on climb checks when distracted or threatened
A48: Expert Mechanic | B48: Reroll mechanics, result must be accepted
A49: Expert Pilot | B49: Reroll Pilot, result must be accepted
A50: Expert Swimmer | B50: Can reroll skill, result must be accepted. Can take 10 when threatened or distracted.
A51: Extra Arms | B51: Wield 2x2h weapons
A52: Extraordinary Recuperation | B52: Regain HP at double rate
A53: Fearsome reputation | B53: Reroll persuasion to intimidate, keep higher result
A54: Feline Reflexes | B54: +1 species to Ref Def
A55: Flash of Genius | B55: 1x Encounter, +5 circumstance bonus to 1 Knowledge, Mechanics or Use Computer check
A56: Force Blast | B56: 1x Encounter, untrained Force Blast (use the force), or with Force Training 1 Force Blast for free
A57: Force Blind | B57: Cannot take force sensitivity, still increase dark side and are affected by force powers, talents and use the force skill
A58: Force Immunity | B58: Can't take force-sensitivity, Use the Force, gain FP, immune against force vs Will Def
A59: Force Resistance Fort & Will | B59: +5 species Fort Def and Will Def vs Use the Force checks
A60: Force Resistance Will | B60: +5 species Will Def vs mind-affecting Use the Force checks
A61: Force Sight | B61: Like darkvision, cannot see creatures invisible to the force (total concealment), perception checks: ignore cover/concealment (not total), do not increase DC of Sense Surroundings (Use the Force) vs targets with total cover
A62: Free Spirit | B62: +2 species to Will Def
A63: Gen'Dai Surge | B63: When second wind, +5hp per round until killed, end of encounter or 1/2 hp.
A64: Grasping Tentacles | B64: +2 species to climb and grapple
A65: Great Fortitude | B65: +2 Species to Fort Def
A66: Hardwired Design | B66: Automatically trained in skill
A67: Hardy | B67: When second wind, +5+level hp
A68: Healing Glands | B68: Considered to always have medpac/medkit for treat injury. Can use trained applications of Treat Injury untrained
A69: Heavy Lifting | B69: Can reroll strength checks and keep either result
A70: Heightened Awareness | B70: Reroll perception, result must be accepted
A71: Hibernation | B71: Force Trance (use the force) untrained indefinitely
A72: Hold Breath | B72: Hold breath for constitution x25 rounds
A73: Hullepi | B73: Do not starve, except in sterile environments
A74: Hunter's Instincts | B74: Stealth and Survival are class skills
A75: Inborn Resilience | B75: Second wind as unconscious, +3 condition
A76: Inspired | B76: Morale bonuses increases by 1
A77: Insulating Fur | B77: +5 species Fort Def vs extreme cold
A78: Intellectual Reputation | B78: Use Int mod instead of cha mod for persuasion checks
A79: Intimidating | B79: Reroll persuasion to intimidate, result must be accepted
A80: Intuitive Initiative | B80: Reroll initiative, result must be accepted
A81: Iron Will | B81: +2 species bonus to will defense
A82: Keen Force Sense | B82: Reroll Use the Force, keep better result
A83: Large Size | B83: -1 Reflex, -5 Stealth, +5 threshold, x2 carry weight
A84: Light Sensitive | B84: Blinded 1 round when exposed to bright light
A85: Lightning Reflexes | B85: +2 species to Ref Def
A86: Limb regeneration | B86: Regrow limb in 1d10 days, remove persistent condition
A87: Limited Precognition | B87: 1x Encounter, reaction, self or vehicle get +2 Ref Def to 1 attack
A88: Limited Telepathy | B88: Can use telepathy untrained, no check, no force sensitivity, 10 squares
A89: Low-Light Vision | B89: Ignore concealment (but not total concealment) from darkness
A90: Mechanical Aptitude | B90: 1xEncounter, treat 1 mechanics check as a natural 20
A91: Mechanical Savant | B91: 1x Encounter, can use mechanics or use computer as swift
A92: Mechanically Minded | B92: Can reroll a mechanic check
A93: Meditative Trance | B93: 4h meditation = 8 hours rest
A94: Memory Sharing | B94: share memories
A95: Mender | B95: If trained in Treat Injury, reduce DC by Wis mod
A96: Mental instability | B96: Each step above adult, -1 was
A97: Mesmerize | B97: d20+level/2+chamod vs one targets Will Def (range 6 sq). Success = target lose next standard action, fail = target immune 24h
A98: Moral Ambiguity | B98: +2 Will Def vs deception & persuasion
A99: Multiple Personalities | B99: 1x encounter, free action, start of turn, negate/remove any mind-affecting effects
A100: Musical Beak | B100: Can reroll Deception & take better, swif to create diversion to hide 10sq
A101: Mute | B101: Have no vocal cords
A102: Natural armor | B102: Adds more armor bonus to reflex defense
A103: Natural Camouflage | B103: Reroll stealth to sneak, keep better result
A104: Natural Curiosity | B104: Perception vs DC15 or stealth, success: +1 insight to attack
A105: Natural Damage Reduction | B105: DR 2
A106: Natural Diplomat | B106: +5 to Persuasion when haggling. Persuasion is a class skill
A107: Natural Telepath | B107: +5 species bonus using telepathy (use the force) and can make untrained use the force use without force sensitivity feat
A108: Natural Weapons | B108: Add bonus to unarmed damage and considered armed
A109: Nazren Resilience | B109: 1x Encounter, when - in condition track, reduce the drop by 1
A110: Nomads | B110: Reroll survival, result must be accepted
A111: Observant | B111: 1x Encounter, use Perception modifier instead of deception or persuasion
A112: Pacifism | B112: stan Persuasion v. Will to move -1 down track
A113: Pack Hunter | B113: +2 Fort Def vs flanked
A114: Partial Invisibility | B114: Full concealment in shadowy or darker environment. Visible to darkvision
A115: Persistent | B115: Reroll endurance, result must be accepted
A116: Persuasive | B116: Reroll persuasion, result must be accepted
A117: Pheromonal Sensor | B117: Reroll perception made to sense influence, reroll must be accepted. Take better result if under water.
A118: Pheromone Acclimation | B118: +5 species to Fort Def vs fallen pheromones
A119: Pheromones | B119: Communicate with same species through smell, 20ft
A120: Pheromones Attack | B120: See SV p8
A121: Pheromones Persuasion | B121: +5 species to persuasion to change attitude, do not work on neutrons
A122: Physically intimidating | B122: Use Str mod instead of cha mod for persuasion when intimidating
A123: Placid | B123: 1x Encounter, free action, remove one fear effect from self
A124: Poison | B124: Unarmed deal poison, 1d20+level vs Fort Def, -1 condition
A125: Poison Resistance | B125: +5 Fort Def vs poison
A126: Predator's Heritage | B126: + species bonus to damage rolls vs target that been damaged since beginning of last turn
A127: Prehensile Tail | B127: Carry small or smaller item with tail, larger = encumbered
A128: Presence Sense | B128: When tracking, add quarry's FP total to roll
A129: Primitive | B129: Do not get Weapon Proficiency (pistols, rifles or heavy weapons) forms starting class.
A130: Quick Energy | B130: swif +2 Dex skills & spd 8, rnds = Con mod, -1 down track
A131: Quick Reflexes | B131: Reroll initiative, result must be accepted
A132: Radiation Resistance | B132: +5 species Fort Def vs radiation, never gains persistent from rad
A133: Rage | B133: Rage, swift action, +2 on melee rolls & damage, cannot use skills that require patience and concentration. Lasts 5+conmod rounds, move -1 persistent condition lost with 10 min rest
A134: Reach | B134: Reaches 2 squares
A135: Reactive Claw | B135: If hitting opponent in melee, +1 unarmed attack as swift (if hand is free)
A136: Regenerate | B136: Regenerate limbs in 1d10 min, remove persistent condition
A137: Reroll Climb | B137: Reroll climb, result must be accepted
A138: Resilient | B138: +1 species to Fort Def
A139: Resilient Physiology | B139: x2 threshold after everything counted in
A140: Resistant | B140: +2 fortitude defense
A141: Roller | B141: Curl to ball and roll, read book
A142: Scavenger | B142: When damaging droid/vehicle with ion, +/2 level Fort Def
A143: Scent | B143: Ignore concealment for perception checks within 10 squares and take no penalty from visibility when tracking
A144: Scholarly Inclination | B144: +1 trained knowledge skill at level 1
A145: Sensor Cones | B145: Use Sense Force and Sense Surroundings untrained
A146: Serpentine | B146: Running start on Jump Checks, +5 stability bonus when making grapple checks against the Trip feat
A147: Shadow Swiftness | B147: Unthreatened when moving through threatened squares (AoO) if concealed or opponent unaware
A148: Shapeshift | B148: Alter appearance, +10 deception to disguise, disguise as full-round action without penalty
A149: Skilled Grappler | B149: +5 Species to grapple
A150: Small Size | B150: +1 Reflex, +5 Stealth, 3/4 carry weight
A151: Sneaky | B151: Reroll stealth, result must be accepted
A152: Social Cunning | B152: Use Wis mod instead of cha mod for Deception and Persuasion
A153: Soup Drinking | B153: Swift one time per round vs grabbed target who move -1 condition and drinker gain 5+lvl/2 hp. Persistent until 8h rest
A154: Spatial Awareness | B154: Ignore cover/concealment when spotting with perception first 10 squares
A155: Special Equipment | B155: Begin with specified equipment
A156: Startle | B156: 1x Encounter, Deception vs Will to give opponent -5 penalty on next roll
A157: Stealthy | B157: Reroll stealth checks, result must be accepted
A158: Stoic | B158: Sense motive (perception) on this character at -5 penalty
A159: Streetwise | B159: Gather Information as class skill
A160: Strength of Condition | B160: Use cha mod instead of Wis mod when calculating Will Def
A161: Stronger by age | B161: Middle Age, +1 con/Str, Old Age +2, do not increase Int/was/cha or decrease con/Dex/Str
A162: Stun Resistance | B162: +5 species bonus to resist stun
A163: Sturdy | B163: Second wind gives 5+(lvl/2) additional hp
A164: Subterranean | B164: Take 10 on Survival when underground, even when distracted or threatened
A165: Superior Defenses | B165: +1 to all three defenses
A166: Supreme Stability | B166: Can't be tripped or knocked prone
A167: Survival Instinct | B167: Reroll survival, result must be accepted
A168: Target Awareness | B168: No penalty for spotting with perception first 50 squares
A169: Tech Savvy | B169: Reroll knowledge (technology), reroll must be accepted. Not limited to common knowledge when using skill untrained.
A170: Technophobic | B170: Do not get Weapon Proficiency (pistols, rifles or heavy weapons) forms starting class.
A171: Tentacles | B171: +2 to Climb and Grapple checks
A172: Tinkerer | B172: Reroll mechanics, result must be accepted. When repair/jury-rig droid it heals +1d8. Mechanics is a class-skill.
A173: Tough | B173: +5 Threshold, +2 species to Fort Def
A174: Triple Vision | B174: 1x Encounter, aim as 1 swift
A175: Uncanny Tracker | B175: Survival is a class skill
A176: Unique Physiology | B176: Immune to vacuum and inhaled chemicals/poisons
A177: Warrior Culture | B177: Reroll Knowledge (tactics), result must be accepted
A178: Warrior's Awareness | B178: 1x Encounter, reaction, react as if having Uncanny Dodge II until next turn
A179: Weapon Familiarity | B179: If specified weapon proficiency is had, gain exotic proficiency for specified weapon
A180: Verpine Communication | B180: Mentally communicate with other Verpine within 1km range
A181: Xeonophobia | B181: +2 Will Def vs persuasion to improve their attitude

Sheet Skills
A1: BOOK | B1: PAGE | C1: SKILLS | D1: Ability | E1: Armor? | F1: Jedi | G1: Noble | H1: Scoundrel | I1: Scout | J1: Soldier
A2: CR | B2: 62 | C2: Acrobatics | D2: DEX | E2: Y | F2: x | H2: x
A3: CR | B3: 64 | C3: Climb | D3: STR | E3: Y | I3: x | J3: x
A4: CR | B4: 66 | C4: Deception | D4: CHA | E4: N | G4: x | H4: x
A5: CR | B5: 67 | C5: Endurance | D5: CON | E5: Y | F5: x | I5: x | J5: x
A6: CR | B6: 67 | C6: Gather Information | D6: CHA | E6: N | G6: x | H6: x
A7: CR | B7: 68 | C7: Initiative | D7: DEX | E7: Y | F7: x | G7: x | H7: x | I7: x | J7: x
A8: CR | B8: 68 | C8: Jump | D8: STR | E8: Y | F8: x | I8: x | J8: x
A9: CR | B9: 68 | C9: Knowledge | D9: INT | E9: N | F9: x | G9: x | H9: x | I9: x | J9: x
A10: CR | B10: 68 | C10: Mechanics | D10: INT | E10: N | F10: x | H10: x | I10: x | J10: x
A11: CR | B11: 70 | C11: Perception | D11: WIS | E11: N | F11: x | G11: x | H11: x | I11: x | J11: x
A12: CR | B12: 71 | C12: Persuasion | D12: CHA | E12: N | G12: x | H12: x
A13: CR | B13: 71 | C13: Pilot | D13: DEX | E13: N | F13: x | G13: x | H13: x | I13: x | J13: x
A14: CR | B14: 72 | C14: Ride | D14: DEX | E14: Y | G14: x | I14: x
A15: CR | B15: 72 | C15: Stealth | D15: DEX | E15: Y | H15: x | I15: x
A16: CR | B16: 73 | C16: Survival | D16: WIS | E16: N | I16: x
A17: CR | B17: 74 | C17: Swim | D17: STR | E17: Y | I17: x | J17: x
A18: CR | B18: 74 | C18: Treat Injury | D18: WIS | E18: N | G18: x | J18: x
A19: CR | B19: 76 | C19: Use Computer | D19: INT | E19: N | G19: x | H19: x | J19: x
A20: CR | B20: 77 | C20: Use the Force | D20: CHA | E20: N | F20: x

Sheet Use
A1: BOOK | B1: PAGE | C1: SKILL | D1: ACTION | E1: Trained? | F1: REQUIREMENTS
A2: CR | B2: 62 | C2: Acrobatics | D2: Balance
A3: SV | B3: 19 | C3: Acrobatics | D3: Catch Item | E3: x
A4: CR | B4: 63 | C4: Acrobatics | D4: Cross Difficult Terrain | E4: x
A5: SV | B5: 19 | C5: Acrobatics | D5: Escape Artist | E5: x
A6: CR | B6: 63 | C6: Acrobatics | D6: Escape Bonds
A7: CR | B7: 63 | C7: Acrobatics | D7: Fall Prone | E7: x
A8: K | B8: 30 | C8: Acrobatics | D8: Long Falls
A9: F | B9: 29 | C9: Acrobatics | D9: Low and High Gravity Environments | E9: x
A10: SV | B10: 19 | C10: Acrobatics | D10: Nimble Charge | E10: x
A11: CR | B11: 63 | C11: Acrobatics | D11: Reduce Falling Damage | E11: x
A12: CR | B12: 63 | C12: Acrobatics | D12: Stand up from Prone | E12: x
A13: CR | B13: 63 | C13: Acrobatics | D13: Tumble | E13: x
A14: F | B14: 29 | C14: Acrobatics | D14: Zero-Gravity Environments | E14: x
A15: CR | B15: 64 | C15: Climb | D15: Accelerated Climbing
A16: CR | B16: 64 | C16: Climb | D16: Catch Yourself When Falling
A17: CR | B17: 64 | C17: Climb | D17: Climb Surface
A18: K | B18: 30 | C18: Climb | D18: Climbing in Low or High Gravity
A19: F | B19: 29 | C19: Climb | D19: Extreme Conditions
A20: CR | B20: 64 | C20: Climb | D20: Making Handholds & Footholds
A21: SV | B21: 19 | C21: Deception | D21: Alternate Story | E21: x
A22: SV | B22: 19 | C22: Deception | D22: Cheat | E22: x
A23: CR | B23: 29 | C23: Deception | D23: Creating a Diversion to Hide
A24: F | B24: 29 | C24: Deception | D24: Creating a Diversion to Hide an Item
A25: CR | B25: 64 | C25: Deception | D25: Deceive
A26: F | B26: 29 | C26: Deception | D26: Feign Haywire | F26: Droids only
A27: CR | B27: 68 | C27: Deception | D27: Feint
A28: SV | B28: 19 | C28: Deception | D28: Group Feint | E28: x
A29: SV | B29: 19 | C29: Deception | D29: Innuendo | E29: x
A30: CR | B30: 66 | C30: Endurance | D30: Forced March
A31: CR | B31: 66 | C31: Endurance | D31: Hold Breath
A32: CR | B32: 66 | C32: Endurance | D32: Ignore Hunger
A33: CR | B33: 66 | C33: Endurance | D33: Ignore Thirst
A34: CR | B34: 66 | C34: Endurance | D34: Run
A35: CR | B35: 66 | C35: Endurance | D35: Sleep in Armor
A36: CR | B36: 74 | C36: Endurance | D36: Swim
A37: F | B37: 30 | C37: Gather Information | D37: Analysis | E37: x
A38: SV | B38: 19 | C38: Gather Information | D38: Find a Good Score | E38: x
A39: SV | B39: 20 | C39: Gather Information | D39: Identify
A40: CR | B40: 67 | C40: Gather Information | D40: Learn News & Rumors
A41: CR | B41: 67 | C41: Gather Information | D41: Learn Secret Information
A42: CR | B42: 67 | C42: Gather Information | D42: Locate Individual
A43: SV | B43: 20 | C43: Gather Information | D43: Quick Intel | E43: x
A44: CR | B44: 68 | C44: Initiative | D44: Avoid Feint
A45: CR | B45: 68 | C45: Initiative | D45: Start Battle
A46: CR | B46: 68 | C46: Jump | D46: High Jump
A47: CR | B47: 68 | C47: Jump | D47: Jump Down
A48: CR | B48: 68 | C48: Jump | D48: Long Jump
A49: CR | B49: 68 | C49: Knowledge | D49: Common Knowledge
A50: CR | B50: 68 | C50: Knowledge | D50: Expert Knowledge | E50: x
A51: C | B51: 27 | C51: Knowledge (tactics) | D51: Anticipate Enemy Strategy | E51: x
A52: C | B52: 27 | C52: Knowledge (tactics) | D52: Battlefield Tactics | E52: x
A53: L | B53: 31 | C53: Mechanics | D53: Biotech Adaptation | E53: x | F53: tool kit
A54: SV | B54: 20 | C54: Mechanics | D54: Booby Trap | E54: x
A55: F | B55: 30 | C55: Mechanics | D55: Build Object | E55: x
A56: CR | B56: 68 | C56: Mechanics | D56: Disable Device | E56: x
A57: R | B57: 28 | C57: Mechanics | D57: Environmental Adaptation | F57: tool kit
A58: CR | B58: 69 | C58: Mechanics | D58: Handle Explosives | E58: x
A59: SV | B59: 20 | C59: Mechanics | D59: Hot Shot | E59: x
A60: CR | B60: 32 | C60: Mechanics | D60: Improvised Connection
A61: CR | B61: 70 | C61: Mechanics | D61: Jury-Rig | E61: x
A62: CR | B62: 70 | C62: Mechanics | D62: Modify Droid | E62: x
A63: CR | B63: 70 | C63: Mechanics | D63: Recharge Shields | E63: x
A64: L | B64: 31 | C64: Mechanics | D64: Refit Antiquated Vehicle or Weapon | E64: x
A65: CR | B65: 70 | C65: Mechanics | D65: Regulate Power | E65: x
A66: CR | B66: 70 | C66: Mechanics | D66: Repair | E66: x
A67: CR | B67: 70 | C67: Mechanics | D67: Repair Droid | E67: x
A68: CR | B68: 70 | C68: Mechanics | D68: Repair Object | E68: x
A69: CR | B69: 70 | C69: Perception | D69: Avoid Surprise
A70: CR | B70: 70 | C70: Perception | D70: Eavesdrop
A71: CR | B71: 70 | C71: Perception | D71: Hear Distant & Ambient Noises
A72: C | B72: 27 | C72: Perception | D72: Long-Range Spotter | E72: x | F72: electrobinoculars
A73: CR | B73: 70 | C73: Perception | D73: Notice Targets
A74: SV | B74: 20 | C74: Perception | D74: Quick Search | E74: x
A75: CR | B75: 70 | C75: Perception | D75: Sense Deception
A76: CR | B76: 71 | C76: Perception | D76: Sense Influence
A77: F | B77: 31 | C77: Persuasion | D77: Bribery
A78: CR | B78: 71 | C78: Persuasion | D78: Change Attitude
A79: CR | B79: 71 | C79: Persuasion | D79: Haggle
A80: F | B80: 31 | C80: Persuasion | D80: Improvised Communication
A81: CR | B81: 71 | C81: Persuasion | D81: Intimidate
A82: CR | B82: 71 | C82: Pilot | D82: Avoid Collision
A83: CR | B83: 71 | C83: Pilot | D83: Dogfight
A84: CR | B84: 72 | C84: Pilot | D84: Engage the Enemy | E84: x
A85: SV | B85: 20 | C85: Pilot | D85: Fly Casual | E85: x
A86: CR | B86: 72 | C86: Pilot | D86: Increase Vehicle Speed | E86: x
A87: CR | B87: 76 | C87: Pilot | D87: Ram
A88: CR | B88: 72 | C88: Ride | D88: Control Mount in Battle
A89: CR | B89: 72 | C89: Ride | D89: Fast Mount/Dismount
A90: CR | B90: 72 | C90: Ride | D90: Guide with knees
A91: CR | B91: 72 | C91: Ride | D91: Leap
A92: CR | B92: 72 | C92: Ride | D92: Ride Mount
A93: CR | B93: 72 | C93: Ride | D93: Soft Fall
A94: CR | B94: 72 | C94: Ride | D94: Stay in Saddle
A95: CR | B95: 72 | C95: Ride | D95: Use Mount as Cover
A96: CR | B96: 72 | C96: Stealth | D96: Conceal Item
A97: F | B97: 31 | C97: Stealth | D97: Conceal Large Items
A98: CR | B98: 29 | C98: Stealth | D98: Creating a Diversion to Hide
A99: SV | B99: 20 | C99: Stealth | D99: Drop
A100: CR | B100: 73 | C100: Stealth | D100: Pick Pocket
A101: CR | B101: 73 | C101: Stealth | D101: Sleight of Hand
A102: CR | B102: 72 | C102: Stealth | D102: Sneak
A103: CR | B103: 73 | C103: Stealth | D103: Snipe
A104: CR | B104: 73 | C104: Survival | D104: Basic Survival
A105: C | B105: 28 | C105: Survival | D105: Create Defensive Position | E105: x
A106: CR | B106: 73 | C106: Survival | D106: Endure Extreme Temps | F106: field kit
A107: F | B107: 31 | C107: Survival | D107: Extended Survival | E107: x
A108: CR | B108: 73 | C108: Survival | D108: Know Direction
A109: CR | B109: 20 | C109: Survival | D109: Track | E109: x
A110: CR | B110: 74 | C110: Swim | D110: Swim
A111: L | B111: 32 | C111: Treat Injury | D111: Biotech Repair | E111: x | F111: biotech tool kit
A112: CR | C112: Treat Injury | D112: Critical Care | E112: x
A113: D8 | B113: 17 | C113: Treat Injury | D113: Critical Care | E113: x
A114: CR | B114: 74 | C114: Treat Injury | D114: First Aid
A115: CR | B115: 74 | C115: Treat Injury | D115: Heal Damage
A116: CR | B116: 75 | C116: Treat Injury | D116: Install a Cybernetic Prosthesis
A117: CR | B117: 74 | C117: Treat Injury | D117: Long-Term Care
A118: CR | B118: 74 | C118: Treat Injury | D118: Perform Surgery | E118: x | F118: surgery kit
A119: CR | B119: 75 | C119: Treat Injury | D119: Revivify | E119: x | F119: medical kit
A120: L | B120: 32 | C120: Treat Injury | D120: Temporary Mending | E120: x
A121: CR | B121: 252 | C121: Treat Injury | D121: Treat Acid | F121: medical kit
A122: CR | B122: 75 | C122: Treat Injury | D122: Treat Disease | E122: x | F122: medical kit
A123: CR | B123: 75 | C123: Treat Injury | D123: Treat Poison | E123: x | F123: medical kit
A124: CR | B124: 75 | C124: Treat Injury | D124: Treat Radiation | E124: x | F124: medical kit
A125: CR | B125: 256 | C125: Treat Injury | D125: Treat Space Sickness
A126: CR | B126: 75 | C126: Use Computer | D126: Access Information | F126: computer aptitude of indifferent or better
A127: L | B127: 32 | C127: Use Computer | D127: Access or Reprogram Electronic Device
A128: CR | B128: 76 | C128: Use Computer | D128: Astrogate | E128: x
A129: SV | B129: 20 | C129: Use Computer | D129: Backtrail | E129: x
A130: L | B130: 32 | C130: Use Computer | D130: Copy or Reprogram Code Cylinder or Access Card
A131: SV | B131: 20 | C131: Use Computer | D131: Cover Tracks | E131: x
A132: CR | B132: 76 | C132: Use Computer | D132: Disable or Erase Program | E132: x | F132: computer aptitude of helpful
A133: CR | B133: 76 | C133: Use Computer | D133: Improve Access | E133: x
A134: CR | B134: 76 | C134: Use Computer | D134: Issue Routine Command | F134: computer aptitude of friendly or better
A135: CR | B135: 76 | C135: Use Computer | D135: Reprogram Droid | E135: x | F135: tool kit
A136: S | B136: 19 | C136: Use Computer | D136: Use Communications
A137: S | B137: 19 | C137: Use Computer | D137: Use Sensors
A138: CR | B138: 77 | C138: Use the Force | D138: Activate Force Power | E138: x
A139: J | B139: 10 | C139: Use the Force | D139: Breath Control | E139: x
A140: K | B140: 30 | C140: Use the Force | D140: Breath Control | E140: x
A141: CR | B141: 77 | C141: Use the Force | D141: Force Trance | E141: x
A142: C | B142: 28 | C142: Use the Force | D142: Move Light Object | E142: x
A143: J | B143: 10 | C143: Use the Force | D143: Move Light Object | E143: x
A144: L | B144: 33 | C144: Use the Force | D144: Move Light Object v. Vong | E144: x
A145: C | B145: 28 | C145: Use the Force | D145: Place Another in Force Trance | E145: x
A146: J | B146: 10 | C146: Use the Force | D146: Place Another in Force Trance | E146: x
A147: CR | B147: 77 | C147: Use the Force | D147: Search Your Feelings
A148: CR | B148: 77 | C148: Use the Force | D148: Sense Force | E148: x
A149: L | B149: 33 | C149: Use the Force | D149: Sense Force v. Vong | E149: x
A150: CR | B150: 77 | C150: Use the Force | D150: Sense Surroundings
A151: L | B151: 34 | C151: Use the Force | D151: Sense Surroundings | E151: x
A152: CR | B152: 77 | C152: Use the Force | D152: Telepathy
A153: L | B153: 34 | C153: Use the Force | D153: Telepathy does not work on Vong

Sheet Feats
A1: BOOK | B1: PAGE | C1: FEAT | D1: PREREQUISITES | E1: BENEFIT | F1: Jedi | G1: Noble | H1: Scoundrel | I1: Scout | J1: Soldier | K1: TAG
A2: T | B2: 64 | C2: A Few Maneuvers | D2: Dodge, Vehicular Combat | E2: Ref Def +2 in Colossal or smaller vehicle, if projectile misses by 5 | K2: [combat][defensive], [vehicle][starship]
A3: K | B3: 32 | C3: Accelerated Strike | D3: BAB +6 | E3: Once per encounter, full attack as stan | F3: x | J3: x | K3: [melee(armed, unarmed)][question ulswp], [combat][offensive],
A4: UR | B4: 24 | C4: Acrobatic Ally | D4: Dex 13, Str 13, trained in Acrobatics | E4: hoist or toss ally 2sq on DC20 Acrobatics as stan, free for ally, your turn ends | H4: x | K4: [dexterity][strength], [skill(acrobatics)], [support], [combat]
A5: UR | B5: 24 | C5: Acrobatic Dodge | D5: Dex 13, Mobility*, Skill Focus (Acrobatics)* | E5: 1/enc as reac if melee atk misses you can move into adjacent w/out AoO | H5: x | K5: [dexterity], [skill(acrobatics)], [mobility], [combat][defensive]
A6: CR | B6: 82 | C6: Acrobatic Strike | D6: Trained in Acrobatics | E6: Gain +2 on next attack against opponent you tumble past | F6: x | K6: [melee(armed, unarmed)][ok], [combat][offensive], [skill(acrobatics)], tumble
A7: GI | B7: 25 | C7: Adaptable Talent | E7: Choose talent from your classes, and swap that talent 1/day w/6 hrs rest | K7: [talent]
A8: F | B8: 31 | C8: Advantageous Attack | D8: BAB +1 | E8: if opponent has not yet acted, add full heroic level to damage | H8: x | I8: x | K8: [ranged(fired, thrown)][target], [melee(armed, unarmed)], [combat][offensive]
A9: F | B9: 31 | C9: Advantageous Cover | D9: Trained in Stealth | E9: when you have cover, take no damage from area attacks | H9: x | I9: x | J9: x | K9: [combat][defensive], [skill(stealth)]
A10: SGD | B10: 22 | C10: Aiming Accuracy | D10: Droid, PB Shot, Precise Shot, proficient | E10: if aim as full-round gain +5 atk against target if remains in LOS | K10: [species(droid)], ranged(fired, thrown)][target], [combat][offensive]
A11: R | B11: 31 | C11: Ample Foraging | D11: Ewok | E11: Basic Survival of Survival, each gets +2 Fort Def until start next day | K11: [species(ewok)], [skill(survival)], [fortitude defense], [defensive]
A12: F | B12: 32 | C12: Angled Throw | D12: Dex 13 | E12: if Atk exceeds Ref Def 15, ignore cover and improved cover | J12: x | K12: [ranged(grenade)], [combat][offensive], [dexterity]
A13: C | B13: 28 | C13: Anointed Hunter | D13: Nelvaanian species | E13: if end move 2 sq from start +1 Atk with thrown weapons | K13: [thrown], species(Nelvaanian), [combat][offensive]
A14: GW | B14: 28 | C14: Aquatic Specialists (team feat) | D14: Trained in Swim | E14: +3 Swim & +1 each ally w/feat w/in 12 sq (max +7), swim half spd as move | K14: [skill(swim)], [team], [support]
A15: CR | B15: 82 | C15: Armor Proficiency (heavy) | D15: AP light, AP medium | E15: no penalty or armor check from armor | I15: x | J15: x | K15: [armor], [combat][defensive]
A16: CR | B16: 82 | C16: Armor Proficiency (light) | E16: no penalty or armor check from light armor | G16: x | I16: x | K16: [armor], [combat][defensive]
A17: CR | B17: 82 | C17: Armor Proficiency (medium) | D17: AP light | E17: no penalty or armor check from light or medium armor | I17: x | K17: [armor], [combat][defensive]
A18: C | B18: 28 | C18: Artillery Shot | D18: proficient with weapon | E18: affect +2 sq with burst or splash at further than PB range | J18: x | K18: [ranged(grenade, fired, thrown)][burst][o][splash][o], [combat][offensive], [vehicle][starship]
A19: GW | B19: 28 | C19: Ascension Specialists (team feat) | D19: Trained in Climb | E19: +3 Climb & +1 each ally w/feat w/in 12 sq (max +7), climb half spd as move | K19: [skill(climb)], [team], [support]
A20: W | C20: Assault | D20: Double Atk or Dual Weapon I, BAB +6 | E20: spend FP to make 2 Atk as stan action not full | K20: [ranged(grenade, fired, thrown)][question gtmulti], [melee(armed, unarmed)][question ulswp], [combat][offensive]
A21: R | B21: 28 | C21: Assured Attack | E21: reroll lowest damage die if roll multiple dice, must take reroll | F21: x | J21: x | K21: [ranged(fired, thrown)][target], [melee(armed, unarmed)], [combat][offensive]
A22: L | B22: 34 | C22: Attack Combo (Fire & Strike) | D22: BAB +9, Atk Combo (Melee) & (Ranged) | E22: if hit single target with 2 consecutive atks in same turn, additional atks +1 die dam | J22: x | K22: [ranged(fired, thrown)][target], [melee(armed, unarmed)], [combat][offensive], ,
A23: L | B23: 34 | C23: Attack Combo (Melee) | D23: BAB +3 | E23: if hit single target with 2 consecutive melee or unarmed atks in same turn, additional atks +1 die dam | F23: x | J23: x | K23: [melee(armed, unarmed)][ok], [combat][offensive], , [unarmed attack]
A24: L | B24: 34 | C24: Attack Combo (Ranged) | D24: BAB +3 | E24: if hit single target with 2 consecutive ranged atks in same turn, additional atks +1 die dam | H24: x | I24: x | J24: x | K24: [ranged(fired, thrown)][target], [combat][offensive],
A25: L | B25: 34 | C25: Autofire Assault | D25: Weapon Focus | E25: autofire penalty -2 if autofired to same target last round, +1 die dam | J25: x | K25: [ranged(fired)], [autofire], [combat][offensive]
A26: L | B26: 34 | C26: Autofire Sweep | D26: Weapon Focus | E26: autofire as 6sq cone | J26: x | K26: [ranged(fired)], [autofire], [combat][offensive]
A27: F | B27: 32 | C27: Bad Feeling | E27: extra move action in surprise round even if not surprised | H27: x | I27: x | K27: [mobility], [combat]
A28: GW | B28: 22 | C28: Bantha Herder | D28: BAB +1, proficient with weapon | E28: if dam a Large or smaller creature with a ranged atk compare to Will Def & can move target(s) 1 sq in any direction as free | H28: x | J28: x | K28: [ranged(grenade, fired, thrown)][damage], [combat][offensive], [ranged attacks]
A29: CR | B29: 82 | C29: Bantha Rush | D29: Str 13, BAB +1 | E29: Push opponent 1 square after successful melee attack | J29: x | K29: [melee(armed, unarmed)][ok], [combat][offensive], [strength],
A30: GW | B30: 23 | C30: Battering Attack | D30: Bantha Rush, Trip | E30: can knock target prone if you move target with Bantha Rush | F30: x | J30: x | K30: [melee(armed, unarmed)][ok], [combat][offensive]
A31: R | B31: 31 | C31: Binary Mind | D31: Cerean | E31: enemy must roll mind-affecting effects twice & keep lower | K31: [species(cerean)], [Will Defense], [combat][defensive]
A32: L | B32: 34 | C32: Biotech Specialist | D32: Trained in Mechanics | E32: modify a biotech item to give a special trait | G32: x | H32: x | K32: [skill(mechanics], [craft]
A33: L | B33: 35 | C33: Biotech Surgery | D33: Trained in Treat Injury | E33: install biotech prosthesis | G33: x | K33: [skill(treat injury)]
A34: F | B34: 32 | C34: Blaster Barrage | D34: Coordinated Attack | E34: +2 Atk to allies with autofire if you're successful with autofire | J34: x | K34: [ranged(fired)], [autofire], [combat][offensive]
A35: GI | B35: 25 | C35: Bone Crusher | D35: Crush* | E35: When you deal damage to grappled target, move it -1 down track | J35: x | K35: [melee(unarmed)], [grapple], [pin], [combat][offensive]
A36: R | B36: 31 | C36: Bothan Will | D36: Bothan | E36: if attack v. Will Def fails, gain +2 Will Def until start of your next turn | K36: [species(bothan)], [Will Defense], [combat][defensive]
A37: R | B37: 31 | C37: Bowcaster Marksman | D37: Wookiee | E37: when spend Force Point to atk w/bowcaster, add result to dam too | K37: [ranged(fired)], [species(wookiee)], [bowcaster], [combat][offensive]
A38: GI | B38: 25 | C38: Brilliant Defense | D38: Int 13 | E38: 1/enc add Int mod to Ref Def as reac until your next turn | F38: x | G38: x | K38: [intelligence], [reflex defense], [combat][defensive]
A39: L | B39: 35 | C39: Brink of Death | E39: if you deal damage that kills, can reduce to 0 hp instead | F39: x | J39: x | K39: [ranged(grenade, fired, thrown)][damage], [melee(armed, unarmed)], [combat][offensive]
A40: CR | B40: 82 | C40: Burst Fire | D40: WP heavy, proficient w/weapon | E40: -5 on autofire Atk to gain +2 dice dam, 5 shots, if no Str 13 -10 Atk | K40: [ranged(fired)], [autofire], [combat][offensive], [strength], [vehicle][starship][SotG]
A41: SV | B41: 21 | C41: Burst of Speed | D41: Trained in Endurance | E41: move action to move twice speed, -1 down track at end | F41: x | H41: x | I41: x | J41: x | K41: [skill(endurance)], [mobility], [combat]
A42: CR | B42: 82 | C42: Careful Shot | D42: BAB +2, Point Blank Shot | E42: if you aim, +1 Atk | I42: x | J42: x | K42: [ranged(grenade, fired, thrown)][ranged attack][question gtaim], [combat][offensive], [aim], [vehicle][starship][SotG]
A43: GI | B43: 25 | C43: Channel Rage | D43: Rage | E43: 1/day expend use of Rage for +5 to Will Def for enc | K43: [rage], [Will Defense], [combat][defensive]
A44: CR | B44: 82 | C44: Charging Fire | D44: BAB +4 | E44: make ranged Atk at end of charge, -2 to Ref Def | J44: x | K44: [ranged(grenade, fired, thrown)][ranged attack], [mobility], [charge], [combat][offensive],
A45: K | B45: 31 | C45: Charging Fire + Dodge | D45: Combo, requires Dodge | E45: Ref Def penalty -1 when making a ranged attack at end of charge | K45: [ranged(fired, thrown)][target], [mobility], [charge], [combat][defensive][offensive], [combo],
A46: R | B46: 31 | C46: Clawed Subspecies | D46: Quarren | E46: gain claws 1d6 dam | K46: [melee(unarmed)], [species(quarren)], [combat][offensive]
A47: CR | B47: 83 | C47: Cleave | D47: Str 13, Power Attack | E47: extra melee Atk after dropping target, within reach, same BAB | F47: x | J47: x | K47: [melee(armed, unarmed)][ok], [combat][offensive], [strength],
A48: SV | B48: 21 | C48: Close Combat Escape | D48: Trained in Acrobatics | E48: if escape grapple, swif action for single melee atk v. grappler | F48: x | H48: x | K48: [melee(armed, unarmed)][ok], [skill(acrobatics)], [combat][offensive],
A49: SV | B49: 21 | C49: Collateral Damage | D49: Rapid Shot, BAB +6 | E49: with Rapid Shot make a 2nd atk at -2 w/in 2sq of target, deal half dam | H49: x | J49: x | K49: [ranged(fired)], [combat][offensive]
A50: CR | B50: 83 | C50: Combat Reflexes | E50: gain additional Attacks of Opportunity = Dex mod & flat-footed | F50: x | J50: x | K50: [ranged(fired)][question gtaoo], [melee(armed, unarmed)], [combat][offensive], [attack of opportunity], [dexterity]
A51: UR | B51: 24 | C51: Combat Trickery | D51: Trained in Deception | E51: spend 2 swif on same turn for Deception v. Will Def for target to be flat-footed v. your next atk, spend FP for until end of enc | G51: x | H51: x | K51: [skill(deception)], [combat][offensive][flat-footed]
A52: K | B52: 32 | C52: Conditioning | D52: Str 13, Con 13 | E52: reroll Str & Con skills trained in, mtr & 1/encounter add Str to Fort | I52: x | J52: x | K52: [fortitude defense], [strength], [constitution], [skill(general)], [defensive]
A53: R | B53: 31 | C53: Confident Success | D53: Bothan | E53: when successfully use Learn Secret Info gain Force Point up to 3 & max | K53: [species(bothan)], [skill(gather information)]
A54: F | B54: 33 | C54: Controlled Rage | D54: Rage | E54: enter Rage as free action, end 1 round after you want to | K54: [rage], [combat][offensive]
A55: CR | B55: 83 | C55: Coordinated Attack | D55: BAB +2 | E55: Automatic success with aid another at point blank range | J55: x | K55: [ranged(fired, thrown)][target], [question gtaa], [melee(armed, unarmed)], [combat][offensive], [support], [aid fire], [vehicle][starship][SotG]
A56: C | B56: 28 | C56: Coordinated Barrage | D56: BAB +5, Coordinated Attack | E56: when aid for every 3 over Ref Def +1 die dam (+5 max) | J56: x | K56: [ranged(fired, thrown)][target], [question gtaa], [combat][offensive], [support], [aid fire], [vehicle][starship]
A57: SV | B57: 21 | C57: Cornered | E57: when threatened & unable to withdraw +2 Atk against opponents | G57: x | H57: x | I57: x | K57: [ranged(grenade, fired, thrown)][attack rolls], [melee(armed, unarmed)], [combat][offensive]
A58: GW | B58: 28 | C58: Covert Operatives (team feat) | D58: Trained in Stealth | E58: +3 Stealth & +1 each ally w/feat w/in 12 sq (max +7), when moving your spd or more penalties reduced by 2 | K58: [skill(stealth)], [team], [support]
A59: K | B59: 32 | C59: Critical Strike | D59: BAB +9, melee weapon, Weapon Focus | E59: 2 swif for crit range +1 on next melee Atk, no other actions before | F59: x | J59: x | K59: [melee(armed, unarmed)][question ulswp], [combat][offensive],
A60: F | B60: 33 | C60: Crossfire | D60: PB Shot, Precise Shot, BAB +6 | E60: 1/round, if you miss v. soft cover, make attack v. soft cover | H60: x | J60: x | K60: [ranged(fired, thrown)][target][question gtmulti], [combat][offensive],
A61: CR | B61: 83 | C61: Crush | D61: BAB +1, Pin | E61: deal unarmed damage to a pinned opponent | J61: x | K61: [melee(unarmed)], [grapple], [pin], [combat][offensive]
A62: F | B62: 33 | C62: Cunning Attack | E62: +2 Atk v. flat-footed or any denied Dex to Ref Def | H62: x | I62: x | K62: [ranged(fired, thrown)][target], [melee(armed, unarmed)], [combat][offensive]
A63: GI | B63: 27 | C63: Cut the Red Tape | D63: Trained in Knowledge (bureaucracy) | E63: Knowledge (bureaucracy) replaces Gather Info & considered trained | G63: x | K63: [skill(knowledge (bureaucracy))]
A64: CR | B64: 83 | C64: Cybernetic Surgery | D64: Trained in Treat Injury | E64: install cybernetic prosthesis | G64: x | K64: [skill(treat injury)]
A65: SGD | B65: 22 | C65: Damage Conversion | D65: Droid, Dex 13 | E65: if dam from atk (not area, ion, or Force) equals or exceeds thresh can take 10 dam & not move down track (each additional use increases dam by 5) | K65: [species(droid)], [dexterity], [damage threshold], [combat][defensive]
A66: R | B66: 31 | C66: Darkness Dweller | D66: Sullustan | E66: enemy that makes Stealth check w/in 10 sq of you is -2 | K66: [species(sullustan)]
A67: CR | B67: 84 | C67: Deadeye | D67: BAB +4, PB Shot, Precise Shot | E67: if you aim, deal extra die damage | H67: x | I67: x | J67: x | K67: [ranged(fired, thrown)][target][question gtaim], [combat][offensive], [aim], [vehicle][starship][SotG]
A68: SV | B68: 21 | C68: Deadly Sniper | D68: Sniper, trained in Stealth | E68: if target is unaware of you +2 Atk & +1 die dam on first attack | I68: x | J68: x | K68: [ranged(fired, thrown)][target], [combat][offensive], [skill(stealth)],
A69: SV | B69: 21 | C69: Deceptive Drop | D69: Trained in Initiative | E69: in surprise rnd if you dam flat-foot opp they are prone if over FortDef | H69: x | K69: [ranged(grenade, fired, thrown)][damage], [melee(armed, unarmed)], [skill(initiative], [combat][offensive]
A70: R | B70: 31 | C70: Deep Sight | D70: Quarren | E70: gain darkvision | K70: [species(quarren)]
A71: R | B71: 28 | C71: Deft Charge | E71: after you charge, you may take swif, reac & free actions | F71: x | I71: x | J71: x | K71: [mobility], [charge]
A72: GI | B72: 27 | C72: Demoralizing Strike | D72: Cha 13 | E72: when you dam target with AoO = free Persuasion to intimidate them | G72: x | K72: [ranged(fired)][question gtaoo], [melee(armed, unarmed)], [attack of opportunity], [combat][offensive], [charisma], [skill(persuasion)]
A73: SV | B73: 21 | C73: Desperate Gambit | E73: 1/turn if miss Atk, reroll w/ -2 RefDef until end next turn, nat 1=-5, mtr | H73: x | K73: [ranged(grenade, fired, thrown)][attack roll], [melee(armed, unarmed)], [combat][offensive]
A74: GW | B74: 23 | C74: Destructive Force | E74: deal 1 die dam to all targets & allies adjacent to a vehicle or object you reduce to 0 hp or equal or exceed thresh | I74: x | J74: x | K74: [ranged(fired, thrown)][damage], [melee(armed, unarmed)], [combat][offensive]
A75: R | B75: 31 | C75: Devastating Bellow | D75: Ithorian | E75: bellow atk deals 4d6 dam | K75: [species(ithorian)], [combat][offensive]
A76: GW | B76: 23 | C76: Disabler | D76: proficient with weapon | E76: Ion Grenade 3sq burst, Ion Pistol dam dice d8, Ion Rifle is accurate | G76: x | H76: x | I76: x | J76: x | K76: [ranged(grenade, fired)][ok], [combat][offensive],
A77: R | B77: 31 | C77: Disarming Charm | D77: Sullustan | E77: when you successfully change attitude, +2 Deception & Persuasion v. target for next 24 hours | K77: [species(sullustan)], [skill(persuasion)], [skill(deception)]
A78: SGD | B78: 22 | C78: Distracting Droid | D78: Droid | E78: as stan action, Persuasion v. Will Def of all w/in 6 sq & enemy loses 1 move & if by 10 or more enemy flat-footed | K78: [species(droid)], [skill(persuasion)], [combat][offensive]
A79: GI | B79: 27 | C79: Disturbing Presence | D79: trained in Deception | E79: DC 15 Deception check to "tumble" through threatened area, move x2 | G79: x | H79: x | K79: [tumble], [skill(deception)]
A80: GW | B80: 23 | C80: Dive for Cover | D80: Trained in Jump | E80: 1/turn as reac when targeted by ranged atk make horizontal Jump to gain cover & land prone | F80: x | I80: x | J80: x | K80: [skill(jump)], [combat][defensive]
A81: CR | B81: 84 | C81: Dodge | D81: Dex 13 | E81: +1 Ref Def against selected target | F81: x | H81: x | I81: x | K81: [combat][defensive], [dexterity], [vehicle][starship][SotG]
A82: K | B82: 31 | C82: Dodge + Charging Fire | D82: Combo, requires Charging Fire | E82: Ref Def penalty -1 when making a ranged attack at end of charge | K82: [ranged(grenade, fired, thrown)][attack roll], [charge], [combat][defensive][offensive], [combo],
A83: K | B83: 31 | C83: Dodge + Running Attack | D83: Combo, requires Running Attack | E83: add Dodge bonus to Ref Def v. Atk of opp | K83: [ranged(grenade, fired, thrown)][ranged attack], [melee(armed, unarmed)], [mobility], [combat][defensive][offensive], [combo], ,
A84: CR | B84: 84 | C84: Double Attack | D84: BAB +6, proficient with weapon | E84: extra Atk during full attack, -5 penalty all attacks, per weapon group | F84: x | J84: x | K84: [ranged(grenade, fired, thrown)][question gtmulti], [melee(armed, unarmed)][question ulswp], [combat][offensive], [vehicle][starship][SotG]
A85: W | C85: Dreadful Countenance | D85: Cha 13, Sith | E85: Persuasion or Use the Force for fear effect, may reroll, mtr | K85: x
A86: CR | B86: 84 | C86: Dreadful Rage | D86: BAB +1, Rage species trait | E86: rage bonus to Atk and dam increases to +5 | K86: [melee(armed, unarmed)], [rage], [combat][offensive],
A87: SGD | B87: 22 | C87: Droid Focus | D87: Trained in Mechanics & Use Computer | E87: +1 to Deception, Mechanics, Perception, Persuasion, Use Computer on or against droid & +1 to all Def v. attacks & skill checks made by droids | K87: [skill(mechanics)], [skill(use computer)], [skill(deception)], [skill(persuasion)], [skill(perception)], [combat][defensive]
A88: C | B88: 29 | C88: Droid Hunter | D88: proficient with weapon | E88: +2 dam v. droids, +4 dam v, droids with ion | H88: x | I88: x | J88: x | K88: [ranged(fired, thrown)][target], [melee(armed, unarmed)], [combat][offensive]
A89: SGD | B89: 22 | C89: Droid Shield Mastery | D89: Droid, equipped with shield generator | E89: automatically restore SR by 5 & with only 2 swif actions | K89: [species(droid)], [skill(endurance)], [combat][defensive]
A90: C | B90: 28 | C90: Droidcraft | D90: Trained in Mechanics | E90: repair droids in 10 minutes not 1 hour | H90: x | I90: x | K90: [skill(mechanics]
A91: CR | B91: 84 | C91: Dual Weapon Mastery I | D91: Dex 13, BAB +1 | E91: -5 penalty when attacking with two weapons or a double weapon | F91: x | J91: x | K91: [ranged(grenade, fired, thrown)][question gtdw], [melee(armed, unarmed)], [combat][offensive], [dexterity], [no][SotG]
A92: K | B92: 31 | C92: Dual Weapon Mastery I + Quick Draw | D92: Combo, requires Quick Draw | E92: draw or holster 2 weapons as single swif action | K92: [ranged(grenade, fired, thrown)][question gtdw], [melee(armed, unarmed)], [combat][offensive], [combo], [dexterity]
A93: CR | B93: 84 | C93: Dual Weapon Mastery II | D93: Dex 15, BAB +6, Dual Weapon Mastery I | E93: -2 penalty when attacking with two weapons or a double weapon | F93: x | J93: x | K93: [ranged(grenade, fired, thrown)][question gtdw], [melee(armed, unarmed)], [combat][offensive], [dexterity]
A94: CR | B94: 84 | C94: Dual Weapon Mastery III | D94: Dex 17, BAB +11, Dual Mastery I, II | E94: no penalty when attacking with two weapons or a double weapon | F94: x | J94: x | K94: [ranged(grenade, fired, thrown)][question gtdw], [melee(armed, unarmed)], [combat][offensive], [dexterity]
A95: SV | B95: 21 | C95: Duck and Cover | D95: Trained in Stealth | E95: if area attack misses 1/turn you can move 2 sq as a reac, no atk opp | H95: x | K95: [skill(stealth)], [combat][defensive]
A96: GW | B96: 26 | C96: Echani Training | D96: Dex 13, Martial Arts I | E96: dam bonus from Str x2 if make only one unarmed Atk, 1/enc when deal dam, make unarmed Atk to knock prone, w/Expertise talent w/crit target is knocked prone if not more than 1 size larger | K96: [melee(unarmed)], [martial arts], [combat][offensive], [dexterity]
A97: K | B97: 33 | C97: Echani Training | D97: Dex 13, Martial Arts I | E97: dam bonus from Str x2 if make only one unarmed Atk, 1/enc when deal dam, make unarmed Atk to knock prone | K97: [melee(unarmed)], [martial arts], [combat][offensive], [dexterity]
A98: UR | B98: 24 | C98: Elder's Knowledge | D98: SF Knowledge (social sciences) or (galactic lore) | E98: 1/enc replace Know (social science) or (galactic lore) with Wisdom or Wisdom-related check | F98: x | G98: x | K98: [skill(social sciences)], [skill(galactic lore)], [wisdom]
A99: SGD | B99: 22 | C99: Erratic Target | D99: Droid, Dex 13, Dodge, hovering/flying locomotion | E99: reduce spd by 1 or 2 to increase Dodge +1 or +2, must move 2 sq | K99: [species(droid)], [mobility], [dexterity], [combat][defensive]
A100: CR | B100: 84 | C100: Exotic Weapon Proficiency | D100: BAB +1 | G100: x | J100: x | K100: [ranged(grenade, fired, thrown)][ok], [melee(armed)][ok], [combat][offensive], [atlatl], [bowcaster]
A101: C | B101: 29 | C101: Experienced Medic | D101: Trained in Treat Injury | E101: perform surgery on number = to Int mod (2 min), check individually | G101: x | J101: x | K101: [skill(treat injury)]
A102: GI | B102: 27 | C102: Expert Briber | D102: Cha 13 | E102: reduce Persuasion's Haggle DC by 10 | G102: x | H102: x | K102: [charisma], [trade]
A103: C | B103: 29 | C103: Expert Droid Repair | D103: Trained in Mechanics | E103: repair droids = to Int mod | H103: x | I103: x | K103: [skill(mechanics]
A104: CR | B104: 85 | C104: Extra Rage | D104: Rage species trait | E104: rage one extra time a day | K104: [rage], [combat][offensive]
A105: CR | B105: 85 | C105: Extra Second Wind | D105: Trained in Endurance | E105: one extra second wind a day, nonheroic can take | K105: [second wind], [skill(endurance)], [combat][defensive]
A106: CR | B106: 85 | C106: Far Shot | D106: Point Blank Shot | E106: reduces range penalties by one range category, ex. short = PB | I106: x | J106: x | K106: [ranged(fired, thrown)][target], [combat][offensive], [vehicle][starship][SotG]
A107: R | B107: 29 | C107: Fast Surge | E107: catch second wind as free not swif | F107: x | G107: x | H107: x | I107: x | J107: x | K107: [second wind], [combat][defensive]
A108: R | B108: 33 | C108: Fast Swimmer | D108: Mon Calamari | E108: +2 swim spd | K108: [species(mon calamari)]
A109: L | B109: 36 | C109: Fatal Hit | D109: Str 13, Dex 13 | E109: if your attack drops target to 0 hp you can kill them even if not over thresh, perform coup-de-grace as stan | H109: x | I109: x | J109: x | K109: [ranged(grenade, fired, thrown)][damage], [melee(armed, unarmed)], [combat][offensive], [dexterity], [strength]
A110: L | B110: 35 | C110: Feat of Strength | D110: Str 15 | E110: take 20 on trained Str skill check as full, DC15 Endurance to use again | F110: x | I110: x | J110: x | K110: [strength], [skill(general)]
A111: GW | B111: 23 | C111: Fight Through Pain | E111: can use Will Def instead of Fort Def to determine thresh | F111: x | G111: x | H111: x | K111: [Will Defense], [damage threshold], [combat][defensive]
A112: C | B112: 29 | C112: Flash and Clear | E112: if damage opponent with burst or splash, gain concealment | I112: x | J112: x | K112: [ranged(grenade, fired, thrown)][burst][o][splash][o], [combat][defensive][offensive]
A113: R | B113: 33 | C113: Flawless Pilot | D113: Duros | E113: always keep the better result on a Pilot reroll | K113: [skill(pilot)], [species(duros)], [vehicle][starship]
A114: GI | B114: 27 | C114: Flèche | D114: BAB +1 | E114: 1/enc when you charge nat 17-20 is a critical | G114: x | J114: x | K114: [melee(armed, unarmed)], [ranged(fired)][ranged attack], [mobility], [charge], [combat][offensive]
A115: SV | B115: 21 | C115: Fleet-Footed | D115: Running Attack | E115: if move before & after attack increase speed 2 sq | H115: x | K115: [mobility]
A116: C | B116: 29 | C116: Flood of Fire | D116: proficient with weapon | E116: with autofire targets lose all dodge or deflection bonuses | J116: x | K116: [ranged(fired)], [autofire], [combat][offensive]
A117: K | B117: 33 | C117: Flurry | D117: Dex 13 | E117: +2 Atk melee with light weapons or lightsabers, -5 Ref Def | F117: x | G117: x | J117: x | K117: [melee(armed, unarmed)][question ulswp], [combat][offensive], [dexterity],
A118: F | B118: 33 | C118: Focused Rage | D118: Rage, Controlled Rage | E118: can use concentration skills with Rage at -5 penalty | K118: [rage], [combat][offensive]
A119: J | B119: 23 | C119: Follow Through | E119: if reduce opp to 0 hp with melee atk can move your speed, with Cleave can move 1st | K119: [melee(armed, unarmed)][ok], [combat][offensive], [mobility],
A120: CR | B120: 85 | C120: Force Boon | D120: Force Sensitivity | E120: gain 3 extra Force Points per level | K120: [force]
A121: GW | B121: 23 | C121: Force of Personality | D121: Cha 13 | E121: can use either Wis or Cha mod to determine Will Def | F121: x | G121: x | H121: x | K121: [Will Defense], [wisdom], [charisma], [combat][defensive]
A122: K | B122: 33 | C122: Force Readiness | E122: spend Force Points as free action out of turn | F122: x | K122: [force]
A123: J | B123: 23 | C123: Force Regimen Mastery | D123: Force Sensitivity, trained Use the Force | E123: Learn a number of Force Regimens = 1 + Wis mod (min one) | K123: [force], [skill(use the force)]
A124: CR | B124: 85 | C124: Force Sensitivity | D124: Non-droid | E124: can make Use the Force checks, can select Force talents | K124: [force]
A125: CR | B125: 85 | C125: Force Training | D125: Force Sensitivity | E125: Learn a number of Force Powers = 1 + Wis mod (min one) | K125: [force], [skill(use the force)]
A126: K | B126: 31 | C126: Force Training + Improved Disarm | D126: Combo, requires Improved Disarm | E126: gain +5 from Improved Disarm on Use the Force check | K126: [melee(armed, unarmed)][ok], [force], [disarm], [combat][offensive], [combo]
A127: GW | B127: 23 | C127: Forceful Blast | D127: BAB +1, proficient with weapon | E127: if dam a Large or smaller creature with a grenade or thermal detonator compare to Fort Def & can move target(s) 1 sq in any direction as free | I127: x | J127: x | K127: [ranged(grenade)][ok], [combat][offensive]
A128: GI | B128: 27 | C128: Forceful Recovery | D128: Force Training* | E128: When you use second wind, return a force power already used also | K128: [force], [second wind]
A129: R | B129: 33 | C129: Forest Stalker | D129: Ewok | E129: always keep the better result on a Stealth reroll | K129: [species(ewok)], [skill(stealth)]
A130: GW | B130: 23 | C130: Fortifying Recovery | D130: Con 13 | E130: when you recover gain hp = 2 x Con mod (min 2) | I130: x | J130: x | K130: [recover], [constitution], [combat][defensive]
A131: SV | B131: 21 | C131: Friends in Low Places | D131: Trained in Gather Information | E131: to acquire license Gather Info replaces Know (bureaucracy) | G131: x | H131: x | K131: [skill(gather information)], [trade]
A132: UR | B132: 24 | C132: Frightening Cleave | D132: BAB +4, Str 13, Cleave, Power Attack | E132: after use Cleave each enemy w/in 6sq & LOS -1 Ref Def, atk, skill until end of enc, stacks to -5 | J132: x | K132: [strength], [cleave], [combat][offensive][melee(armed, unarmed)]
A133: R | B133: 33 | C133: Fringe Benefits | D133: Rodian | E133: whenever you buy black market goods reduce multiplier by 2 (min x1) | K133: [species(rodian)], [trade]
A134: L | B134: 36 | C134: Galactic Alliance Military Training | E134: do not move down track first time in an encounter | J134: x | K134: [damage threshold], [combat][defensive]
A135: K | B135: 33 | C135: Gearhead | E135: full = stan, stan = move, move = swif, mult swif = swif, full+ = half -10 | H135: x | I135: x | K135: [skill(mechanics], [skill(use computer)]
A136: UR | B136: 24 | C136: Grab Back | D136: Dex 13 | E136: +2 Ref Def v. grab/grapple, if enemy misses you can make grab/grapple v. same | J136: x | K136: [dexterity], [grapple], [combat][offensive][defensive][melee(unarmed)]
A137: C | B137: 31 | C137: Grand Army of the Republic Training | D137: proficient with armor worn | E137: apply armor's Fort Def to Will Def also | J137: x | K137: [armor], [Will Defense], [combat][defensive]
A138: L | B138: 36 | C138: Grapple Resistance | E138: +5 v. grab or grapple, +5 opposed grapple, +5 all your objects | F138: x | I138: x | J138: x | K138: [combat][defensive]
A139: GI | B139: 27 | C139: Grazing Shot | D139: Point Blank Shot | E139: with ranged atk, target a second creature w/in LOS & 6sq of target, divide dam between both, or no dam to either if 2nd atk fails | I139: x | J139: x | K139: [ranged(fired, thrown)][target], [combat][offensive]
A140: CR | B140: 85 | C140: Great Cleave | D140: Str 13, Cleave, Power Attack, BAB +4 | E140: no limit to cleave attacks per round | F140: x | J140: x | K140: [melee(armed, unarmed)][question ulswp], [combat][offensive], [strength],
A141: R | B141: 33 | C141: Gungan Weapon Master | D141: Gungan | E141: when spend Force Point to atk w/atlatl or cesta increase dam die by 1 step | K141: [ranged(fired)], [melee(armed)], [species(gungan)], [combat][offensive], [atlatl], [cesta]
A142: C | B142: 31 | C142: Gunnery Specialist | D142: BAB +1 (can use Gunnery tactics) | E142: 1/encounter reroll vehicle atk, proficient w/vehicle weapons | J142: x | K142: [combat][offensive], [skill(pilot)], [vehicle][starship]
A143: UR | B143: 26 | C143: Halt | D143: BAB +8, Trip, Weapon Focus* | E143: if hit w/Atk of Opp compare same die roll result v. grapple target halts move & prone, if over thresh than lose all actions | J143: x | K143: [grapple], [Attack of Opportunity], [combat][melee(unarmed)]
A144: SV | B144: 22 | C144: Hasty Modification | D144: Tech Specialist | E144: exchange a trait for another, 1 min DC 20 Mechanics | G144: x | H144: x | K144: [skill(mechanics], [tech specialist], [craft]
A145: UR | B145: 26 | C145: Heavy Hitter | D145: Weapon Focus (heavy weapons)* | E145: +1 die dam every 5 pts over Ref Def, if over thresh then target can't atk next turn & reduce spd 2sq | J145: x | K145: [combat][offensive][ranged(fired, heavy)]
A146: SV | B146: 22 | C146: Hideous Visage | D146: Shapeshift | E146: 1/encounter swif Deception v. WillDef move target 1sq & -1 atk v. you | K146: [species(shapeshifter)], [skill(deception)]
A147: GW | B147: 26 | C147: Hijkata Training | D147: Combat Reflexes, Martial Arts I | E147: 1/rnd when adjacent enemy damages you w/melee atk you can make Atk of Opp w/-5 atk, 1/enc w/Atk of Opp from you that enemy takes penalty on atk = your Dex mod until end of next turn, w/Expertise 1/enc spend full & designate single ally, any enemy adjacent to you or ally provokes Atk of Opp. If ally moves you can move spd as reac but must end adjacent to enemy | K147: [melee(unarmed)], [martial arts], [attack of opportunity], [combat][offensive], [dexterity],
A148: GI | B148: 28 | C148: Hobbling Strike | D148: Sneak Attack talent or Rapid Shot/Strike | E148: sacrifice extra dam from Sneak Atk to reduce target's spd by 1 for enc | H148: x | I148: x | J148: x | K148: [melee(armed, unarmed)], [ranged(fired)][ranged attack], [damage], [combat][offensive]
A149: UR | B149: 26 | C149: Hold Together | D149: Trained in Mechanics | E149: as reac spend FP to delay dam effect to vehicle until end of round, Col | H149: x | I149: x | K149: [skill(mechanics)]
A150: R | B150: 33 | C150: Hunter's Instincts | D150: Rodian | E150: always keep the better result on a Perception reroll | K150: [species(rodian)], [skill(perception)])
A151: UR | B151: 26 | C151: Hyperblazer | D151: Trained in Use Computer | E151: reduce time & penalties Use Computer to navigate the tangle & mapping | I151: x | K151: [skill(use computer)]
A152: R | B152: 34 | C152: Imperceptible Liar | D152: Twi'lek | E152: when spend Force Point to Deception, increase die type by 2 steps | K152: [species(twi’lek)], [skill(deception)]
A153: R | B153: 29 | C153: Imperial Military Training | E153: 1/enc as free action on your turn, negate 1 mind-affecting effect | J153: x | K153: [combat][defensive]
A154: SV | B154: 23 | C154: Impersonate | D154: Shapeshift, SF Deception | E154: alter features & voice to a specific person, Moderate deception | K154: [species(shapeshifter)], [skill(deception)]
A155: SV | B155: 23 | C155: Impetuous Move | D155: Con 13 | E155: when catch 2nd wind, regain only half hp to move half spd, no atk opp | F155: x | J155: x | K155: [second wind], [combat][defensive], [constitution]
A156: K | B156: 33 | C156: Implant Training | D156: Possess a cybernetic implant | E156: not moved down track extra step when would be moved down | H156: x | K156: x
A157: F | B157: 33 | C157: Improved Bantha Rush | D157: Str 15, Bantha Rush, BAB +1 | E157: Push opponent squares = Str mod (2min) after successful melee attack | J157: x | K157: [melee(armed, unarmed)][ok], [combat][offensive], [strength]
A158: CR | B158: 85 | C158: Improved Charge | D158: Dex 13, Dodge, Mobility | E158: can charge without moving in a straight line | F158: x | J158: x | K158: [mobility], [charge], [dexterity]
A159: CR | B159: 86 | C159: Improved Damage Threshold | E159: damage threshold increases by 5 | K159: [damage threshold], [combat][defensive]
A160: CR | B160: 85 | C160: Improved Defenses | E160: +1 to all Def | K160: [Will Defense], [fortitude defense], [reflex defense], [combat][defensive], [no][SotG]
A161: CR | B161: 85 | C161: Improved Disarm | D161: Int 13, Melee Defense | E161: +5 to melee attacks to Disarm, failure doesn't provoke Atk of Opp | F161: x | J161: x | K161: [melee(armed, unarmed)][ok], [disarm], [combat][offensive], , [intelligence]
A162: K | B162: 31 | C162: Improved Disarm + Force Training | D162: Combo, requires Force Training | E162: gain +5 from Improved Disarm on Use the Force check | K162: [melee(armed, unarmed)][ok], [force], [disarm], [combat][offensive], [combo]
A163: GI | B163: 28 | C163: Improved Opportunistic Trickery | D163: Opportunistic Trickery* | E163: 1/turn instead of AoO, reduce target's Ref Def by 5 for 1 turn | H163: x | K163: [ranged(fired)][question gtaoo], [melee(armed, unarmed)], [attack of opportunity], [combat][offensive]
A164: K | B164: 33 | C164: Improved Rapid Strike | D164: Rapid Strike, light melee weapon | E164: -5 Atk to deal +2 die damage, melee, if no Dex 13 extra -10 Atk | F164: x | J164: x | K164: [melee(armed, unarmed)][question ulswp], [combat][offensive],
A165: UR | B165: 26 | C165: Improved Sleight of Hand | D165: Dex 15, SF (Deception)*, trained in Stealth | E165: Deception as swif opposed Perception must exceed Deception & Stealth, can draw & palm weapon 2 sizes smaller than you | H165: x | K165: [dexterity], [skill(deception)], [skill(stealth)]
A166: UR | B166: 27 | C166: Improvised Weapon Mastery | D166: WP (simple weapons) | E166: all improvised as simple & +1d6 dam | I166: x | J166: x | K166: [combat][offensive]
A167: SV | B167: 23 | C167: Impulsive Flight | E167: can withdraw one extra square | F167: x | G167: x | H167: x | K167: [mobility]
A168: R | B168: 34 | C168: Inborn Resilience | D168: Zabrak | E168: reduce species bonus to 1 Def to 0 & another to +2, cannot change back | K168: [species(zabrak)], [fortitude defense], [reflex defense], [Will Defense], [combat][defensive]
A169: K | B169: 33 | C169: Increased Agility | D169: Conditioning | E169: increase Climb, Jump or Swim by 2 squares & don't lose Dex climbing | I169: x | J169: x | K169: [skill(climb)], [skill(jump)], [skill(swim)], [dexterity]
A170: R | B170: 34 | C170: Increased Resistance | D170: Gamorrean | E170: if attack v. Fort Def fails, gain +2 Fort Def until start of your next turn | K170: [species(gamorrean)], [fortitude defense], [combat][defensive]
A171: GI | B171: 28 | C171: Indomitable Personality | D171: Cha 13 | E171: 1/enc add Cha mod to Will Def for 1 turn as reac | G171: x | H171: x | K171: [charisma], [Will Defense], [combat][defensive]
A172: F | B172: 33 | C172: Informer | D172: Trained in Perception | E172: Perception replaces Gather Info, considered trained, reduce time | G172: x | K172: [skill(perception)]), [skill(gather information)]
A173: UR | B173: 27 | C173: Instinctive Attack | D173: Proficient with weapon, living character | E173: when use FP on atk can reroll & keep better & apply Force Point | F173: x | K173: [species(living)], [combat][offensive]
A174: UR | B174: 27 | C174: Instinctive Defense | D174: Living character (not a droid) | E174: as free spend FP to increase all defenses by 2 until next turn | F174: x | K174: [species(living)], [combat][offensive]
A175: R | B175: 34 | C175: Instinctive Perception | D175: Zabrak | E175: when you reroll Perception & take lower gain FP to use w/Perception until the end of the encounter | K175: [species(zabrak)], [skill(perception)])
A176: UR | B176: 27 | C176: Intimidator | D176: Trained in Persuasion | E176: when intimidate instead of normal target -5 skills & -2 atk w/you in LOS | G176: x | K176: [skill(persuasion)], [combat][offensive]
A177: SGD | B177: 22 | C177: Ion Shielding | D177: Droid with Str 13 or cyborg with Con 13 | E177: if ion dam before being halved equals thresh move only -1 down track | K177: [species(droid)], [species(cyborg)], [strength], [constitution), [damage threshold], [combat][defensive]
A178: C | B178: 31 | C178: Jedi Familiarity | E178: 1/encounter if targeted by Force from ally gain 1 FP until end of enc. | K178: [force]
A179: R | B179: 34 | C179: Jedi Heritage | D179: Twi'lek, Force Sensitivity | E179: gain 2 extra Force powers for each Force Training | K179: [species(twi’lek)], [force], [wisdom]
A180: R | B180: 34 | C180: Justice Seeker | D180: Kel Dor | E180: +2 dam against targets that dam you or allies since end of your last turn | K180: [ranged(fired, thrown)][target], [melee(armed, unarmed)], [species(kel dor)], [combat][offensive]
A181: R | B181: 34 | C181: Keen Scent | D181: Ewok | E181: range of Scent is 20 sq | K181: [species(ewok)]
A182: SV | B182: 23 | C182: Knife Trick | D182: Lightning Draw, trained in Stealth | E182: w/Atk Opp can draw concealed weapon & make 1 atk, still threaten sq | H182: x | K182: [ranged(fired)][question gtaoo], [melee(armed)][ok], [skill(stealth)], [attack of opportunity], [combat][offensive]
A183: L | B183: 36 | C183: Knock Heads | D183: Str 13, Dex 13, Multi-Grab | E183: deal 1d6+Str mod dam to adjacent you multi-grabbed, thresh -5 | J183: x | K183: [melee(unarmed)], [combat][offensive], [grapple[u]], [dexterity], [strength]
A184: GW | B184: 27 | C184: K'tara Training | D184: Martial Arts I, trained in Stealth | E184: roll an extra die of dam v. flat-footed enemy on 1 unarmed atk, 1/enc when you dam a target denied Dex to Ref Def make 2nd unarmed atk v. Fort Def as free to render target incapable of speech until end of next turn, w/Expertise spend 2 swif to cause single adjacent enemy to be flat-footed v. your 1st atk the same round | K184: [melee(unarmed)], [martial arts], [skill(stealth)], [combat][offensive]
A185: GW | B185: 27 | C185: K'thri Training | D185: Martial Arts I, Dual Weapon Mastery I | E185: 1/rnd spend swif to make 1 unarmed atk w/in reach dealing your base unarmed dam w/no bonus to dam from Str or HL, 1/enc if an unarmed atk misses deal half dam, must be wearing light or no armor, w/Expertise 1/enc w/full atk reroll 1 atk but you must take reroll & wearing light or no armor | K185: [melee(unarmed)], [martial arts], [combat][offensive]
A186: R | B186: 34 | C186: Lasting Influence | D186: Bothan | E186: with successful Persuasion gain favorable circumstances next 24 hours | K186: [species(bothan)], [skill(persuasion)]
A187: C | B187: 31 | C187: Leader of Droids | E187: provide mind-affecting effect to allied droids = Int mod (min 1) | G187: x | K187: [support]
A188: SV | B188: 23 | C188: Lightning Draw | D188: Quick Draw | E188: 1/encounter draw holstered weapon & attack as single stan action | F188: x | H188: x | J188: x | K188: [ranged(grenade, fired, thrown)][question hw], [melee(armed)][ok], [combat][offensive]
A189: CR | B189: 86 | C189: Linguist | D189: Int 13 | E189: bonus languages = 1 + Int mod (min one) | G189: x | I189: x | K189: [intelligence]
A190: K | B190: 34 | C190: Logic Upgrade: Self-Defense | D190: Droid | E190: Once per encounter, as reac +2 one defense | K190: [species(droid)], [Will Defense], [fortitude defense], [reflex defense], [combat][defensive]
A191: SGD | B191: 22 | C191: Logic Upgrade: Skill Swap | D191: Droid, basic processor | E191: full-round swap skill not trained in for trained skill (not trained) | K191: [species(droid)], [skill(general)]
A192: K | B192: 34 | C192: Logic Upgrade: Tactician | D192: Droid, BAB +4 | E192: Once per encounter, aid another +5 Atk | K192: [species(droid)], [support], [combat][offensive]
A193: J | B193: 23 | C193: Long Haft Strike | D193: proficient with weapon | E193: can attack with both ends of lightsaber pike or long-handled lightsaber | K193: [melee(armed)], [combat][offensive]
A194: K | B194: 34 | C194: Mandalorian Training | D194: Charging Fire | E194: make ranged +2 Atk at end of charge, -2 to Ref Def, +2 Will Def | K194: [ranged(grenade, fired, thrown)][ranged attack], [charge], [mobility], [offensive], [Will Defense], [combat][defensive],
A195: UR | B195: 27 | C195: Maniacal Charge | E195: when charge make Persuasion as free to intimidate each target pass w/in 1 sq, if succeed they can't make AoO v. you, if over v. target loses Dex & flat-footed | I195: x | J195: x | K195: [charge], [combat][offensive]
A196: CR | B196: 86 | C196: Martial Arts I | E196: +1 Ref Def, increase damage for unarmed attacks by one die step | F196: x | J196: x | K196: [melee(unarmed)], [combat][offensive]
A197: CR | B197: 86 | C197: Martial Arts II | D197: BAB +3, Martial Arts I | E197: +1 Ref Def, increase damage for unarmed attacks by one die step | F197: x | J197: x | K197: [melee(unarmed)], [combat][offensive]
A198: CR | B198: 86 | C198: Martial Arts III | D198: BAB +6, Martial Arts I, II | E198: +1 Ref Def, increase damage for unarmed attacks by one die step | F198: x | J198: x | K198: [melee(unarmed)], [combat][offensive]
A199: GI | B199: 28 | C199: Master of Disguise | D199: trained in Deception, Cha 13 | E199: +5 Deception for forging documents or appearance, -2 penalty if rush | G199: x | H199: x | K199: [charisma], [skill(deception)]
A200: R | B200: 34 | C200: Master Tracker | D200: Rodian | E200: when spend Force Point to Survival, increase die type by 2 steps | K200: [species(rodian)], [skill(survival)]
... 167 more rows

Sheet Talents
A1: BOOK | B1: PAGE | C1: TALENT | D1: TIER | E1: PREREQUISITES | F1: ACT | G1: FP? | H1: MtR? | I1: BENEFIT | J1: CLASS | K1: TREE | L1: ALL
A2: C | B2: 39 | C2: Accurate Blow | D2: 1 | I2: if exceed Ref Def by 5 or more deal +1 die dam, per melee group | J2: Elite Trooper | K2: Melee Specialist | L2: Elite Trooper
A3: CR | B3: 40 | C3: Acrobatic Recovery | D3: 1 | I3: DC 20 Acrobatics to not fall prone | J3: Jedi | K3: Jedi Guardian | L3: Jedi
A4: K | B4: 57 | C4: Action Exchange | D4: 2 | E4: Force Delay | I4: when you use Force Delay, grant 1 ally in 6sq & LOS to trade a move action for a stan action | J4: Force-Using Traditions | K4: Jal Shey | L4: Force Disciple, Jedi Master, Sith Lord
A5: CR | B5: 49 | C5: Acute Senses | D5: 1 | H5: y | I5: reroll Perception | J5: Scout | K5: Awareness | L5: Bounty Hunter, Gladiator, Gunslinger, Martial Arts Master, Pathfinder, Scout, Vanguard
A6: L | B6: 30 | C6: Adapt and Survive | D6: 1 | I6: when an enemy in 24sq & LOS gains morale or insight bonus, you gain it too until your next turn | J6: Scout | K6: Versatility | L6: Scout
A7: F | B7: 102 | C7: Adept Assistant | D7: 1 | I7: with aid another on a Mechanics, Pilot or Use Computer add +5 not +2 | J7: Droid | K7: Second-Degree Droid | L7: Droid
A8: CR | B8: 39 | C8: Adept Negotiator | D8: 1 | F8: stan | I8: Persuasion check v. Will Def (+5 bonus if opp higher level), moves -1 down track, if at end, cannot attack unless attacked or allies attacked | J8: Jedi | K8: Jedi Consular | L8: Jedi
A9: CR | B9: 107 | C9: Adept Spellcaster | D9: 1 | F9: free | H9: y | I9: reroll any force power as a full-round action | J9: Force-Using Traditions | K9: Dathomiri Witch | L9: Force Disciple, Jedi Master, Sith Lord
A10: L | B10: 47 | C10: Adrenaline Implant | D10: 1 | F10: stan | I10: 1/encounter adjacent ally gains 10 hp at start of each of its turns (do not accumulate) (at end of encounter target moves -3 down track & needs rest or surgery) | J10: Shaper | K10: Implant | L10: Shaper
A11: C | B11: 25 | C11: Advanced Intel | D11: 2 | E11: Spotter | F11: free | I11: if not surprised can use Spotter even in surprise round | J11: Scout | K11: Surveillance | L11: Scout
A12: GI | B12: 20 | C12: Advanced Planning | D12: 1 | I12: Before combat, choose willing one ally in LOS, swap initiative results | J12: Noble | K12: Master of Intrigue | L12: Noble
A13: C | B13: 24 | C13: Advantageous Opening | D13: 1 | I13: when ally or opponent in LOS rolls nat 1 on atk, make atk against single target | J13: Scoundrel | K13: Opportunist | L13: Scoundrel
A14: SV | B14: 29 | C14: Advantageous Positioning | D14: 2 | E14: Shift | I14: opponent you're flanking is considered flat-footed | J14: Assassin | K14: Assassin | L14: Assassin
A15: K | B15: 47 | C15: Advantageous Strike | D15: 1 | I15: +5 Atk with Atk of Opp with melee | J15: Melee Duelist | K15: Melee Duelist | L15: Melee Duelist
A16: J | B16: 14 | C16: Adversary Lore | D16: 1 | F16: stan | I16: Use the Force v. Will Def in 12 sq & LOS for target -2 Ref Def | J16: Jedi | K16: Jedi Consular | L16: Jedi
A17: K | B17: 40 | C17: Affliction | D17: 1 | I17: when you damage an opponent with a Force power, opponent takes +2d6 dam at start of next turn | J17: Sith Apprentice | K17: Sith | L17: Sith Apprentice
A18: L | B18: 26 | C18: Aggressive Negotiator | D18: 2 | E18: Adept Negotiator | I18: when you damage an opponent with lightsaber, can take 10 on Persuasion checks | J18: Jedi | K18: Jedi Consular | L18: Jedi
A19: R | B19: 26 | C19: Aggressive Surge | D19: 1 | I19: 1/enc make a free charge when you take a Second Wind | J19: Scout | K19: Unpredictable | L19: Scout
A20: C | B20: 57 | C20: Akk Dog Attack Training | D20: 2 | E20: Akk Dog Master | I20: your akk dog follower gains Powerful Charge feat | J20: Force-Using Traditions | K20: Korunnai Adept | L20: Force Disciple, Jedi Master, Sith Lord
A21: C | B21: 57 | C21: Akk Dog Master | D21: 1 | I21: gain 1 akk dog follower w/Power Attack feat, your force powers can target akk dog (one toward max) | J21: Force-Using Traditions | K21: Korunnai Adept | L21: Force Disciple, Jedi Master, Sith Lord
A22: C | B22: 57 | C22: Akk Dog Trainer's Actions | D22: 2 | E22: Akk Dog Master | F22: stan | I22: if you atk: if akk dog adjacent to target dam = d6+Str mod & part of your atk for DR, akk dog can charge (both -5 atk & replaces charge mod), if you hit akk dog +2 next atk v. target | J22: Force-Using Traditions | K22: Korunnai Adept | L22: Force Disciple, Jedi Master, Sith Lord
A23: F | B23: 49 | C23: Always Ready | D23: 1 | E23: Initiative skill | I23: when a readied action is triggered Initiative does not change | J23: Infiltrator | K23: Infiltration | L23: Infiltrator
A24: SV | B24: 13 | C24: Ambush | D24: 2 | E24: Dirty Tactics | I24: if not surprised give up stan for nonsurprised allies in LOS extra move or can reroll Init & take better | J24: Noble | K24: Disgrace | L24: Charlatan, Noble
A25: C | B25: 40 | C25: Ambush | D25: 1 | I25: if you hit an opponent that has not yet acted, add +2 dice dam | J25: Elite Trooper | K25: Republic Commando | L25: Elite Trooper
A26: R | B26: 28 | C26: Ambush Specialist | D26: 1 | I26: if not surprised you can treat first round of combat as surprise round to activate talents etc. In surprise round designate one enemy as prime target & +2 atk until end of encounter | J26: Soldier | K26: Ambusher | L26: Soldier
A27: GW | B27: 18 | C27: Anticipate Movement | D27: 1 | I27: 1/rnd as reaction to enemy in LOS moving, grant 1 ally in LOS to move their spd as free | J27: Noble | K27: Anticipation | L27: Noble
A28: J | B28: 19 | C28: Apprentice Boon | D28: 1 | F28: reac | G28: x | I28: add your Force Point result to an ally w/in 12 sq with a Use the Force modifier lower than yours | J28: Jedi Knight | K28: Jedi Instructor | L28: Jedi Knight
A29: CR | B29: 51 | C29: Armor Mastery | D29: 2 | E29: Armored Defense | I29: max Dex bonus is +1 | J29: Soldier | K29: Armor Specialist | L29: Gladiator, Imperial Knight, Jedi Knight, Sith Apprentice, Soldier
A30: L | B30: 45 | C30: Armor Mastery | D30: 1 | I30: Ref Def bonus = HL + 1/2 armor bonus or armor bonus, counts as Armored & Improved Armored Def | J30: Imperial Knight | K30: Knight's Armor | L30: Imperial Knight
A31: L | B31: 45 | C31: Armored Augmentation I | D31: 1 | E31: AP of armor | F31: swif | G31: x | I31: 1/encounter add armor bonus to Ref Def to thresh until end of encounter | J31: Imperial Knight | K31: Knight's Armor | L31: Imperial Knight
A32: L | B32: 45 | C32: Armored Augmentation II | D32: 2 | E32: Armored Augmentation I* | I32: also gain DR = 2 x armor's equipment bonus to Fort Def | J32: Imperial Knight | K32: Knight's Armor | L32: Imperial Knight
A33: CR | B33: 52 | C33: Armored Defense | D33: 1 | I33: Ref Def bonus = either heroic level or armor bonus | J33: Soldier | K33: Armor Specialist | L33: Gladiator, Imperial Knight, Jedi Knight, Sith Apprentice, Soldier
A34: L | B34: 40 | C34: Armored Guard | D34: 2 | E34: Ward | I34: when you use Ward add one-half your armor bonuses to ally's Ref Def | J34: Elite Trooper | K34: Protection | L34: Elite Trooper
A35: K | B35: 38 | C35: Armored Mandalorian | D35: 2 | E35: Dex 13, Mandalorian Glory | I35: add armor's Fort Def to Elite Trooper DR, if lightsaber does not ignore DR it doesn't ignore your DR | J35: Elite Trooper | K35: Mandalorian Warrior | L35: Elite Trooper
A36: F | B36: 52 | C36: Armored Spacer | D36: 1 | I36: treat as AP (heavy) | J36: Master Privateer | K36: Privateer | L36: Master Privateer
A37: UR | B37: 19 | C37: Arrogant Bluster | D37: 1 | E37: Trained in Persuasion | G37: * | I37: Persuasion to change enemy's attitude for -5 enemy's Will Def until next turn, FP for end of enc | J37: Noble | K37: Exile | L37: Noble
A38: F | B38: 27 | C38: Art of Concealment | D38: 1 | I38: Stealth to conceal items on person can take 10 even if rushed, can conceal as a swif | J38: Scoundrel | K38: Smuggling | L38: Scoundrel
A39: R | B39: 24 | C39: Assault Gambit | D39: 1 | F39: stan | I39: 1/turn designate 1 ally & 1 target with LOE, they roll Initiative & winner makes free atk against other | J39: Noble | K39: Gambling Leader | L39: Noble
A40: CR | B40: 221 | C40: Assault Tactics | D40: 1 | F40: move | I40: DC15 Tactics, designate single object or creature, allies that can hear you, +d6 dam until next turn | J40: Officer | K40: Military Tactics | L40: Officer
A41: GI | B41: 21 | C41: Assured Skill | D41: 1 | I41: Lose competence bonuses on 1 skill to roll 2 dice keep better | J41: Noble | K41: Superior Skills | L41: Noble
A42: C | B42: 53 | C42: At Peace | D42: 1 | G42: x | I42: +2 all Def until end of encounter or until you attack | J42: Force Sensitive | K42: Light Side | L42: Force Adept, Force Disciple, Imperial Knight, Jedi Knight, Jedi Master
A43: CR | B43: 218 | C43: Ataru | D43: 1 | I43: may add Dex mod on damage or double Dex bonus if two-handed instead of Str | J43: Jedi Knight | K43: Lightsaber Forms | L43: Jedi Knight
A44: CR | B44: 210 | C44: Attract Minion | D44: 1 | I44: attracts nonheroic character 3/4 your level, multiple | J44: Crime Lord | K44: Mastermind | L44: Crime Lord
A45: F | B45: 52 | C45: Attract Privateer | D45: 1 | I45: attracts nonheroic character 3/4 your level, multiple | J45: Master Privateer | K45: Privateer | L45: Master Privateer
A46: GI | B46: 25 | C46: Attract Superior Minion | D46: 4 | E46: Attract Minion, Impel Ally II* | I46: Attract Minion with NH level = to your character level | J46: Crime Lord | K46: Mastermind | L46: Crime Lord
A47: CR | B47: 107 | C47: Attune Armor | D47: 1 | F47: free | G47: x | I47: armor bonus +2, Dex bonus improves +1 | J47: Force-Using Traditions | K47: Jensaarai Defender | L47: Force Disciple, Jedi Master, Sith Lord
A48: CR | B48: 214 | C48: Attune Weapon | D48: 1 | F48: free | G48: x | I48: +1 Atk with melee weapon | J48: Force Adept | K48: Force Item | L48: Force Adept
A49: C | B49: 53 | C49: Attuned | D49: 2 | E49: Focused Attack | F49: free | I49: when you roll nat 20 on attack v. opp with Dark Side 1+ can activate any power with [light side] | J49: Force Sensitive | K49: Light Side | L49: Force Adept, Force Disciple, Imperial Knight, Jedi Knight, Jedi Master
A50: J | B50: 73 | C50: Aura of Freedom | D50: 1 | G50: * | I50: +5 on skill or grapple checks to all allies w/in 6 sq, can spend FP to negate an ally moved against will | J50: Force-Using Traditions | K50: Aing-Tii Monk | L50: Force Disciple, Jedi Master, Sith Lord
A51: GW | B51: 22 | C51: Autofire Assault | D51: 1 | E51: WP (heavy weapons) | I51: can brace a weapon that is not restricted to autofire only, but you must be proficient with weapon | J51: Soldier | K51: Weapon Specialist | L51: Soldier, Weapon Specialist
A52: C | B52: 43 | C52: Automated Strike | D52: 1 | F52: swif | I52: DC 15 Knowledge (tactics), all droid allies who can hear you gain Double Atk from one of your WP | J52: Droid Commander | K52: Droid Commander | L52: Droid Commander
A53: C | B53: 53 | C53: Aversion | D53: 1 | F53: swif | G53: x | I53: until end of encounter all squares within 2sq are difficult terrain for enemies | J53: Force Sensitive | K53: Alter | L53: Force Adept, Force Disciple, Imperial Knight, Jedi Knight, Jedi Master, Sith Apprentice, Sith Lord
A54: SV | B54: 14 | C54: Avert Disaster | D54: 2 | E54: Fool's Luck | I54: 1/encounter turn a critical hit into a normal hit | J54: Scoundrel | K54: Fortune | L54: Charlatan, Gunslinger, Scoundrel
A55: GW | B55: 20 | C55: Backstabber | D55: 2 | E55: Sneak Attack | I55: 1/turn when you flank treat them as flat-footed for 1 atk | J55: Scoundrel | K55: Misfortune | L55: Assassin, Bounty Hunter, Saboteur, Scoundrel
A56: UR | B56: 19 | C56: Band Together | D56: 3 | E56: Self-Reliant, Galactic Guidance* | I56: 1/enc each: 1. swif 1 enemy whenever an ally w/in 12sq hits target +1d6 dam, 2. swif grant allies w/in 12sq & LOS +5 Will Def until end next turn, 3. w/Persuasion unfriendly or indifferent into ally for enc direct target as swif | J56: Noble | K56: Exile | L56: Noble
A57: C | B57: 55 | C57: Bando Gora Surge | D57: 1 | I57: if you move up track, gain hp = 5 + HL | J57: Force-Using Traditions | K57: Bando Gora Captain | L57: Force Disciple, Jedi Master, Sith Lord
A58: CR | B58: 49 | C58: Barter | D58: 1 | H58: y | I58: reroll Persuasion to haggle | J58: Scout | K58: Fringer | L58: Outlaw, Scout
A59: CR | B59: 52 | C59: Battle Analysis | D59: 1 | F59: swif | I59: DC15 Knowledge (Tactics) know which allies or opponents in LOS have half hp | J59: Soldier | K59: Commando | L59: Elite Trooper, Officer, Soldier
A60: CR | B60: 40 | C60: Battle Meditation | D60: 1 | F60: full | G60: x | I60: allies within 6 squares get +1 Atk for encounter if within 6 squares | J60: Jedi | K60: Jedi Guardian | L60: Jedi
A61: UR | B61: 22 | C61: Battle Mount | D61: 1 | I61: 1/enc each on mount: 1. if use mount as cover can make 1 atk, 2. if use mount as cover gain improved cover - if fail by 10 or more still get cover, 3. mount can make atk as swif not stan | J61: Scout | K61: Mobile Scout | L61: Scout
A62: F | B62: 54 | C62: Battlefield Medic | D62: 2 | E62: Steady Under Pressure | I62: first aid as stan not full | J62: Medic | K62: Advanced Medicine | L62: Medic, Shaper
A63: GW | B63: 21 | C63: Battlefield Remedy | D63: 1 | E63: Trained in Treat Injury | I63: when successfully use Treat Injury to administer First Aid target also moves +1 up track | J63: Soldier | K63: Veteran | L63: Soldier
A64: C | B64: 26 | C64: Bayonet Master | D64: 2 | E64: Gun Club | I64: with full atk treat ranged weapon w/bayonet as double weapon ignoring penalties for double weapon | J64: Soldier | K64: Brawler | L64: Soldier
A65: K | B65: 53 | C65: Beast Trick | D65: 1 | I65: can use mind trick on beast Int 2 or less, cannot perform or understand complex directions | J65: Force Sensitive | K65: Control | L65: Force Adept, Force Disciple, Imperial Knight, Jedi Knight, Jedi Master, Sith Apprentice, Sith Lord
A66: SV | B66: 15 | C66: Befuddle | D66: 1 | F66: swif | I66: Deception v. Will Def can move through threatened area without Atk of Opp, counts as 2 squares | J66: Scoundrel | K66: Misfortune | L66: Assassin, Bounty Hunter, Saboteur, Scoundrel
A67: S | B67: 17 | C67: Begin Attack Run | D67: 1 | E67: Cha 13 | F67: swif | I67: designate a single target, +5 Atk with an attack run | J67: Ace Pilot | K67: Squadron Leader | L67: Ace Pilot
A68: C | B68: 56 | C68: Believer Intuition | D68: 1 | F68: reac | I68: if successfully attacked, Use the Force v. attack to add Cha mod to Ref Def | J68: Force-Using Traditions | K68: Believer Disciple | L68: Force Disciple, Jedi Master, Sith Lord
A69: SV | B69: 14 | C69: Beloved | D69: 3 | E69: Bolster, Inspire Confidence | I69: each 1/enc: ally 6sq +2 Ref swif, or atk & if atked ally atk free, or if atked LOS allies move 2sq as reac | J69: Noble | K69: Inspiration | L69: Droid Commander, Noble
A70: SV | B70: 14 | C70: Better Lucky then Dead | D70: 2 | E70: Fool's Luck | F70: reac | I70: 1/encounter +5 bonus to one Def until start of your next turn | J70: Scoundrel | K70: Fortune | L70: Charlatan, Gunslinger, Scoundrel
A71: R | B71: 43 | C71: Bigger Bang | D71: 2 | E71: Improvised Device | I71: +1 die dam with Improvised Device | J71: Improviser | K71: Improviser | L71: Improviser
A72: L | B72: 29 | C72: Biotech Adept | D72: 1 | H72: y | I72: reroll Knowledge (life sciences) or Treat Injury to use or repair biotech | J72: Scoundrel | K72: Yuuzhan Vong Biotech | L72: Scoundrel
A73: L | B73: 47 | C73: Biotech Mastery | D73: 1 | I73: can make modifications in half time & half cost, can take 10 on Mechanics check | J73: Shaper | K73: Shaper | L73: Shaper
A74: R | B74: 43 | C74: Black Market Buyer | D74: 1 | I74: automatically locate black market merchant | J74: Improviser | K74: Procurement | L74: Improviser
A75: R | B75: 26 | C75: Blast Back | D75: 1 | F75: reac | I75: 1/rnd when damaged by area atk, make an atk v. source if have LOS & range | J75: Scout | K75: Unpredictable | L75: Scout
A76: F | B76: 52 | C76: Blaster and Blade I | D76: 1 | E76: Dual Weapon I, WP (advanced & pistols) | I76: with a single attack with an advanced melee weapon make a free pistol attack | J76: Master Privateer | K76: Privateer | L76: Master Privateer
A77: F | B77: 52 | C77: Blaster and Blade II | D77: 2 | E77: Blaster & Blade I, Dual Weapon I, WP (advanced & pistols) | I77: treat advanced melee weapon as if you were holding it two-handed (dbl Str bonus) | J77: Master Privateer | K77: Privateer | L77: Master Privateer
A78: F | B78: 52 | C78: Blaster and Blade III | D78: 3 | E78: Blaster & Blade I & II, Dual Weapon I, WP (advanced & pistols) | I78: make full attack as stan if you attack with both | J78: Master Privateer | K78: Privateer | L78: Master Privateer
A79: F | B79: 57 | C79: Blaster Turret I | D79: 1 | F79: stan | I79: 1/encounter, Tiny Init +4 Percep +4 Ref Def 10 10hp thresh 8 turret, 3d6 dam, you must be adjacent | J79: Saboteur | K79: Turret | L79: Saboteur
A80: F | B80: 57 | C80: Blaster Turret II | D80: 2 | E80: Blaster Turret I | F80: stan | I80: 1/encounter, Tiny Init +8 Percep +8 Ref Def 12 15hp thresh 10 turret, 3d8 dam, remote 12sq | J80: Saboteur | K80: Turret | L80: Saboteur
A81: F | B81: 57 | C81: Blaster Turret III | D81: 3 | E81: Blaster Turret I & II | F81: stan | I81: 1/encounter, Tiny Init +8 Percep +8 Ref Def 12 15hp DR5 thresh 10, 3d8 dam fires twice, remote 12sq | J81: Saboteur | K81: Turret | L81: Saboteur
A82: F | B82: 28 | C82: Blend In | D82: 1 | I82: Stealth replaces Deception for a deceptive appearance, considered trained | J82: Scout | K82: Spy | L82: Infiltrator, Scout
A83: GI | B83: 20 | C83: Blend In | D83: 1 | F83: swif | I83: When adjacent to two creatures gain concealment against non adjacent targets. | J83: Noble | K83: Master of Intrigue | L83: Noble
A84: C | B84: 41 | C84: Blind Shot | D84: 1 | I84: ignore penalties v. concealment or total concealment | J84: Gunslinger | K84: Gunslinger | L84: Gunslinger
A85: S | B85: 17 | C85: Blind Spot | D85: 1 | F85: swif | I85: with vehicle 2 sizes bigger, must be adjacent, opposed Pilot, Atk vs. target +2, Atk from target -2 | J85: Ace Pilot | K85: Expert Pilot | L85: Ace Pilot
A86: CR | B86: 41 | C86: Block | D86: 1 | F86: reac | G86: * | I86: negate melee attack with Use the Force check, DC = Atk roll, -5 every time used in round must have activated lightsaber, aware and not flat-footed, FP for adjacent character. | J86: Jedi | K86: Lightsaber Combat | L86: Imperial Knight, Jedi, Jedi Knight, Sith Apprentice
A87: SV | B87: 33 | C87: Bloodthirsty | D87: 1 | I87: perform coup de grace as move, if kill with coup de grace all allies in LOS +2 Atk for encounter | J87: Master Privateer | K87: Piracy | L87: Master Privateer
A88: L | B88: 41 | C88: Blowback | D88: 1 | I88: push target 1 square if you exceed target's threshold | J88: Gunslinger | K88: Carbineer | L88: Gunslinger
A89: F | B89: 52 | C89: Boarder | D89: 1 | I89: ignore cover with character-scale ranged attacks aboard a starship or space station | J89: Master Privateer | K89: Privateer | L89: Master Privateer
A90: J | B90: 81 | C90: Body Control | D90: 1 | G90: * | I90: add Cha mod instead of Con mod to Fort Def, can spend FP to become immune to poison, radiation & disease until end of enc | J90: Force-Using Traditions | K90: Matukai Adept | L90: Force Disciple, Jedi Master, Sith Lord
A91: SV | B91: 27 | C91: Bodyguard I | D91: 2 | E91: Attract Minion | F91: reac | I91: 1/turn redirect attack to attracted minion | J91: Crime Lord | K91: Mastermind | L91: Crime Lord
A92: SV | B92: 27 | C92: Bodyguard II | D92: 3 | E92: Bodyguard I* | I92: 1/turn redirect attack to attracted minion, minion +Ref Def = half your class level | J92: Crime Lord | K92: Mastermind | L92: Crime Lord
A93: SV | B93: 27 | C93: Bodyguard III | D93: 4 | E93: Bodyguard II* | I93: 1/turn redirect attack to attracted minion, minion +Ref Def = your class level & free Atk v. attacker | J93: Crime Lord | K93: Mastermind | L93: Crime Lord
A94: L | B94: 41 | C94: Bodyguard's Sacrifice | D94: 1 | F94: reac | I94: take any or all damage for adjacent ally rest goes to target, cannot use it again until end of next turn | J94: Elite Trooper | K94: Protection | L94: Elite Trooper
A95: CR | B95: 43 | C95: Bolster Ally | D95: 1 | F95: stan | I95: +1 up condition track & hp = their level if under half HP | J95: Noble | K95: Inspiration | L95: Droid Commander, Noble
A96: R | B96: 40 | C96: Bolstered Numbers | D96: 2 | E96: Recruit Enemy | I96: if successfully Recruit Enemy, allies gain +2 atk until end of enc | J96: Officer | K96: Rebel Recruiter | L96: Officer
A97: GI | B97: 21 | C97: Bomb Thrower | D97: 1 | E97: Trained in Mechanics | F97: full | I97: +5 to Mechanics checks for handling explosives & create frag grenade from spare parts | J97: Scoundrel | K97: Revolutionary | L97: Scoundrel
A98: J | B98: 18 | C98: Bonded Mount | D98: 2 | E98: Charm Beast | F98: full | G98: x | I98: mount shares an empathic link, when you ride your mount has your Ref & Will Def, you gain senses | J98: Force Adept | K98: Beastwarden | L98: Force Adept
A99: CR | B99: 44 | C99: Born Leader | D99: 1 | F99: swif | I99: once per encounter, all allies +1 Atk, if in LOS and if N conscious | J99: Noble | K99: Leadership | L99: Corporate Agent, Droid Commander, Noble, Officer
A100: F | B100: 50 | C100: Bothan Resources | D100: 2 | E100: Spynet Agent | I100: DC20 Gather Info can purchase standard equipment at 50% rate or exotic at 75% | J100: Infiltrator | K100: Bothan Spynet | L100: Infiltrator
A101: C | B101: 45 | C101: Breach Cover | D101: 1 | I101: ignore cover if you fire or throw a weapon with burst or splash | J101: Military Engineer | K101: Military Engineer | L101: Military Engineer
A102: C | B102: 45 | C102: Breaching Explosive | D102: 1 | I102: ignore threshold of doors & walls when using mines & non-grenade explosives | J102: Military Engineer | K102: Military Engineer | L102: Military Engineer
A103: SGD | B103: 29 | C103: Break Program | D103: 1 | E103: Trained in Use Computer | I103: Use Computer v. droid's Will Def & override behavioral inhibitors for # rnds = your Int bonus | J103: Independent Droid | K103: Elite Droid | L103: Independent Droid
A104: F | B104: 54 | C104: Bring Them Back | D104: 1 | I104: revivify on a target that has died a number of rounds = half heroic level | J104: Medic | K104: Advanced Medicine | L104: Medic, Shaper
A105: K | B105: 44 | C105: Brutal Attack | D105: 1 | E105: Weapon Focus | I105: if you do dam over thresh add +1 die dam | J105: Gladiator | K105: Gladiatorial Combat | L105: Gladiator
A106: J | B106: 89 | C106: Brutal Unarmed Strike | D106: 2 | E106: Telekinetic Strike | I106: reroll any damage dice that has a "1" as a result | J106: Force-Using Traditions | K106: Warden of the Sky | L106: Force Disciple, Jedi Master, Sith Lord
A107: L | B107: 29 | C107: Bugbite | D107: 1 | I107: +1 die damage with razor & thud bugs | J107: Scoundrel | K107: Yuuzhan Vong Biotech | L107: Scoundrel
A108: GW | B108: 31 | C108: Bullseye | D108: 3 | E108: Sniper feat, Draw a Bead* | I108: 1/enc designate 1 target in you aimed at not in PB, with ranged atk target denied Ref to Def | J108: Gunslinger | K108: Sharpshooter | L108: Gunslinger
A109: R | B109: 45 | C109: Bunker Blaster | D109: 1 | I109: if adjacent to object that provides cover to target you can aim at target as move action | J109: Pathfinder | K109: Pathfinder | L109: Pathfinder
A110: F | B110: 92 | C110: Buried Presence | D110: 1 | F110: stan | G110: x | I110: immune to Force detection for 1 hour, may use as a reac v. Sense Force | J110: Force-Using Traditions | K110: Agent of Ossus | L110: Force Disciple, Jedi Master, Sith Lord
A111: K | B111: 30 | C111: Burning Assault | D111: 2 | E111: Jet Pack Training | F111: stan | I111: expend a charge as an attack, treat as flame thrower, not while flying | J111: Soldier | K111: Rocket Jumper | L111: Soldier
A112: SGD | B112: 26 | C112: Burst Transfer | D112: 1 | I112: double data sent in a rnd & cut Access Info time in half with Use Computer to find info | J112: Droid | K112: Second-Degree Droid | L112: Droid
A113: K | B113: 44 | C113: Call Out | D113: 2 | E113: Personal Vendetta | I113: as Personal Vendetta but designate one opponent to be -5 Atk | J113: Gladiator | K113: Gladiatorial Combat | L113: Gladiator
A114: J | B114: 19 | C114: Call Weapon | D114: 1 | I114: call & ignite a lightsaber you built as a free action if in LOS | J114: Jedi Knight | K114: Jedi Artisan | L114: Jedi Knight
A115: SV | B115: 17 | C115: Cantina Brawler | D115: 1 | I115: if flanked +2 on unarmed attack & damage | J115: Soldier | K115: Brawler | L115: Soldier
A116: R | B116: 43 | C116: Capture Droid | D116: 1 | F116: stan | I116: 1/enc v. adjacent droid reduced to 0 hp, Mechanics v. Will Def for +2 up track & d8 hp & friendly | J116: Improviser | K116: Improviser | L116: Improviser
A117: F | B117: 103 | C117: Cargo Hauler | D117: 1 | I117: double carrying capacity & +5 to Str-based skill checks | J117: Droid | K117: Fifth-Degree Droid | L117: Droid
A118: L | B118: 27 | C118: Cast Suspicion | D118: 1 | F118: swif | I118: one enemy in LOS loses all insight/morale bonuses on atk & can't be aided until end of your next turn | J118: Noble | K118: Provocateur | L118: Charlatan, Noble
A119: SV | B119: 14 | C119: Castigate | D119: 1 | F119: stan | I119: Persuasion v. Will Def to impose -2 to all of target's def until end of your next turn | J119: Noble | K119: Disgrace | L119: Charlatan, Noble
A120: J | B120: 21 | C120: Cause Mutation | D120: 2 | E120: Sith Alchemy | G120: x | I120: transform to Sith Abomination (J22) or Chrysalis Beast (J133), domesticated for you, days = new CL | J120: Sith Apprentice | K120: Sith Alchemy | L120: Sith Apprentice
A121: UR | B121: 23 | C121: Champion | D121: 3 | E121: Warrior's Awareness, Warrior's Determination | I121: 1/enc each: 1. w/2nd Wind +1 track & remove fear/mind effects & normal, 2. when hit & dam target over thresh can Disarm v. target as free, 3. w/successful unarmed or melee atk (not lightsaber) + dam = every 5 pts atk is over Ref Def | J121: Soldier | K121: Warrior | L121: Soldier
A122: CR | B122: 213 | C122: Channel Aggression | D122: 1 | G122: x | I122: Atk vs. flanked opp or one denied Dex to Def, extra dam = 1d6 per class lvl (10d6 max | J122: Force Adept | K122: Dark Side Devotee | L122: Force Adept
A123: CR | B123: 213 | C123: Channel Anger | D123: 2 | E123: Channel Aggression | F123: swif | G123: x | I123: +2 melee Atk & damage for rounds equal to 5 + Con mod, then move down one on track, no patience | J123: Force Adept | K123: Dark Side Devotee | L123: Force Adept
A124: J | B124: 16 | C124: Channel Energy | D124: 1 | E124: Negate energy | F124: reac | G124: x | I124: convert energy to activate any power in your suite | J124: Force Sensitive | K124: Control | L124: Force Adept, Force Disciple, Imperial Knight, Jedi Knight, Jedi Master, Sith Apprentice, Sith Lord
A125: J | B125: 18 | C125: Channel Vitality | D125: 1 | F125: swif | I125: move -1 down track to gain 1 Force Point until the end of your turn | J125: Force Adept | K125: Mystic | L125: Force Adept
A126: J | B126: 18 | C126: Charm Beast | D126: 1 | I126: UseForce replaces Persuasion w/animal Int 2 or less, -5 if animal doesn't understand doesn't apply | J126: Force Adept | K126: Beastwarden | L126: Force Adept
A127: CR | B127: 107 | C127: Charm Beast | D127: 1 | I127: UseForce replaces Persuasion w/animal Int 2 or less, -5 if animal doesn't understand doesn't apply | J127: Force-Using Traditions | K127: Dathomiri Witch | L127: Force Disciple, Jedi Master, Sith Lord
A128: CR | B128: 107 | C128: Charm Beast | D128: 1 | I128: UseForce replaces Persuasion w/animal Int 2 or less, -5 if animal doesn't understand doesn't apply | J128: Force-Using Traditions | K128: Felucian Shaman | L128: Force Disciple, Jedi Master, Sith Lord
A129: K | B129: 27 | C129: Cheap Shot | D129: 2 | E129: Opportunistic Strike | I129: once per encounter make an atk of opp against an opponent that withdraws from an ally in PB range | J129: Scoundrel | K129: Run and Gun | L129: Scoundrel
A130: GW | B130: 19 | C130: Cheap Trick | D130: 1 | E130: Trained in Deception | H130: no | I130: when you use Deception to feint against an enemy w/in 6sq you can roll twice | J130: Scoundrel | K130: Brigand | L130: Scoundrel
A131: F | B131: 24 | C131: Cleanse Mind | D131: 1 | F131: swif | I131: once per turn you can remove an ongoing mind-affecting effect from 1 ally in LOS | J131: Jedi | K131: Jedi Consular | L131: Jedi
A132: CR | B132: 40 | C132: Clear Mind | D132: 1 | H132: y | I132: may reroll Use the Force check to avoid detection | J132: Jedi | K132: Jedi Sentinel | L132: Jedi
A133: GI | B133: 24 | C133: Clip | D133: 1 | I133: when ramming take damage as though your ship is 2 sizes smaller, rammed ship is normal damage | J133: Ace Pilot | K133: Expert Pilot | L133: Ace Pilot
A134: L | B134: 57 | C134: Cloak of Shadow | D134: 1 | F134: swif | G134: x | I134: until end of encounter when you move 3 sq from start you gain concealment from all targets | J134: Force-Using Traditions | K134: Disciple of Twilight | L134: Force Disciple, Jedi Master, Sith Lord
A135: L | B135: 41 | C135: Close Contact | D135: 1 | I135: PB range increased by 5 sq, Short range begins 5 sq later but ends at same distance | J135: Gunslinger | K135: Carbineer | L135: Gunslinger
A136: SV | B136: 25 | C136: Close Cover | D136: 2 | E136: Watch This | I136: if you occupy the same space as a larger vehicle +5 cover bonus | J136: Ace Pilot | K136: Blockade Runner | L136: Ace Pilot
A137: R | B137: 23 | C137: Close Maneuvering | D137: 1 | F137: swif | I137: 1/turn designate a target, your move does not provoke Atk of Opp from target if you move adjacent | J137: Jedi | K137: Jedi Guardian | L137: Jedi
A138: S | B138: 17 | C138: Close Scrape | D138: 1 | F138: reac | I138: Colossal size or smaller, Pilot check turns crit into normal (still hit, not crit) | J138: Ace Pilot | K138: Expert Pilot | L138: Ace Pilot
A139: C | B139: 25 | C139: Close-Combat Assault | D139: 2 | E139: Recon Team Leader | I139: each follower gains PB Shot feat | J139: Scout | K139: Reconnaissance | L139: Scout
A140: J | B140: 18 | C140: Closed Mind | D140: 1 | I140: mind-affecting effects must be rolled twice against you taking the lower result | J140: Force Adept | K140: Mystic | L140: Force Adept
A141: C | B141: 40 | C141: Close-Quarters Fighter | D141: 1 | I141: if adjacent or in same sq, +1 melee atk | J141: Elite Trooper | K141: Melee Specialist | L141: Elite Trooper
A142: K | B142: 24 | C142: Collective Visions | D142: 1 | E142: Farseeing | I142: other Force-users with farseeing can aid another as a reac within 6sq | J142: Jedi | K142: Jedi Consular | L142: Jedi
A143: F | B143: 103 | C143: Combat Repairs | D143: 1 | F143: full | I143: 1/day use Mechanics to repair self instead of 1 hour | J143: Droid | K143: Fourth-Degree Droid | L143: Droid
A144: J | B144: 21 | C144: Combat Trance | D144: 1 | I144: battle strike applies to the first attack you make each round until the end of the encounter | J144: Jedi Knight | K144: Jedi Weapon Master | L144: Jedi Knight
A145: T | B145: 57 | C145: Combined Fire | D145: 1 | E145: Coordinated Attack | I145: +2 dam against targets damaged by an ally since end of your last turn | J145: Soldier | K145: Mercenary | L145: Soldier
A146: S | B146: 18 | C146: Combined Fire | D146: 1 | F146: swif | I146: designate single vehicle, object or creature in LOS, extra die for batteries every 2, not 3 on roll with tactical fire, may designate one weapon or battery to make a single attack | J146: Officer | K146: Naval Officer | L146: Officer
A147: J | B147: 85 | C147: Combustion | D147: 1 | E147: Force Training | F147: swif | G147: x | I147: +1d6 fire dam to any force power that affects a single target & catches it on fire | J147: Force-Using Traditions | K147: Shapers of Kro Var | L147: Force Disciple, Jedi Master, Sith Lord
A148: CR | B148: 107 | C148: Command Beast | D148: 2 | E148: Charm Beast | I148: treat animal as domesticated and can Ride | J148: Force-Using Traditions | K148: Dathomiri Witch | L148: Force Disciple, Jedi Master, Sith Lord
A149: CR | B149: 107 | C149: Command Beast | D149: 2 | E149: Charm Beast | I149: treat animal as domesticated and can Ride | J149: Force-Using Traditions | K149: Felucian Shaman | L149: Force Disciple, Jedi Master, Sith Lord
A150: UR | B150: 31 | C150: Commander's Prerogative | D150: 1 | E150: Trained in Initiative | I150: after surprise rnd take your turn before allies but must share talent (special quality, Commando, Leadership or Military Tactics), next rnd return to normal spot in Init order | J150: Officer | K150: Military Tactics | L150: Officer
A151: C | B151: 26 | C151: Commanding Officer | D151: 1 | I151: gain 1 follower with AP feat & WP (rifles), can be taken max 3 times | J151: Soldier | K151: Squad Leader | L151: Elite Trooper
A152: GW | B152: 19 | C152: Commanding Presence | D152: 3 | E152: Tactical Savvy* | F152: stan | I152: each 1/enc make ranged or melee atk for 1. if hits all allies w/in 6sq +2 to all Def until end of next turn, or 2. if hits all allies w/in 6sq & LOS +2 atk & dam until end of next turn, or 3. if dam target allies = Cha mod can move half spd as free | J152: Noble | K152: Leadership | L152: Corporate Agent, Droid Commander, Noble, Officer
A153: F | B153: 28 | C153: Commanding Presence | D153: 1 | F153: swif | I153: once per encounter all enemies -2 Will Def, Persuasion is now a class skill | J153: Soldier | K153: Mercenary | L153: Soldier
A154: K | B154: 42 | C154: Competitive Drive | D154: 1 | I154: once per encounter reroll one Wis Int or Cha based skill except Use the Force | J154: Corporate Agent | K154: Corporate Power | L154: Corporate Agent
A155: K | B155: 42 | C155: Competitive Edge | D155: 1 | I155: when you and allies are not surprised, # allies = Cha mod benefit from Quick Draw | J155: Corporate Agent | K155: Corporate Power | L155: Corporate Agent
A156: F | B156: 47 | C156: Computer Language | D156: 1 | E156: Binary | I156: Persuasion replaces Use Computer, considered trained | J156: Independent Droid | K156: Specialized Droid | L156: Specialized Droid
A157: F | B157: 47 | C157: Computer Master | D157: 1 | H157: n | I157: reroll opposed Use Computer checks | J157: Independent Droid | K157: Specialized Droid | L157: Specialized Droid
A158: C | B158: 26 | C158: Comrades in Arms | D158: 1 | I158: if within 3 sq of ally, +1 atk | J158: Soldier | K158: Trooper | L158: Soldier
A159: F | B159: 92 | C159: Conceal Another | D159: 2 | E159: Buried Presence | I159: you can use Buried Presence or Vanish on one extra person | J159: Force-Using Traditions | K159: Agent of Ossus | L159: Force Disciple, Jedi Master, Sith Lord
A160: K | B160: 58 | C160: Conceal Force Use | D160: 1 | F160: swif | I160: with Use the Force to make a Deception check to conceal the effects of your Force use | J160: Force-Using Traditions | K160: Keetael | L160: Force Disciple, Jedi Master, Sith Lord
A161: F | B161: 49 | C161: Concealed Weapon Expert | D161: 1 | F161: swif | H161: y | I161: 1/round with unarmed, hold-out, dagger or vibrodagger reroll attack | J161: Infiltrator | K161: Infiltration | L161: Infiltrator
A162: R | B162: 40 | C162: Concentrate All Fire | D162: 1 | I162: +1 die dam when aid another's atk with vehicle weapon, an ally can only benefit once per atk | J162: Ace Pilot | K162: Wingman | L162: Ace Pilot
A163: SV | B163: 34 | C163: Confounding Attack | D163: 3 | E163: Tangle Up* | I163: 1/encounter forgo extra move to atk, if hit & dam with melee you switch places with opponent | J163: Outlaw | K163: Outlaw | L163: Outlaw
A164: CR | B164: 44 | C164: Connections | D164: 1 | I164: acquire equipment, CLx1000 credits, reduce black market multiplier by 1 | J164: Noble | K164: Lineage | L164: Corporate Agent, Noble
A165: L | B165: 26 | C165: Consular's Wisdom | D165: 2 | E165: Adept Negotiator | F165: swif | I165: 1/encounter 1 ally in LOS, until end of encounter ally adds your Wis bonus to Will Def | J165: Jedi | K165: Jedi Consular | L165: Jedi
A166: C | B166: 22 | C166: Consular's Vitality | D166: 1 | F166: swif | I166: 1/round grant one ally in 12 sq & LOS hp = 5+Cha mod, you take -5 Use the Force until next turn | J166: Jedi | K166: Jedi Consular | L166: Jedi
A167: C | B167: 53 | C167: Consumed by Darkness | D167: 1 | F167: swif | I167: take -5 to Will Def for +2 Atk | J167: Force Sensitive | K167: Dark Side | L167: Force Adept, Force Disciple, Imperial Knight, Jedi Knight, Jedi Master, Sith Apprentice, Sith Lord
A168: GI | B168: 25 | C168: Contingency Plan | D168: 1 | F168: reac | I168: 1/enc move your speed when you fail an attack, skill, or opposed check | J168: Crime Lord | K168: Mastermind | L168: Crime Lord
A169: CR | B169: 212 | C169: Controlled Burst | D169: 1 | I169: autofire or Burst Fire penalty reduced by 2, if you brace, no penalty | J169: Elite Trooper | K169: Weapon Master | L169: Elite Trooper
A170: CR | B170: 44 | C170: Coordinate | D170: 1 | F170: stan | I170: all allies in LOS get +1 with aid another, +5 max | J170: Noble | K170: Leadership | L170: Corporate Agent, Droid Commander, Noble, Officer
A171: GI | B171: 23 | C171: Coordinated Effort | D171: 3 | E171: Dedicated Protector* | I171: +2 damage when aiding your Dedicated Protector on an atk | J171: Soldier | K171: Commando | L171: Elite Trooper, Officer, Soldier
A172: UR | B172: 20 | C172: Coordinated Leadership | D172: 3 | E172: Born Leader, Coordinate | I172: 1 talent from Leadership tree stacks w/bonuses from others | J172: Noble | K172: Leadership | L172: Corporate Agent, Droid Commander, Noble, Officer
A173: C | B173: 26 | C173: Coordinated Tactics | D173: 2 | E173: Commanding Officer | I173: each follower gains Coordinated Attack feat | J173: Soldier | K173: Squad Leader | L173: Elite Trooper
A174: K | B174: 42 | C174: Corporate Clout | D174: 3 | E174: Impose Hes, Wrong Decision | F174: stan | I174: 1/encounter Persuasion v. Will w/in LOS target cannot attack you, if over by 5 can't attack allies | J174: Corporate Agent | K174: Corporate Power | L174: Corporate Agent
A175: L | B175: 45 | C175: Cortosis Defense | D175: 1 | I175: +2 on opposed unarmed melee attack roll v. lightsaber | J175: Imperial Knight | K175: Knight's Armor | L175: Imperial Knight
A176: L | B176: 27 | C176: Cortosis Gauntlet Block | D176: 1 | E176: AP (light, medium) | I176: can use Block with cortosis gauntlets, deactivates lightsabers on successful Block | J176: Jedi | K176: Lightsaber Combat | L176: Imperial Knight, Jedi, Jedi Knight, Sith Apprentice
A177: L | B177: 45 | C177: Cortosis Retaliation | D177: 2 | E177: Cortosis Defense | I177: when you successfully parry lightsaber atk you may make immediate atk v. attacker | J177: Imperial Knight | K177: Knight's Armor | L177: Imperial Knight
A178: SV | B178: 18 | C178: Counterpunch | D178: 1 | I178: if fight defensively any adjacent creature provokes an attack of opportunity | J178: Soldier | K178: Brawler | L178: Soldier
A179: F | B179: 45 | C179: Cover Bracing | D179: 1 | I179: brace autofire weapon with one swif if near an object that provides you with cover from target squares | J179: Enforcer | K179: Enforcement | L179: Enforcer
A180: F | B180: 42 | C180: Cower Enemies | D180: 2 | E180: Force Interrogation | I180: Persuasion to intimidate 6sq cone not single target. | J180: Force Adept | K180: Imperial Inquisitor | L180: Force Adept
A181: GW | B181: 18 | C181: Cover Escape | D181: 1 | I181: when you successfully spend FP to negate atk with Negate or Block ally can move 2 sq w/no AofO | J181: Jedi | K181: Jedi Guardian | L181: Jedi
A182: CR | B182: 52 | C182: Cover Fire | D182: 2 | E182: Battle Analysis | I182: with a ranged attack, allies w/in 6 squares get +1 Def until your next turn | J182: Soldier | K182: Commando | L182: Elite Trooper, Officer, Soldier
A183: L | B183: 41 | C183: Cover Your Tracks | D183: 1 | I183: Gather Information checks against you are -5 | J183: Jedi Knight | K183: Jedi Refugee | L183: Jedi Knight
A184: SV | B184: 16 | C184: Cramped Quarters Fighting | D184: 3 | E184: Starship Raider* | I184: Ref Def +2 when adjacent to obstacle or barrier | J184: Scoundrel | K184: Spacer | L184: Ace Pilot, Master Privateer, Scoundrel
A185: F | B185: 49 | C185: Creeping Approach | D185: 1 | E185: Stealth skill | F185: swif | I185: designate unaware target in 12sq, until next turn target may not make Perception against you | J185: Infiltrator | K185: Infiltration | L185: Infiltrator
A186: S | B186: 17 | C186: Crippling Hit | D186: 3 | E186: System Hit* | I186: if Atk moves ship down track, target loses: hyperdrive, weapon, or communications | J186: Ace Pilot | K186: Gunner | L186: Ace Pilot
A187: CR | B187: 213 | C187: Crippling Strike | D187: 2 | E187: Channel Aggression | G187: x | I187: on a Crit, can reduce target speed by half until fully healed | J187: Force Adept | K187: Dark Side Devotee | L187: Force Adept
A188: GI | B188: 21 | C188: Critical Skill Success | D188: 1 | I188: When you roll nat 20 on a skill, choose different skill. Gain +5 before end of next turn as free | J188: Noble | K188: Superior Skills | L188: Noble
A189: GI | B189: 23 | C189: Crowd Control | D189: 2 | E189: Entangler | I189: Grab 2 adjacent targets at once | J189: Soldier | K189: Brawler | L189: Soldier
A190: J | B190: 17 | C190: Crucial Advice | D190: 1 | I190: 1/encounter reroll failed skill check with +2 | J190: Force Sensitive | K190: Guardian Spirit | L190: Force Adept, Force Disciple, Imperial Knight, Jedi Knight, Jedi Master, Sith Apprentice, Sith Lord
A191: SV | B191: 18 | C191: Crushing Assault | D191: 2 | E191: Weapon Specialization | I191: if damage opp with bludgeoning Atk, +2 Atk & dam on next atk v. opponent before end of encounter | J191: Soldier | K191: Weapon Specialist | L191: Soldier, Weapon Specialist
A192: SV | B192: 31 | C192: Cunning Distraction | D192: 1 | I192: if you feint in combat you can move half your speed | J192: Charlatan | K192: Trickery | L192: Charlatan
A193: SV | B193: 15 | C193: Cunning Strategist | D193: 3 | E193: Walk the Line* | F193: stan | I193: each 1/enc after you Atk: if dam target -5 Ref, or target -2 spd, v. 2 opp w/in 2sq -5 Atk but 1 dam roll | J193: Scoundrel | K193: Misfortune | L193: Assassin, Bounty Hunter, Saboteur, Scoundrel
A194: L | B194: 29 | C194: Curved Throw | D194: 2 | E194: Bugbite | F194: swif | I194: ignore cover (not total) with razor & thud bugs | J194: Scoundrel | K194: Yuuzhan Vong Biotech | L194: Scoundrel
A195: R | B195: 43 | C195: Custom Model | D195: 2 | E195: Improvised Device, Tech Specialist feat | I195: add one modification from Tech Specialist of Improvised Device & does not affect value of item | J195: Improviser | K195: Improviser | L195: Improviser
A196: J | B196: 87 | C196: Cycle of Harmony | D196: 2 | E196: Tyia Adept | I196: ally in 12 sq & LOS takes dam or moves down track another ally w/in 12 & LOS gets hp = 5 + Cha mod | J196: Force-Using Traditions | K196: Tyia Adept | L196: Force Disciple, Jedi Master, Sith Lord
A197: CR | B197: 101 | C197: Damage Reduction 10 | D197: 1 | F197: stan | G197: x | I197: DR 10 for one minute | J197: Force Sensitive | K197: Control | L197: Force Adept, Force Disciple, Imperial Knight, Jedi Knight, Jedi Master, Sith Apprentice, Sith Lord
A198: SV | B198: 31 | C198: Damaging Deception | D198: 2 | E198: Cunning Distraction | F198: stan | I198: Deception v. Will Def in LOS, the next attack by your ally against the target deals +2 dice damage | J198: Charlatan | K198: Trickery | L198: Charlatan
A199: GI | B199: 25 | C199: Damaging Disarm | D199: 2 | E199: Ranged Disarm | I199: When you disarm with a ranged attack, deal half damage | J199: Gunslinger | K199: Gunslinger | L199: Gunslinger
A200: F | B200: 24 | C200: Dampen Presence | D200: 1 | F200: swif | I200: Use the Force v. Will Def it does not remember interacting with you (+5 if opp higher level) | J200: Jedi | K200: Jedi Sentinel | L200: Jedi
... 994 more rows

Sheet Prestige
A1: BOOK | B1: PAGE | C1: CLASS | D1: HP | E1: Force Points | F1: Ref | G1: Fort | H1: Will | I1: Min Lvl | J1: TRAINED SKILL PREREQUISITE | K1: SKILL FOCUS PREREQ. | L1: FEAT PREREQUISITE | M1: TALENT PREREQUISITE | N1: OTHER PREREQUISITE | O1: Group Heading
A2: CR | B2: 206 | C2: Ace Pilot | D2: d8 | E2: 6 | F2: +4 | G2: +2 | H2: 0 | I2: 7th | J2: Pilot | L2: Vehicular Combat | O2: Y
C4: Can use the following talent trees | G4: Level | H4: BAB | I4: Talent | J4: Class Feature | K4: Special Abilities
C5: Blockade Runner | E5: PrC | G5: 1 | H5: 0 | I5: x | K5: Vehicle Dodge: Dodge bonus on vehicle = 1/2 level
C6: Expert Pilot | E6: PrC | G6: 2 | H6: 1 | J6: Vehicle Dodge +1
C7: Gunner | E7: PrC | G7: 3 | H7: 2 | I7: x
C8: Squadron Leader | E8: PrC | G8: 4 | H8: 3 | J8: Vehicle Dodge +2
C9: Wingman | E9: PrC | G9: 5 | H9: 3 | I9: x
C10: Spacer | E10: Scoundrel | G10: 6 | H10: 4 | J10: Vehicle Dodge +3
G11: 7 | H11: 5 | I11: x
G12: 8 | H12: 6 | J12: Vehicle Dodge +4
G13: 9 | H13: 6 | I13: x
G14: 10 | H14: 7 | J14: Vehicle Dodge +5
A16: SV | B16: 28 | C16: Assassin | D16: d10 | E16: 6 | F16: +4 | G16: +2 | H16: 0 | I16: 7th | J16: Stealth | L16: Sniper | M16: Dastardly Strike | O16: Y
C18: Can use the following talent trees | G18: Level | H18: BAB | I18: Talent | J18: Class Feature | K18: Special Abilities
C19: Assassin | E19: PrC | G19: 1 | H19: 1 | I19: x | K19: Mark: single target in LOS, start of encounter, dam bonus, as swif target flat-foot instead
C20: Genohardan | E20: PrC | G20: 2 | H20: 2 | J20: Mark +1
C21: Misfortune | E21: Scoundrel | G21: 3 | H21: 3 | I21: x
C22: Malkite Poisoner | E22: Scoundrel | G22: 4 | H22: 4 | J22: Mark +2
G23: 5 | H23: 5 | I23: x
G24: 6 | H24: 6 | J24: Mark +3
G25: 7 | H25: 7 | I25: x
G26: 8 | H26: 8 | J26: Mark +4
G27: 9 | H27: 9 | I27: x
G28: 10 | H28: 10 | J28: Mark +5
M29: 2 from Awareness (Scout)
A30: CR | B30: 207 | C30: Bounty Hunter | D30: d10 | E30: 6 | F30: +4 | G30: +2 | H30: 0 | I30: 7th | J30: Survival | M30: 2 from Awareness (Scout) | O30: Y
C32: Can use the following talent trees | G32: Level | H32: BAB | I32: Talent | J32: Class Feature | K32: Special Abilities
C33: Bounty Hunter | E33: PrC | G33: 1 | H33: 1 | I33: x | K33: Familiar foe: observe opponent, Atk bonus & Ref Def bonus
C34: Force Hunter | E34: PrC | G34: 2 | H34: 2 | J34: Familiar foe +1
C35: Gand Findsman | E35: PrC | G35: 3 | H35: 3 | I35: x
C36: Misfortune | E36: Scoundrel | G36: 4 | H36: 4 | J36: Familiar foe +2
C37: Awareness | E37: Scout | G37: 5 | H37: 5 | I37: x
G38: 6 | H38: 6 | J38: Familiar foe +3
G39: 7 | H39: 7 | I39: x
G40: 8 | H40: 8 | J40: Familiar foe +4
G41: 9 | H41: 9 | I41: x
G42: 10 | H42: 10 | J42: Familiar foe +5
A44: SV | B44: 30 | C44: Charlatan | D44: d8 | E44: 6 | F44: +2 | G44: 0 | H44: +4 | I44: 7th | J44: Deception, Persuasion | M44: Disgrace, Influence or Lineage | N44: (Noble) | O44: Y
C46: Can use the following talent trees | G46: Level | H46: BAB | I46: Talent | J46: Class Feature | K46: Special Abilities
C47: Trickery | E47: PrC | G47: 1 | H47: 0 | I47: x | K47: Score: full-round observing target, reroll Deception & keep better until end of encounter
C48: Disgrace | E48: Noble | G48: 2 | H48: 1 | J48: Score | K48: Swindle: substitute Deception for Stealth to pick-pocket but you convinced them to give
C49: Fortune | E49: Scoundrel | G49: 3 | H49: 2 | I49: x | L49: up the item, target realizes what they did at end of the encounter
C50: Provocateur | E50: Noble | G50: 4 | H50: 3 | J50: Swindle
G51: 5 | H51: 3 | I51: x
G52: 6 | H52: 4 | J52: Swindle +1
G53: 7 | H53: 5 | I53: x
G54: 8 | H54: 6 | J54: Swindle +2
G55: 9 | H55: 6 | I55: x
G56: 10 | H56: 7 | J56: Swindle +5
A58: K | B58: 41 | C58: Corporate Agent | D58: d8 | E58: 6 | F58: +2 | G58: 0 | H58: +4 | I58: 7th | J58: Gather Info, Knowledge (bureaucracy) | K58: Knowledge (bureaucracy) | N58: work for interstellar corporation | O58: Y
C60: Can use the following talent trees | G60: Level | H60: BAB | I60: Talent | J60: Class Feature | K60: Special Abilities
C61: Corporate Power | E61: PrC | G61: 1 | H61: 0 | I61: x | K61: Executive Leadership: grant ally in LOS one of +2 Spd, +2 Atk, or +2 all Def
C62: Leadership | E62: Noble | G62: 2 | H62: 1 | J62: Executive Leadership/1 | L62: (as many times = half corporate agent level)
C63: Lineage | E63: Noble | G63: 3 | H63: 2 | I63: x
G64: 4 | H64: 3 | J64: Executive Leadership/2
G65: 5 | H65: 3 | I65: x
G66: 6 | H66: 4 | J66: Executive Leadership/3
G67: 7 | H67: 5 | I67: x
G68: 8 | H68: 6 | J68: Executive Leadership/4
G69: 9 | H69: 6 | I69: x
G70: 10 | H70: 7 | J70: Executive Leadership/5
A72: CR | B72: 209 | C72: Crime Lord | D72: d8 | E72: 6 | F72: +2 | G72: 0 | H72: +4 | I72: 7th | J72: Deception, Persuasion | M72: one from Fortune, Lineage or Misfortune | O72: Y
C74: Can use the following talent trees | G74: Level | H74: BAB | I74: Talent | J74: Class Feature | K74: Special Abilities
C75: Infamy | E75: PrC | G75: 1 | H75: 0 | I75: x | K75: Ref Def +1 per ally adjacent to you = 1/2 level
C76: Mastermind | E76: PrC | G76: 2 | H76: 1 | I76: x | J76: Command cover
C77: Influence | E77: Noble | G77: 3 | H77: 2 | I77: x
G78: 4 | H78: 3 | I78: x | J78: Command cover
G79: 5 | H79: 3 | I79: x
G80: 6 | H80: 4 | I80: x | J80: Command cover
G81: 7 | H81: 5 | I81: x
G82: 8 | H82: 6 | I82: x | J82: Command cover
G83: 9 | H83: 6 | I83: x
G84: 10 | H84: 7 | I84: x | J84: Command cover
A86: C | B86: 42 | C86: Droid Commander | D86: d10 | E86: 6 | F86: +2 | G86: +2 | H86: +2 | I86: 7th | J86: Knowledge (tactics), Use Comp | M86: 1 Leadership (Noble) or Commando (Soldier) | N86: Droids only | O86: Y
C88: Can use the following talent trees | G88: Level | H88: BAB | I88: Talent | J88: Class Feature | K88: Special Abilities
C89: Droid Commander | E89: PrC | G89: 1 | H89: 1 | I89: x | K89: Networked mind: droid allies can benefit from your mind-affecting effects
C90: Override | E90: PrC | G90: 2 | H90: 2 | J90: Networked mind (1 droid ally) | L90: have LOS as long as have active comlink
C91: Inspiration | E91: Noble | G91: 3 | H91: 3 | I91: x
C92: Leadership | E92: Noble | G92: 4 | H92: 4 | J92: Networked mind (2 droid allies)
C93: Droid | E93: Droid | G93: 5 | H93: 5 | I93: x
G94: 6 | H94: 6 | J94: Networked mind (3 droid allies)
G95: 7 | H95: 7 | I95: x
G96: 8 | H96: 8 | J96: Networked mind (4 droid allies)
G97: 9 | H97: 9 | I97: x
G98: 10 | H98: 10 | J98: Networked mind (5 droid allies)
A100: CR | B100: 211 | C100: Elite Trooper | D100: d12 | E100: 6 | F100: +2 | G100: +4 | H100: 0 | I100: 7th | L100: AP light & medium, Martial Arts I, & PB Shot OR Flurry | M100: 1 Armor Spec, Commando, Weapon Spec or Mercenary | O100: Y
C102: Can use the following talent trees | G102: Level | H102: BAB | I102: Talent | J102: Class Feature | K102: Special Abilities
C103: Critical Master | E103: PrC | G103: 1 | H103: 1 | I103: x | J103: Delay damage | K103: Delay damage: 1/encounter delay one attack or effect until the end of your next turn
C104: Mandalorian Warrior | E104: PrC | G104: 2 | H104: 2 | J104: Damage Reduction 1
C105: Master of Teras Kasi | E105: PrC | G105: 3 | H105: 3 | I105: x
C106: Melee Specialist | E106: PrC | G106: 4 | H106: 4 | J106: Damage Reduction 2
C107: Protection | E107: PrC | G107: 5 | H107: 5 | I107: x
C108: Republic Commando | E108: PrC | G108: 6 | H108: 6 | J108: Damage Reduction 3
C109: Squad Leader | E109: PrC | G109: 7 | H109: 7 | I109: x
C110: Weapon Master | E110: PrC | G110: 8 | H110: 8 | J110: Damage Reduction 4
C111: Camouflage | E111: Scout | G111: 9 | H111: 9 | I111: x
C112: Commando | E112: Soldier | G112: 10 | H112: 10 | J112: Damage Reduction 5
A114: F | B114: 43 | C114: Enforcer | D114: d8 | E114: 6 | F114: +4 | G114: 0 | H114: +2 | I114: 7th | J114: Gather Info, Perception | M114: 1 from Survivor (Scout) | N114: work for law enforcement or security organization | O114: Y
C116: Can use the following talent trees | G116: Level | H116: BAB | I116: Talent | J116: Class Feature | K116: Special Abilities
C117: Enforcement | E117: PrC | G117: 1 | H117: 0 | I117: x | J117: Resources | K117: Resources: every level restricted or military equipment = HLx2000, can bank
C118: Survivor | E118: Scout | G118: 2 | H118: 1 | J118: Targeted Suspect +1 | K118: Targeted Suspect: observe opponent, Atk bonus & Deception,
G119: 3 | H119: 2 | I119: x | L119: Perception & Persuasion
G120: 4 | H120: 3 | J120: Targeted Suspect +2
G121: 5 | H121: 3 | I121: x
G122: 6 | H122: 4 | J122: Targeted Suspect +3
G123: 7 | H123: 5 | I123: x
G124: 8 | H124: 6 | J124: Targeted Suspect +4
G125: 9 | H125: 6 | I125: x
G126: 10 | H126: 7 | J126: Targeted Suspect +5
A128: CR | B128: 212 | C128: Force Adept | D128: d8 | E128: 6 | F128: +2 | G128: +2 | H128: +4 | I128: 7th | J128: Use the Force | L128: Force Sensitivity | M128: any three Force | O128: Y
C130: Can use the following talent trees | G130: Level | H130: BAB | I130: Talent | J130: Class Feature | K130: Special Abilities
C131: Beastwarden | E131: PrC | G131: 1 | H131: 0 | I131: x | K131: Gains Force Techniques
C132: Dark Side Devotee | E132: PrC | G132: 2 | H132: 1 | J132: Force technique
C133: Force Adept | E133: PrC | G133: 3 | H133: 2 | I133: x
C134: Force Item | E134: PrC | G134: 4 | H134: 3 | J134: Force technique
C135: Imperial Inquisitor | E135: PrC | G135: 5 | H135: 3 | I135: x
C136: Mystic | E136: PrC | G136: 6 | H136: 4 | J136: Force technique
C137: Telepath | E137: PrC | G137: 7 | H137: 5 | I137: x
C138: Alter | E138: Force | G138: 8 | H138: 6 | J138: Force technique
C139: Control | E139: Force | G139: 9 | H139: 6 | I139: x
C140: Sense | E140: Force | G140: 10 | H140: 7 | J140: Force technique
C141: Dark Side | E141: Force
C142: Light Side | E142: Force
A144: CR | B144: 215 | C144: Force Disciple | D144: d8 | E144: 7 | F144: +3 | G144: +3 | H144: +6 | I144: 12th | J144: Use the Force | L144: Force Sensitivity | M144: any two from Dark Side Devotee, Force Adept, or Force Item | N144: Farseeing, 1 Force Technique | O144: Y
C146: Can use the following talent trees | G146: Level | H146: BAB | I146: Talent | J146: Class Feature | K146: Special Abilities
C147: Force Adept | E147: PrC | G147: 1 | H147: 0 | I147: x | J147: Indomitable, Prophet | K147: Indomitable: immune to mind-affecting effects
C148: Any tree from chapter #6 | G148: 2 | H148: 1 | J148: Force secret | K148: Prophet: receive 2 Destiny Points instead of 1, may immediately
G149: 3 | H149: 2 | I149: x | J149: Force secret | L149: sacrifice one for a prophetic vision
G150: 4 | H150: 3 | J150: Force secret
G151: 5 | H151: 3 | I151: x | J151: Force secret
A153: K | B153: 43 | C153: Gladiator | D153: d10 | E153: 6 | F153: +4 | G153: +2 | H153: 0 | I153: 7th | L153: Imp Dam Thresh, WP advanced | N153: BAB +7 | O153: Y
C155: Can use the following talent trees | G155: Level | H155: BAB | I155: Talent | J155: Class Feature | K155: Special Abilities
C156: Gladiatorial Combat | E156: PrC | G156: 1 | H156: 1 | I156: x | K156: Unflinching: once per encounter add Gladiator level to Fort Def
C157: Awareness | E157: Scout | G157: 2 | H157: 2 | J157: Unflinching/1 | L157: & thresh or Will Def until next turn
C158: Armor Specialist | E158: Soldier | G158: 3 | H158: 3 | I158: x
G159: 4 | H159: 4 | J159: Unflinching/2
G160: 5 | H160: 5 | I160: x
G161: 6 | H161: 6 | J161: Unflinching/3
G162: 7 | H162: 7 | I162: x
G163: 8 | H163: 8 | J163: Unflinching/4
G164: 9 | H164: 9 | I164: x
G165: 10 | H165: 10 | J165: Unflinching/5
A167: CR | B167: 216 | C167: Gunslinger | D167: d8 | E167: 6 | F167: +4 | G167: 0 | H167: +2 | I167: 7th | L167: PB Shot, Precise Shot, Quick Draw, WP(pistols) | O167: Y
C169: Can use the following talent trees | G169: Level | H169: BAB | I169: Talent | J169: Class Feature | K169: Special Abilities
C170: Carbineer | E170: PrC | G170: 1 | H170: 1 | I170: x | K170: Trusty Sidearm: add to damage
C171: Gunslinger | E171: PrC | G171: 2 | H171: 2 | J171: Trusty Sidearm +1
C172: Pistoleer | E172: PrC | G172: 3 | H172: 3 | I172: x
C173: Sharpshooter | E173: PrC | G173: 4 | H173: 4 | J173: Trusty Sidearm +2
C174: Fortune | E174: Scoundrel | G174: 5 | H174: 5 | I174: x
C175: Awareness | E175: Scout | G175: 6 | H175: 6 | J175: Trusty Sidearm +3
G176: 7 | H176: 7 | I176: x
G177: 8 | H177: 8 | J177: Trusty Sidearm +4
G178: 9 | H178: 9 | I178: x
G179: 10 | H179: 10 | J179: Trusty Sidearm +5
A181: L | B181: 43 | C181: Imperial Knight | D181: d10 | E181: 6 | F181: +2 | G181: +2 | H181: +2 | I181: 7th | J181: Use the Force | L181: AP(medium), WP(lightsabers) | N181: BAB +7, Defender of Roan Fel | O181: Y
C183: Can use the following talent trees | G183: Level | H183: BAB | I183: Talent | J183: Class Feature | K183: Special Abilities
C184: Knight's Armor | E184: PrC | G184: 1 | H184: 1 | I184: x | K184: Gains Force Techniques
C185: Knight's Resolve | E185: PrC | G185: 2 | H185: 2 | J185: Force technique
C186: Armor Specialist | E186: Soldier | G186: 3 | H186: 3 | I186: x
C187: Lightsaber Combat | E187: Jedi | G187: 4 | H187: 4 | J187: Force technique
C188: Duelist | E188: Jedi Knight | G188: 5 | H188: 5 | I188: x
C189: Alter | E189: Force | G189: 6 | H189: 6 | J189: Force technique
C190: Control | E190: Force | G190: 7 | H190: 7 | I190: x
C191: Sense | E191: Force | G191: 8 | H191: 8 | J191: Force technique
C192: Dark Side | E192: Force | G192: 9 | H192: 9 | I192: x
C193: Light Side | E193: Force | G193: 10 | H193: 10 | J193: Force technique
A196: R | B196: 41 | C196: Improviser | D196: d8 | E196: 6 | F196: +2 | G196: 0 | H196: +4 | I196: 7th | J196: Mechanics, Use Computer | L196: Skill Focus (Mechanics) | O196: Y
C198: Can use the following talent trees | G198: Level | H198: BAB | I198: Talent | J198: Class Feature | K198: Special Abilities
C199: Procurement | E199: PrC | G199: 1 | H199: 0 | I199: x | J199: No tools required | K199: Contraband: Obtain rare or illegal items equal to half level x credits
C200: Improviser | E200: PrC | G200: 2 | H200: 1 | J200: Contraband (2,000 credits)
C201: Outlaw Tech | E201: Scoundrel | G201: 3 | H201: 2 | I201: x
C202: Slicer | E202: Scoundrel | G202: 4 | H202: 3 | J202: Contraband (4,000 credits)
G203: 5 | H203: 3 | I203: x
G204: 6 | H204: 4 | J204: Contraband (6,000 credits)
G205: 7 | H205: 5 | I205: x
G206: 8 | H206: 6 | J206: Contraband (8,000 credits)
G207: 9 | H207: 6 | I207: x
G208: 10 | H208: 7 | J208: Contraband (10,000 credits)
A210: F | B210: 46 | C210: Independent Droid | D210: d12 | E210: 6 | F210: +2 | G210: 0 | H210: +4 | I210: 3rd | J210: Use Computer | N210: Heuristic Processor, Droids only | O210: Y
C212: Can use the following talent trees | G212: Level | H212: BAB | I212: Talent | J212: Class Feature | K212: Special Abilities
C213: Autonomy | E213: PrC | G213: 1 | H213: 0 | I213: x | J213: Sapience | K213: Sapience: can choose to not have droid immunities apply to mind-affecting effects,
C214: Elite Droid | E214: PrC | G214: 2 | H214: 1 | J214: Independent spirit +1 | L214: immune to restraining bolts
C215: Specialized Droid | E215: PrC | G215: 3 | H215: 2 | I215: x | K215: Independent Spirit: once per encounter grant yourself morale bonus to one Def
G216: 4 | H216: 3 | J216: Independent spirit +2
G217: 5 | H217: 3 | I217: x
G218: 6 | H218: 4 | J218: Independent spirit +3
G219: 7 | H219: 5 | I219: x
G220: 8 | H220: 6 | J220: Independent spirit +4
G221: 9 | H221: 6 | I221: x
G222: 10 | H222: 7 | J222: Independent spirit +5
A224: F | B224: 48 | C224: Infiltrator | D224: d8 | E224: 6 | F224: +4 | G224: 0 | H224: +2 | I224: 7th | J224: Perception, Stealth | K224: Stealth | M224: 2 from Camouflage or Spy | O224: Y
C226: Can use the following talent trees | G226: Level | H226: BAB | I226: Talent | J226: Class Feature | K226: Special Abilities
C227: Bothan SpyNet | E227: PrC | G227: 1 | H227: 0 | I227: x | K227: Unarmed stun: unarmed attack deals +1 die dam to stun (+2 at 6th, +3 at 10th)
C228: Infiltration | E228: PrC | G228: 2 | H228: 1 | J228: Unarmed stun +1 die | K228: Lead infiltrator: make Stealth for allies in LOS = Cha mod, allies must stay in LOS
C229: Camouflage | E229: Scout | G229: 3 | H229: 2 | I229: x
C230: Spy | E230: Scout | G230: 4 | H230: 3 | J230: Lead infiltrator
G231: 5 | H231: 3 | I231: x
G232: 6 | H232: 4 | J232: Unarmed stun +2 dice
G233: 7 | H233: 5 | I233: x
... 186 more rows

Sheet Backgrounds
A1: BOOK | B1: PAGE | C1: Type | D1: BACKGROUND | E1: BENEFIT | F1: BONUS LANGUAGE | G1: RELEVANT SKILLS
A2: R | B2: 17 | C2: E | D2: Bankrupt | E2: Use survival to sustain yourself in urban or civilized areas | G2: Deception, Gather Information, Survival
A3: R | B3: 17 | C3: E | D3: Conspiracy | E3: Reroll any Perception check to sense deception or influence, keep better result | G3: Deception, Stealth, Use Computer
A4: R | B4: 17 | C4: E | D4: Crippled | E4: Start with cybernetic prosthesis. When Fortitude Defense is reduced through condition, keep Damage Threshold the same. | G4: Endurance, Mechanics, Treat Injury
A5: R | B5: 17 | C5: E | D5: Disgraced | E5: Disguising yourself is one step simpler. | G5: Deception, Gather Information, Stealth
A6: R | B6: 17 | C6: E | D6: Enslaved | E6: +2 to grapple checks. | G6: Climb, Endurance, Jump
A7: R | B7: 17 | C7: E | D7: Exiled | E7: Plot safe course for hyperspace in half time. If trained in Knowledge (galactic lore) you gain the Skill Focus as conditional bonus feat. | G7: Gather Information, Knowledge (galactic lore), Survival
A8: R | B8: 18 | C8: E | D8: Imprisoned | E8: Obtain black market goods at half time. | G8: Acrobatics, Gather Information, Stealth
A9: R | B9: 18 | C9: E | D9: Marooned | E9: No penalty to heal yourself. | G9: Ride, Survival, Swim
A10: R | B10: 18 | C10: E | D10: Orphaned | E10: +1d6 when using a Force Point to aid a skill check. | G10: Gather Information, Survival, Treat Injury
A11: R | B11: 18 | C11: E | D11: Scarred | E11: Intimidation is always favorable. | G11: Deception, Persuasion, Treat Injury
A12: R | B12: 18 | C12: E | D12: Widowed | E12: Can take 20 on Gather Information, but takes 20 times longer. | G12: Gather Information, Knowledge (galactic lore), Use Computer
A13: R | B13: 18 | C13: Oc | D13: Academic | G13: Knowledge (any one skill), Persuasion, Use Computer
A14: R | B14: 19 | C14: Oc | D14: Celebrity | G14: Deception, Gather Information, Persuasion
A15: R | B15: 19 | C15: Oc | D15: Criminal | G15: Deception, Gather Information, Stealth
A16: R | B16: 19 | C16: Oc | D16: Executive | G16: Initiative, Persuasion, Use Computer
A17: R | B17: 19 | C17: Oc | D17: Labor | G17: Climb, Endurance, Jump
A18: R | B18: 19 | C18: Oc | D18: Law Enforcement | G18: Acrobatics, Gather Information, Knowledge (bureaucracy)
A19: R | B19: 19 | C19: Oc | D19: Medical | G19: Knowledge (life sciences), Treat Injury, Use Computer
A20: R | B20: 19 | C20: Oc | D20: Military | G20: Endurance, Ride, Treat Injury
A21: R | B21: 19 | C21: Oc | D21: Pilot | G21: Knowledge (galactic lore), Mechanics, Use Computer
A22: R | B22: 19 | C22: Oc | D22: Politics | G22: Deception, Gather Information, Use Computer
A23: R | B23: 19 | C23: Oc | D23: Technology | G23: Knowledge (technology), Mechanics, Use Computer
A24: R | B24: 20 | C24: Or | D24: Alderaan | F24: High Galactic | G24: Knowledge (any one), Persuasion, Treat Injury
A25: R | B25: 20 | C25: Or | D25: Bakura | F25: High Galactic | G25: Mechanics, Treat Injury, Use Computer
A26: R | B26: 20 | C26: Or | D26: Bespin | F26: Bocce | G26: Deception, Knowledge (bureaucracy), Persuasion
A27: R | B27: 20 | C27: Or | D27: Bothawui | F27: Bothese | G27: Deception, Gather Information, Persuasion
A28: R | B28: 20 | C28: Or | D28: Cerea | F28: Cerean | G28: Acrobatics, Knowledge (life sciences), Survival
A29: R | B29: 20 | C29: Or | D29: Corellia | F29: Old Corellian | G29: Initiative, Knowledge (technology), Mechanics
A30: R | B30: 20 | C30: Or | D30: Coruscant | F30: High Galactic | G30: Gather Information, Knowledge (bureaucracy), Knowledge (galactic lore)
A31: R | B31: 20 | C31: Or | D31: Dorin | F31: Kel Dor | G31: Endurance, Survival, Treat Injury
A32: R | B32: 20 | C32: Or | D32: Duro | F32: Durese | G32: Knowledge (technology), Mechanics, Use Computer
A33: R | B33: 21 | C33: Or | D33: Fondor | F33: Bocce | G33: Knowledge (technology), Mechanics, Use Computer
A34: R | B34: 21 | C34: Or | D34: Gamorr | F34: Gamorrean | G34: Climb, Endurance, Survival
A35: R | B35: 21 | C35: Or | D35: Iridonia | F35: Zabrak | G35: Acrobatics, Endurance, Survival
A36: R | B36: 21 | C36: Or | D36: Ithor | F36: Ithorese | G36: Knowledge (life sciences), Persuasion, Treat Injury
A37: R | B37: 21 | C37: Or | D37: Kashyyyk | F37: Shyriwook (understand only) | G37: Climb, Persuasion, Survival
A38: R | B38: 21 | C38: Or | D38: Mon Calamari | F38: Mon Calamarian or Quarrenese | G38: Mechanics, Persuasion, Swim
A39: R | B39: 21 | C39: Or | D39: Naboo | F39: Gunganese | G39: Ride, Persuasion, Swim
A40: R | B40: 21 | C40: Or | D40: Nar Shaddaa | F40: Huttese | G40: Deception, Gather Information, Stealth
A41: R | B41: 21 | C41: Or | D41: Rodia | F41: Rodese | G41: Climb, Stealth, Survival
A42: R | B42: 21 | C42: Or | D42: Ryloth | F42: Ryl | G42: Deception, Persuasion, Survival
A43: R | B43: 22 | C43: Or | D43: Socorro | F43: Socorran | G43: Deception, Stealth, Survival
A44: R | B44: 22 | C44: Or | D44: Sullust | F44: Sullustese | G44: Climb, Mechanics, Survival
A45: R | B45: 22 | C45: Or | D45: Taris | F45: Sy Bisti | G45: Deception, Mechanics, Stealth
A46: R | B46: 22 | C46: Or | D46: Tatooine | F46: Jawa Trade Language | G46: Endurance, Ride, Survival
A47: R | B47: 22 | C47: Or | D47: Trandosha | F47: Dosh | G47: Endurance, Persuasion, Survival

Sheet Destiny
A1: BOOK | B1: PAGE | C1: DESTINY | D1: ACTIVATE | E1: BONUS | F1: PREREQ | G1: PENALTY | H1: FULFILLED
A2: F | B2: 36 | C2: Champion | D2: Become the leader of a large and/or significant group or organization and successfully lead it through an extremely threatening event. | E2: 24 hours: you and allies within 10sq +1 all Def | G2: 24 hours: you -2 all Def | H2: Cha +2
A3: CR | B3: 113 | C3: Corruption | D3: Corrupt an individual, organization or location. | E3: 24 hours: you and allies within 10sq +1 skill & ability checks | G3: 24 hours: you -2 skill & ability checks | H3: two ability scores +1, if Dark Side score less than Wis increase to Wis
A4: F | B4: 35 | C4: Creation | D4: Create an object, machine, or item of great power or significant use. | E4: 24 hours: you and allies within 10sq +1 skill & ability checks | G4: 24 hours: you -2 skill & ability checks | H4: you or an ally in sight can spend 2 Force Points in a single round while using the created object
A5: CR | B5: 115 | C5: Death and Destiny | D5: Die while fulfilling or trying to fulfill your destiny | E5: Noble Sacrifice: all allies in star system +1 atk +1 all def 24 hours Vengeance: any ally who witnesses death +2 atk +2 dam 24 hours, Dark Side Score +1 | F5: Force-Sensitive | G5: You are, at least in some aspects, dead. | H5: Force Spirit: retains Int, Wis, Cha, incorporeal
A6: CR | B6: 114 | C6: Destruction | D6: Destroy a person or an object, for good or for evil. | E6: 24 hours: you and allies within 10sq +2 dam | G6: 24 hours: you -2 dam | H6: one ability +2
A7: CR | B7: 114 | C7: Discovery | D7: Discover a person, species, object or location that was either previously lost or unknown to the civilized galaxy. | E7: 24 hours: you and allies within 10sq +1 all Def | G7: 24 hours: you -1 all Def | H7: all Def +1
A8: CR | B8: 114 | C8: Education | D8: Educate another being or group or beings in some way. | E8: 24 hours: you and allies within 10sq +1 skill & ability checks | G8: 24 hours: you -2 skill & ability checks | H8: one skill permanent +5
A9: L | B9: 22 | C9: Legacy, Ackbar | D9: spend a Destiny Point as a free action | E9: double insight, morale, or competence bonus you grant | F9: Mon Calamari
A10: L | B10: 22 | C10: Legacy, Antilles | D10: spend a Destiny Point as a free action | E10: treat your next Pilot check as if you had rolled 20 on the check | F10: Human or Near-Human
A11: L | B11: 22 | C11: Legacy, Darklighter | D11: spend a Destiny Point as a free action | E11: automatically negate an attack against an adjacent ally or allied vehicle | F11: Human or Near-Human
A12: L | B12: 21 | C12: Legacy, Denying it | D12: Deny your Legacy | E12: 24 hours: you gain +2 single atk or skill check of choice | G12: 24 hours: you -2 first atk in any encounter
A13: L | B13: 23 | C13: Legacy, Droid | D13: spend a Destiny Point as a free action | E13: treat your next Knowledge check as if you had rolled 20 on the check | F13: Droid
A14: L | B14: 21 | C14: Legacy, Embracing it | D14: Embrace your Legacy | E14: 24 hours: you gain +2 single atk or skill check of choice | G14: 24 hours: you -2 first atk in any encounter
A15: L | B15: 23 | C15: Legacy, Fel | D15: spend a Destiny Point as a free action | E15: grant all allies in LOS +5 Will Def until end of encounter | F15: Human or Near-Human
A16: L | B16: 23 | C16: Legacy, Fett | D16: spend a Destiny Point as a free action | E16: for rest of encounter, score critical hits on natural 19 or 20 | F16: Human or Near-Human
A17: L | B17: 23 | C17: Legacy, Fey'lya | D17: spend a Destiny Point as a free action | E17: treat your next Persuasion check as if you had rolled 20 on the check | F17: Bothan
A18: L | B18: 23 | C18: Legacy, Halcyon/Horn | D18: spend a Destiny Point as a free action | E18: treat your next skill check to activate a mind-affecting effect as if you had rolled 20 on the check | F18: Human or Near-Human
A19: L | B19: 24 | C19: Legacy, Koon | D19: spend a Destiny Point as a free action | E19: treat your next Use the Force check as if you had rolled 20 on the check | F19: Kel Dor
A20: L | B20: 24 | C20: Legacy, Koth | D20: spend a Destiny Point as a free action | E20: do not move down the condition track as a result of an attack the rest of the encounter | F20: Zabrak
A21: L | B21: 24 | C21: Legacy, Mundi | D21: spend a Destiny Point as a free action | E21: treat your next Perception check as if you had rolled 20 on the check | F21: Cerean
A22: L | B22: 24 | C22: Legacy, Nadon | D22: spend a Destiny Point as a free action | E22: treat your next Treat Injury check as if you had rolled 20 on the check | F22: Ithorian
A23: L | B23: 24 | C23: Legacy, Nunb | D23: spend a Destiny Point as a free action | E23: treat your next Pilot check as if you had rolled 20 on the check | F23: Sullustan
A24: L | B24: 24 | C24: Legacy, Organa | D24: spend a Destiny Point as a free action | E24: treat your next Persuasion check as if you had rolled 20 on the check | F24: Human or Near-Human
A25: L | B25: 24 | C25: Legacy, Qel-Droma | D25: spend a Destiny Point as a free action | E25: double the results of Force Point rolls added to attacks and skill checks until the end of the encounter | F25: Human or Near-Human
A26: L | B26: 24 | C26: Legacy, Secura | D26: spend a Destiny Point as a free action | E26: increase speed +2 squares until the end of the encounter | F26: Twi'lek
A27: L | B27: 24 | C27: Legacy, Skywalker | D27: spend a Destiny Point as a free action | E27: treat your next Use the Force check as if you had rolled 20 on the check | F27: Human or Near-Human
A28: L | B28: 25 | C28: Legacy, Solo | D28: spend a Destiny Point as a free action | E28: treat your next Mechanics check as if you had rolled 20 on the check | F28: Human or Near-Human
A29: L | B29: 25 | C29: Legacy, Sunrider | D29: spend a Destiny Point as a free action | E29: grant all allies in LOS bonus hp = 15+ your Cha mod (min +1) | F29: Human or Near-Human
A30: L | B30: 25 | C30: Legacy, Tarpals | D30: spend a Destiny Point as a free action | E30: grant all allies in LOS +5 Will Def until end of encounter | F30: Gungan
A31: L | B31: 25 | C31: Legacy, Tetsu | D31: spend a Destiny Point as a free action | E31: treat your next Survival check as if you had rolled 20 on the check | F31: Rodian
A32: L | B32: 25 | C32: Legacy, Vao | D32: spend a Destiny Point as a free action | E32: regain all your hit points but take -2 atk and skill checks for the rest of the encounter | F32: Twi'lek
A33: F | B33: 36 | C33: Liberation | D33: Your destiny is to liberate a group, population, or region from Imperial domination. | E33: 24 hours: you and allies within 10sq +2 dam | G33: 24 hours: you -2 dam | H33: all Def +1
A34: CR | B34: 114 | C34: Redemption | D34: Redeem a character that has been corrupted or otherwise turned to evil. | E34: 24 hours: you gain a Force Point | G34: 24 hours: lose one Force Point, if no fop -1 atk until you gain a level | H34: Dark Side score of redeemed reduced to 1 & loses remaining Force Points, you gain FP 3+redeemed lost FP
A35: CR | B35: 115 | C35: Rescue | D35: Save a person from death, or an object from destruction. | E35: 24 hours: you and allies within 10sq +2 dam | G35: 24 hours: you -2 atk | H35: two ability scores +1

Sheet Unleashed
A1: BOOK | B1: PAGE | C1: ABILITY | D1: Force? | E1: BENEFIT
A2: F | B2: 38 | C2: Bantha Rush | E2: increases the distance you move target by 5 squares & knocks target prone
A3: F | B3: 89 | C3: Battle Meditation | D3: Y | E3: bonuses apply to all allies within the same star system
A4: F | B4: 90 | C4: Battle Strike | D4: Y | E4: your next melee Atk moves target additional -2 down track whether over thresh or not
A5: F | B5: 38 | C5: Charge | E5: stan action +5 Atk & -2 Ref Def, can move twice speed (min2) in a straight line & full attack
A6: F | B6: 38 | C6: Cleave | E6: if reduce opponent to 0 hp, immediate extra melee attack against all opponents in reach
A7: F | B7: 90 | C7: Corruption | D7: Y | E7: when successfully damage target with Corruption, takes half damage next 5 rounds
A8: F | B8: 90 | C8: Dark Rage | D8: Y | E8: +10 melee attack & damage rolls rest of encounter
A9: F | B9: 38 | C9: Devastating Attack | E9: treat every attack as if it exceeded thresh until beginning of next turn
A10: F | B10: 38 | C10: Extreme Effort | E10: bonus +20
A11: F | B11: 39 | C11: Firepower | E11: stan action, fire at five separate targets, make single Atk roll & compare, aiming does not benefit
A12: F | B12: 91 | C12: Force Blast | D12: Y | E12: multiply damage by 2
A13: F | B13: 91 | C13: Force Grip | D13: Y | E13: maintain with no concentration for a number of rounds = Cha mod
A14: F | B14: 91 | C14: Force Lightning | D14: Y | E14: target all in 6sq cone
A15: F | B15: 91 | C15: Force Storm | D15: Y | E15: 8d6 dam to adjacent for duration of power
A16: F | B16: 91 | C16: Force Thrust | D16: Y | E16: opponents do not add size modifier, distance moved multiplied by2, damage 1d6 per square moved
A17: F | B17: 39 | C17: Ignite Fervor | E17: provide damage bonus to all allies in LOS
A18: F | B18: 39 | C18: Keen Shot | E18: ignore all cover until beginning of your next turn
A19: F | B19: 39 | C19: Mighty Swing | E19: +5 Atk & damage & make automatic trip against target with +5 on grapple check
A20: F | B20: 91 | C20: Move Object | D20: Y | E20: if you hurl an object into another object multiply damage by 2
A21: F | B21: 39 | C21: Penetrating Attack | E21: ignore all DR until beginning of next turn
A22: F | B22: 39 | C22: Rage | E22: gain and additional +10 melee Atk & dam, move -2 down track at end
A23: F | B23: 91 | C23: Repulse | D23: Y | E23: opponents do not add size modifier, distance moved multiplied by2, damage 1d6 per square moved
A24: F | B24: 39 | C24: Skirmisher | E24: if move 2 sq +1 & auto crit on your next attack & gain bonus to dam = squares moved
A25: F | B25: 39 | C25: Sneak Attack | E25: with successful Sneak Atk, +5 Atk & +5d6 dam, must be within 6sq for ranged
A26: F | B26: 39 | C26: Strafe | E26: target an area 4sq long & 3sq wide
A27: F | B27: 39 | C27: Whirlwind Attack | E27: +5 Atk & knock prone any targets you damage

Sheet Droid Systems
A1: BOOK | B1: PAGE | C1: DROID SYSTEM | D1: GROUP | E1: COST | F1: WEIGHT | G1: AVAIL. | H1: COMMENTS & BENEFITS
A2: SGD | B2: 55 | C2: Antitheft comlink locator | D2: Accessory | E2: 100 | F2: 0.5 | G2: - | H2: signal sent to master's comlink that can be tracked until droid is destroyed
A3: CR | B3: 193 | C3: Armor | D3: Armor | H3: See Armor
A4: SGD | B4: 55 | C4: Audio enhancers | D4: Accessory | E4: 2000 | F4: 1 | G4: - | H4: reroll Perception & keep better
A5: SGD | B5: 55 | C5: Audio-radial stunner | D5: Accessory | E5: 5000 | F5: 3 | G5: Restricted | H5: as stan action adjacent must make DC 20 Endurance or move -1 down track
A6: SGD | B6: 55 | C6: Automap | D6: Accessory | E6: 1000 | F6: 2 | G6: - | H6: 12 sq radius but cannot penetrate solid objects
A7: CR | B7: 191 | C7: Backup Processor | D7: Processors | E7: 100 | F7: - | G7: - | H7: Allows a remote drone to function like a droid when losing contact with processor
A8: SGD | B8: 63 | C8: Battle station | D8: Stations | E8: 50000 per 100 | F8: 5000 | G8: Military | H8: select 2 talents from droid commander prestige class, calculated per station not creature, does not duplicate
A9: SGD | B9: 55 | C9: Blaster recharger interface | D9: Accessory | E9: 300 | F9: 1 | G9: Licensed | H9: as swif action recharge power packs, droid loses hp = dam dice of weapon
A10: SGD | B10: 52 | C10: Burrower drive | D10: Locomotion | E10: 200xCFxSp² | F10: 50xCF | G10: Restricted | H10: move half spd, if used as weapon dam = to self-destruct device & each atk moves droid -1 down track
A11: CR | B11: 190 | C11: Claw | D11: Appendage | E11: 20xCF | F11: (5xCF) | G11: - | H11: Tasks that requires a hand requires a DC15 DEX roll, if fail it drops the object.
A12: CR | B12: 189 | C12: Climbing Claws | D12: Appendage | E12: x2 | F12: - | G12: - | H12: Climb = /2 speed, reroll & keep better, can always take 10
A13: SGD | B13: 55 | C13: Collapsible construction | D13: Accessory | E13: 2000xCF | F13: 10xCF | G13: - | H13: lowers size category by 1, reactivate as stan
A14: CR | B14: 193 | C14: Comlink, internal | D14: Communications | E14: 250 | F14: 0.1 | G14: -
A15: SGD | B15: 63 | C15: Command station | D15: Stations | E15: 10000 | F15: 1000 | G15: Licensed | H15: Int 14, Will Def 15, see text for details on: issue routine command, coordinate, locate droid, receive details on droid status, reprogram droid, translate Binary
A16: SGD | B16: 56 | C16: Communications countermeasures | D16: Communications | E16: 1000 | F16: 3 | G16: Restricted | H16: +5 Use Computer to overcome jamming
A17: SGD | B17: 56 | C17: Communications jammer | D17: Communications | E17: 5000 | F17: 5 | G17: Military | H17: +5 Use Computer to slice & shut down computer, +5 to stop slicer's jamming, DC 25 Use Computer to jam incoming or outgoing comlinks w/in 1 km
A18: CR | B18: 194 | C18: Compartment space (per kg) | D18: Internal Storage | E18: 50 | F18: - | G18: -
A19: SGD | B19: 56 | C19: Concealed item | D19: Accessory | E19: see text | F19: App+weapon | G19: Restricted | H19: +5 Stealth to conceal plus size modifiers, +10 Deception to create Deceptive Appearances
A20: SGD | B20: 56 | C20: Courier compartments | D20: Accessory | E20: 200 | F20: 2xCF | G20: - | H20: hold an item 3 sizes smaller than droid's torso, 4 leg/arm, 5 head, Perception to detect with DC = droid's Will Def +5
A21: SGD | B21: 56 | C21: Credit reader | D21: Accessory | E21: 50 | F21: 1 | G21: Licensed | H21: +5 Perception against Deception of a forgery, can count hard credits as a free action
A22: CR | B22: 196 | C22: Darkvision | D22: Sensor | E22: 150 | F22: 1.5 | G22: - | H22: +2 Perception, low-light vision, ignores concealment (including total) from darkness
A23: CR | B23: 193 | C23: Diagnostics Package | D23: Diagnostics Package | E23: 250 | F23: 4 | G23: - | H23: +2 on Mechanics checks to diagnose problems
A24: CR | B24: 192 | C24: Downloading and Restoring Memory | D24: Downloading and Restoring Memory | H24: See page 192
A25: CR | B25: 192 | C25: Droid caller | D25: Communications | E25: 10 | F25: 0.2 | G25: - | H25: Summons droid with restraining bolt, resist with DC20 CHA to be immune to the caller for 24h
A26: SGD | B26: 56 | C26: Droid oil bath | D26: Accessory | E26: 500 | F26: 600xCF | G26: - | H26: if in at least 30 min can activate 2nd Wind
A27: SGD | B27: 53 | C27: Droid remote control | D27: Processors | E27: 500 | F27: 0.5 | G27: - | H27: droid caller to move droid using its own locomotion at half spd
A28: SGD | B28: 64 | C28: Droid Socket | D28: Stations | E28: 10000* | F28: 1000 | G28: Military | H28: *cost usually included in cost of vehicle, see text for more on: pilot or copilot, system operator, engineer, jury-rig/repair, Use Computer checks, communications/sensors, input hyperdrive coordinates, operate ejection system, prohibited actions, optional self-loading system
A29: SGD | B29: 57 | C29: Earphone binary-to-basic translator | D29: Accessory | E29: 20 | F29: 0.5 | G29: - | H29: converts audible Binary to audible Basic, Perception DC 20 to detect
A30: SGD | B30: 57 | C30: Electric defense grid | D30: Accessory | E30: 3000xCF | F30: 100xCF | G30: Restricted | H30: if damaged by melee atk attacker takes 5 dam, energy melee weapons ignore the effect
A31: SGD | B31: 57 | C31: Emergency oxygen supply | D31: Accessory | E31: 200 | F31: 20 | G31: - | H31: Med size creature for 30 min, connect as swif & secure as stan
A32: CR | B32: 189 | C32: Extra Legs | D32: Appendage | E32: x2 | F32: - | G32: - | H32: +50% carry, +5 stability to resist getting knocked prone
A33: CR | B33: 188 | C33: Flying | D33: Locomotion | E33: 200xCFxSp² | F33: - | G33: - | H33: Speed: F-S: 9 M: 12 L-C: 12
A34: SGD | B34: 52 | C34: Gyroscopic stabilizers | D34: Locomotion | E34: 2xCFxSp² | F34: 4xCF | G34: - | H34: +5 stability to being knocked prone, stacks with bonus from extra legs
A35: CR | B35: 190 | C35: Hand | D35: Appendage | E35: 50xCF | F35: (5xCF) | G35: -
A36: CR | B36: 193 | C36: Hardened Systems x2 | D36: Hardened Systems | E36: 1000xCF | F36: (100xCF) | G36: Military | H36: Multiplies HP/Threshold based on droid size
A37: CR | B37: 193 | C37: Hardened Systems x3 | D37: Hardened Systems | E37: 2500xCF | F37: [250xCF) | G37: Military | H37: Multiplies HP/Threshold based on droid size
A38: CR | B38: 193 | C38: Hardened Systems x4 | D38: Hardened Systems | E38: 4000xCF | F38: (400xCF) | G38: Military | H38: Multiplies HP/Threshold based on droid size
A39: CR | B39: 193 | C39: Hardened Systems x5 | D39: Hardened Systems | E39: 6250xCF | F39: (650xCF) | G39: Military | H39: Multiplies HP/Threshold based on droid size
A40: CR | B40: 190 | C40: Heuristic Processor | D40: Processors | E40: 2000 | F40: 5 | G40: - | H40: Allows a droid to behave like a normal character would
A41: SGD | B41: 53 | C41: Hidden core | D41: Processors | E41: 200 | F41: 1 or - | G41: Restricted | H41: restores personality 1d6 days after memory wipe DC 20 use Computer, tries gain 1d6 days later on failure, for double the cost for Will Def 30
A42: SGD | B42: 57 | C42: Hidden holster | D42: Accessory | E42: 500xCF | F42: 2xCF | G42: Licensed | H42: free to activate& acts as Quick Draw (draw or holster as swif) if has BAB +1
A43: SGD | B43: 57 | C43: High-speed cutting torch and welder | D43: Accessory | E43: 2500 | F43: 500 | G43: Licensed | H43: only on Med or larger, half time of regular welding, range of 1 sq & 4d10 dam, for 2 or more consecutive rounds ignores 5 pts of DR & reduces thresh by 10
A44: SGD | B44: 57 | C44: Holographic game system | D44: Accessory | E44: 300 | F44: 3 | G44: -
A45: SGD | B45: 60 | C45: Holographic image disguiser | D45: Accessory | E45: 20000xCF | F45: 20xCF | G45: Restricted | H45: like standard holoshroud, +10 Deception for Deceptive Appearance, advanced model double the price & activate as full
A46: CR | B46: 188 | C46: Hovering | D46: Locomotion | E46: 100xCFxSp² | F46: - | G46: - | H46: Speed: F-S: 6 M: 6 L-C: 6
A47: SGD | B47: 60 | C47: ID Dodge | D47: Accessory | E47: 5000 | F47: 1 | G47: Illegal | H47: use Deception instead of Use Computer that requires biometric ID
A48: SGD | B48: 60 | C48: Improved coordination circuitry | D48: Accessory | E48: 1000 | F48: 1 | G48: - | H48: +4 aid another for droid with same circuitry & must be trained
A49: CR | B49: 196 | C49: Improved Sensor Package | D49: Sensor | E49: 200 | F49: 2.5 | G49: - | H49: +2 Perception, low-light vision, ignores concealment (but not total) from darkness
A50: CR | B50: 190 | C50: Instrument | D50: Appendage | E50: 5xCF | F50: (1xCF) | G50: - | H50: Simple tasks, carry STR 1/4, push objects
A51: SGD | B51: 60 | C51: Interference generator | D51: Accessory | E51: 2500 | F51: 1 | G51: Restricted | H51: DC 30 perception or Use Computer for each sq around droid
A52: SGD | B52: 60 | C52: Internal defenses | D52: Accessory | E52: 10xCF | F52: 1xCF | G52: Licensed | H52: opening access or maintenance panels = 1d20+5 atk v. Fort Def fro dam = 1d8+1/2 HL, 10 attacks
A53: SGD | B53: 60 | C53: Internal grapple gun | D53: Accessory | E53: 100xCF | F53: 2xCF | G53: - | H53: 15m or 10 sq of cord internally or 100m externally, fire as stan, detach as free
A54: CR | B54: 189 | C54: Jump servos | D54: Appendage | E54: x2 | F54: (2xCF) | G54: - | H54: Standing jumps are treated as running jumps, reroll & keep better, can always take 10
A55: CR | B55: 195 | C55: Locked access | D55: Processors | E55: 50 | F55: - | G55: Licensed | H55: Cannot be shut down by an opponent
A56: CR | B56: 189 | C56: Magnetic Feet | D56: Appendage | E56: x2 | F56: - | G56: - | H56: Stick to ships hull
A57: SGD | B57: 52 | C57: Magnetic hands | D57: Appendage | E57: ACx2 | F57: 2xCF | G57: - | H57: +2 Climb & +5 v. being knocked off hull
A58: CR | B58: 192 | C58: Memory Wipes | D58: Memory Wipes | H58: Use C. vs WILLED, 1 lvl per minute
A59: SGD | B59: 60 | C59: Mesh tape dispenser | D59: Accessory | E59: 10xCF | F59: 5 | G59: - | H59: can hinder adjacent w/normal unarmed atk for -2 atk & Dex skills or -2 spd & no run, with Pin & successful grapple enemy pinned until tape is removed
A60: SGD | B60: 60 | C60: Micro shield | D60: Accessory | E60: 600xCF | F60: 10xCF | G60: Licensed | H60: activate as swif, +1 Ref Def, handheld version 400 credits, can run for 1 hour
A61: SGD | B61: 60 | C61: Multifunction apparatus | D61: Accessory | E61: 80xCF | F61: 15xCF | G61: - | H61: allows 3 tools or weapons on single appendage, switch between as swif
A62: SGD | B62: 60 | C62: Multispectrum searchlight | D62: Accessory | E62: 100 | F62: 2 | G62: - | H62: 6km range, +2 Perception to Search & Notice Targets, can blind in a 6sq cone (see text)
A63: SGD | B63: 53 | C63: Personality downloader | D63: Processors | E63: custom | F63: 2+ | G63: Illegal | H63: cost usually 5000+, see SGD 53
A64: CR | B64: 190 | C64: Probe | D64: Appendage | E64: 2xCF | F64: (0.5xCF) | G64: - | H64: push objects
A65: SGD | B65: 52 | C65: Projectile hand | D65: Appendage | E65: ACx2 | F65: 2xCF | G65: Licensed | H65: tension-spring 250 credits, 2d8 dam as weapon, can be used for ranged disarm 6 sq away
A66: SGD | B66: 52 | C66: Quick-release coupling, appendage | D66: Appendage | E66: 50xCF | F66: 5xCF | G66: - | H66: 2 full actions to swap with no Mechanics check
A67: SGD | B67: 52 | C67: Quick-release coupling, tool | D67: Appendage | E67: 10xCF | F67: 2xCF | G67: - | H67: 2 stan actions to swap with no Mechanics check
A68: SGD | B68: 61 | C68: Radiant heat element | D68: Accessory | E68: 200 | F68: 20xCF | G68: - | H68: adjacent take 1d4 fire dam & droid takes 1 dam if used as weapon
A69: SGD | B69: 64 | C69: Recharge station | D69: Stations | E69: 4000 | F69: 500 | G69: - | H69: public use = 20 credits, 1 hour recharge, provides basic diagnostic Use Computer DC 10
A70: SGD | B70: 53 | C70: Remote limb control | D70: Appendage | E70: ACx2 | F70: - | G70: Restricted | H70: limb can hover 6 sq & max range 24 sq & can perform any action it normally does, 1500 credit for 1 limb, 6000 credit for multiple limbs = 1 + Int mod
A71: CR | B71: 191 | C71: Remote Processor, 5000-km range | D71: Processors | E71: 1000000 | F71: 10000 | G71: Military | H71: Controls drones with remote processor up to range away
A72: CR | B72: 191 | C72: Remote Processor, 500-km range | D72: Processors | E72: 100000 | F72: 1000 | G72: Military | H72: Controls drones with remote processor up to range away
A73: CR | B73: 191 | C73: Remote Processor, 50-km range | D73: Processors | E73: 10000 | F73: 100 | G73: - | H73: Controls drones with remote processor up to range away
A74: CR | B74: 191 | C74: Remote Processor, 5-km range | D74: Processors | E74: 1000 | F74: 10 | G74: - | H74: Controls drones with remote processor up to range away
A75: CR | B75: 191 | C75: Remote Receiver | D75: Processors | E75: -500 | F75: 1 | G75: - | H75: Droid is a drone to remote processor, -2 DEX, remove with toolkit and DC20 mechanics check
A76: SGD | B76: 61 | C76: Remote receiver jammer | D76: Communications | E76: 2000 | F76: 2 | G76: Military | H76: activate as stan, Use Computer v. Will Def & if higher droid can take no actions & is flat-footed, make new check each rnd
A77: SGD | B77: 61 | C77: Remote receiver signal booster | D77: Communications | E77: 500 | F77: 2 | G77: Licensed | H77: extends range of receiver by 50%, Use Computer DC 30 by droid can extend range 100% 1 hour
A78: SGD | B78: 53 | C78: Remote starship starter | D78: Processors | E78: 50 | F78: 2 | G78: - | H78: signals ship to begin preflight processes with preflight diagnostics sent back to droid
A79: SGD | B79: 61 | C79: Remote viewer | D79: Accessory | E79: 1000 | F79: 20 | G79: - | H79: viewer can travel 12 sq, spd 4, ref Def 18, Fort Def 12, runs 30 min before recharge 1 hour
A80: SGD | B80: 61 | C80: Rental restraining bolt | D80: Accessory | E80: 10 | F80: 0.5 | G80: - | H80: runs based on credits deposited
A81: CR | B81: 192 | C81: Reprogramming, feat/talent package | D81: Reprogramming | E81: 1000 | F81: - | G81: - | H81: Use Computer, DC=WILLED, 30min, -5 penalty
A82: CR | B82: 192 | C82: Reprogramming, professional | D82: Reprogramming | E82: (WD²)x10 | F82: - | G82: - | H82: Need package
A83: CR | B83: 192 | C83: Reprogramming, self | D83: Reprogramming | E83: - | F83: - | G83: - | H83: Need package, Use Computer check at an additional -5 penalty.
A84: CR | B84: 192 | C84: Reprogramming, skill package | D84: Reprogramming | E84: 100 | F84: - | G84: - | H84: Use Computer, DC=WILLED, 30min
A85: SGD | B85: 62 | C85: Repulsorcam | D85: Accessory | E85: 1000 | F85: 20 | G85: - | H85: travel 12 sq & record 2 hours, spd 4, Ref Def 16, Fort Def 10, 4 hours power, separate recharger 100 credits
A86: CR | B86: 192 | C86: Restraining Bolt | D86: Processors | E86: 5 | F86: - | G86: - | H86: Turn off motor, DC10 Mech. to remove, self: DC20 CHA + DC15 Mech. Retry in 24h
A87: SGD | B87: 53 | C87: Rocket arm | D87: Appendage | E87: ACx4 | F87: 2xCF | G87: Illegal | H87: 2000 credits to install & DC 20, considered heavy ranged weapon 3d8 dam & 1sq splash
A88: SGD | B88: 62 | C88: Scomp link | D88: Accessory | E88: 100 | F88: 1 | G88: - | H88: +2 Use Computer to Access Information if attitude is friendly or helpful
A89: CR | B89: 196 | C89: Secondary Battery | D89: Processors | E89: 400 | F89: 4 | G89: - | H89: Double uptime
A90: CR | B90: 196 | C90: Self-destruct system | D90: Processors | E90: M.Dx20 | F90: (MaxDamx01) | G90: Restricted | H90: Area ATK +5, damage based on droid size
A91: SGD | B91: 62 | C91: Sensor booster | D91: Sensors | E91: 200 | F91: 5 | G91: - | H91: extends sensors range 2km
A92: SGD | B92: 62 | C92: Sensor countermeasure package | D92: Sensors | E92: 1000 | F92: 2 | G92: - | H92: make Use Computer checks to avoid being detected if check exceeds nonvisual sensor check
A93: SGD | B93: 62 | C93: Shield expansion module | D93: Shield Generator | E93: 50xSRxCF | F93: 2xSRxCF | G93: Military | H93: expand shield by 1 sq to for Med or smaller adjacent, only droids Small or larger, Large or larger can have 2
A94: CR | B94: 196 | C94: Shield Generator, SR10 | D94: Shield Generator | E94: 5000xCF | F94: (20xCF) | G94: Military | H94: SR drops with -5 if taking over current SR, DC20 endurance to restore 5pt, min small
A95: CR | B95: 196 | C95: Shield Generator, SR15 | D95: Shield Generator | E95: 7500xCF | F95: (30xCF) | G95: Military | H95: SR drops with -5 if taking over current SR, DC20 endurance to restore 5pt, min medium
A96: CR | B96: 196 | C96: Shield Generator, SR20 | D96: Shield Generator | E96: 10000xCF | F96: (40xCF) | G96: Military | H96: SR drops with -5 if taking over current SR, DC20 endurance to restore 5pt, min large
A97: CR | B97: 196 | C97: Shield Generator, SR5 | D97: Shield Generator | E97: 2500xCF | F97: (10xCF) | G97: Military | H97: SR drops with -5 if taking over current SR, DC20 endurance to restore 5pt
A98: SGD | B98: 62 | C98: Silence-bubble generator | D98: Accessory | E98: 3500 | F98: 20xCF | G98: Licensed | H98: stan to activate, covers all sq w/in 3 sq, -10 Perception to hear
A99: SGD | B99: 63 | C99: Space-beacon launcher | D99: Accessory | E99: 5000 | F99: 10 | G99: - | H99: 12 beacons & additional for 10% for each up to 24, locate with DC 10 Use Computer
A100: SGD | B100: 53 | C100: Specialized subprocessor | D100: Processors | E100: 1000 | F100: 2 | G100: - | H100: +1 swif each turn to perform action related to 1 skill, limit 1 per droid
A101: CR | B101: 195 | C101: Spring-loaded mechanism | D101: Internal Storage | E101: 150 | F101: 3 | G101: - | H101: S, M or L launch 1 object 4 squares, max 4kg (ranged attack vs REF 10). Catch DC10 DEX (move)
A102: CR | B102: 190 | C102: Stabilized Mount | D102: Appendage | E102: x5 | F102: x5 | G102: - | H102: Can hold large weapon as if held with two hands
A103: SGD | B103: 63 | C103: Survival kit | D103: Accessory | E103: 100 | F103: 1 | G103: - | H103: +4 when aiding Survival check
A104: CR | B104: 191 | C104: Synchronized Fire Circuits | D104: Processors | E104: 150 | F104: 1 | G104: Military | H104: When synchronized droids help each other they grant an additional +2 to the roll
A105: SGD | B105: 54 | C105: Tactician battle computer | D105: Processors | E105: 5000 | F105: 10 | G105: Restricted | H105: stan action to send data to # of allies ranged weapons for +2 atk = Int mod
A106: SGD | B106: 63 | C106: Taser | D106: Accessory | E106: 250 | F106: 2 | G106: Licensed | H106: like ion v. droid, as electroshock probe
A107: CR | B107: 190 | C107: Telescopic Appendage | D107: Appendage | E107: x2 | F107: (N.Wx2) | G107: - | H107: Twice normal reach
A108: CR | B108: 190 | C108: Tool | D108: Appendage | E108: 10xCF | F108: (2xCF) | G108: - | H108: Specific tool, can push/lift/carry/drag objects with DC15 DEX
A109: CR | B109: 188 | C109: Tracked | D109: Locomotion | E109: 20xCFxSp² | F109: - | G109: - | H109: Speed: F-S: 4 M: 6 L-C: 8
A110: CR | B110: 196 | C110: Translator Unit, DC10 | D110: Translator Unit | E110: 1000 | F110: 4 | G110: - | H110: Roll Int vs DC to see if droid understands a new language
A111: CR | B111: 196 | C111: Translator Unit, DC15 | D111: Translator Unit | E111: 500 | F111: 2 | G111: - | H111: Roll Int vs DC to see if droid understands a new language
A112: CR | B112: 196 | C112: Translator Unit, DC20 | D112: Translator Unit | E112: 200 | F112: 1 | G112: - | H112: Roll Int vs DC to see if droid understands a new language
A113: CR | B113: 196 | C113: Translator Unit, DC5 | D113: Translator Unit | E113: 2000 | F113: 8 | G113: - | H113: Roll Int vs DC to see if droid understands a new language
A114: SGD | B114: 52 | C114: Underwater drive | D114: Locomotion | E114: 20xCFxSp² | F114: 10xCF | G114: Licensed | H114: comes standard if purchased on water world, swim spd = land spd
A115: SGD | B115: 63 | C115: Video screen | D115: Accessory | E115: 1xsq mm | F115: 1+.01kg | G115: -
A116: CR | B116: 193 | C116: Vocabulator | D116: Communications | E116: 50 | F116: 0.5 | G116: - | H116: Droid can speak other languages than binary
A117: SGD | B117: 63 | C117: Voice-print command lock | D117: Accessory | E117: 400 | F117: 1 | G117: - | H117: follows command from single source, to obey recording = Use Computer v. Will Def + 5
A118: CR | B118: 188 | C118: Walking | D118: Locomotion | E118: 10xCFxSp² | F118: - | G118: - | H118: Speed: F-S: 4 M: 6 L-C: 8
A119: SGD | B119: 63 | C119: Weapon detector | D119: Accessory | E119: 1500 | F119: 5 | G119: Licensed | H119: add Int mod to Perception made to Search for weapons
A120: CR | B120: 188 | C120: Wheeled | D120: Locomotion | E120: 5xCFxSp² | F120: - | G120: - | H120: Speed: F-S: 6 M: 8 L-C: 10
A121: SGD | B121: 62 | C121: YV sensor package | D121: Sensors | E121: 1000 | F121: 3 | G121: Military | H121: +10 Perception to detect Yuuzhan Vong w/in 12 sq & LOS

Sheet Starship Maneuvers
A1: BOOK | B1: PAGE | C1: STARSHIP MANEUVER | D1: DESCRIPTOR | E1: Time | F1: Target | G1: EFFECT
A2: S | B2: 24 | C2: Ackbar Slash | E2: reac | F2: 1 | G2: Pilot check when attack from adjacent opponent misses. DC20: missed Atk redirected to adjacent opponent, if original attack roll beats new target Ref Def = damage DC25: add +1 to redirected Atk roll DC30: add +2 to redirected Atk roll DC35: add +5 to redirected Atk roll new target may not use Akbar slash redirect the attack
A3: S | B3: 25 | C3: Afterburn | E3: full | F3: you | G3: Pilot Check: DC15: all-out movement as free action, +1 Pilot to avoid dogfight DC20: all-out movement as free action, +2 Pilot to avoid dogfight DC25: all-out movement as free action, +5 Pilot to avoid dogfight DC30: all-out movement as free action, +10 Pilot to avoid dogfight
A4: S | B4: 25 | C4: Angle Deflector Shields | D4: attack pattern | E4: swif | F4: you | G4: Pilot DC15: SR doubled from particular target, SR halved from all others, change or deactivate with swif
A5: S | B5: 25 | C5: Attack Pattern Delta | D5: attack pattern | E5: swif | F5: you | G5: Pilot DC20: +1 Ref Def with adjacent allied fighter (+2 if ally is using same maneuver)
A6: S | B6: 25 | C6: Attack Pattern Zeta Nine | D6: attack pattern | E6: swif | F6: you | G6: Pilot DC20: -1 die dam for +20 SR, deactivate with swift
A7: S | B7: 25 | C7: Corellian Slip | E7: full | F7: 1 | G7: Target must be w/in 2 x your speed in squares. If movement halted, lose maneuver. Pilot Check: DC15: move up to twice speed straight, attack as free action, if destroy target no collision DC20: +1 Atk DC25: +1 Atk & 1 die DC30: +2 Atk & 1 die DC35: +2 Atk & 2 die if fails, cannot attack and you may not avoid collision (opponent can)
A8: S | B8: 26 | C8: Counter | D8: dogfight | E8: reac | F8: you | G8: As a reaction to being attacked by a vehicle you are dogfighting make a Pilot check: DC20: you may immediately take a swift action DC25: you may immediately take a move action DC30: you may immediately take a standard action
A9: S | B9: 26 | C9: Darklighter Spin | E9: stan | F9: 2x2 | G9: Pilot Check: DC25: area attack with autofire weapon with normal -5 Atk DC30: area attack with autofire weapon with -2 Atk DC35: area attack with autofire weapon with no penalty
A10: S | B10: 26 | C10: Devastating Hit | D10: gunner | E10: stan | F10: 1 | G10: Attack Roll Exceeds Ref by: 0-4: +1 die damage 5-9: +2 die damage 10+: +3 die damage
A11: S | B11: 26 | C11: Engine Hit | D11: gunner | E11: reac | F11: 1 | G11: Use when crit or over thresh. Attack Roll Exceeds Ref by: 0-4: speed -1 (may be repaired with full-round DC20 Mechanics) 5-9: speed -2 (may be repaired with full-round DC25 Mechanics) 10+: speed -3 (may be repaired with full-round DC30 Mechanics)
A12: S | B12: 26 | C12: Evasive Action | D12: dogfight | E12: move | F12: you | G12: Pilot Check DC15: disengage from dogfight +2 Pilot DC20: disengage from dogfight +5 Pilot DC25: disengage from dogfight +10 Pilot DC30: disengage from dogfight +20 Pilot
A13: S | B13: 26 | C13: Explosive Shot | D13: gunner | E13: reac | F13: spec | G13: Use when you destroy a target. Attack Roll Exceeds Ref by: 0-4: 3d10x2 dam to adjacent targets (to the destroyed vehicle) 5-9: 4d10x2 dam to adjacent targets (to the destroyed vehicle) 10+: 5d10x2 dam to adjacent targets (to the destroyed vehicle)
A14: S | B14: 27 | C14: Howlrunner Formation | D14: attack pattern | E14: swif | F14: you | G14: Pilot DC20: +1 Atk with adjacent allied fighter (+2 if ally is using same maneuver)
A15: S | B15: 27 | C15: I Have You Now | E15: swif | F15: 1 | G15: Pilot Check: DC15: against adjacent target, if your attack this turn damage over Fort Def = -1 down track DC20: as DC15 but +1 to attack roll. DC25: as DC15 but +2 to attack roll DC30: as DC15 but +5 to attack roll
A16: S | B16: 27 | C16: Intercept | E16: reac | F16: you | G16: Pilot Check: DC20: with enemy fighter moving w/in 2 sq, initiate dogfight as attack of opportunity, move 1 sq as reac DC25: As above with +1 Pilot check to initiate dogfight DC30: As above with +2 Pilot check to initiate dogfight DC35: As above with +5 Pilot check to initiate dogfight
A17: S | B17: 27 | C17: Overwhelming Assault | D17: attack pattern | E17: swif | F17: you* | G17: Pilot DC20: nominate target and you may subtract Atk for double that amount in damage (pre multipliers), change target or deactivate as swif action
A18: S | B18: 28 | C18: Segnor's Loop | E18: reac | F18: 1 | G18: If you end your turn further away from a target than you started make an attack run and Pilot Check DC20: attack run penalty to Ref Def is -10 DC25: attack run penalty to Ref Def is -5 DC30: attack run penalty to Ref Def is -2 DC35: attack run penalty to Ref Def is -1
A19: S | B19: 28 | C19: Shield Hit | D19: gunner | E19: stan | F19: 1 | G19: Make an attack if it deals damage it reduces shields depending on hold much Attack Roll Exceeds Ref by: 0-4: additional 5 points of shield damage 5-9: additional 10 points of shield damage 10+: additional 15 points of shield damage
A20: S | B20: 28 | C20: Skim the Surface | E20: full | F20: 1 | G20: When you fly through the fighting space of a target Colossal (Frigate) or larger, make a Pilot Check: DC20: ignores SR, can move twice speed, attack run at -10 Atk DC25: ignores SR, can move twice speed, attack run at -5 Atk DC30: ignores SR, can move twice speed, attack run at -2 Atk DC35: ignores SR, can move twice speed, attack run at -1 Atk Pilot check below 19 causes a collision, target may avoid
A21: S | B21: 28 | C21: Skywalker Loop | D21: dogfight | E21: reac | F21: 1 | G21: if opponent fails Pilot check to attack in dogfight, make a Pilot Check DC20 to may make an attack of opportunity
A22: S | B22: 29 | C22: Snap Roll | E22: reac | F22: 1 | G22: Pilot check replaces Ref Def until next turn, can keep Ref Def if lower
A23: S | B23: 29 | C23: Strike Formation | D23: attack pattern | E23: reac | F23: 1 | G23: Pilot Check DC20: +1 die dam, -2 Ref Def, can deactivate with swift action
A24: S | B24: 29 | C24: Tallon Roll | D24: dogfight | E24: reac | F24: 1 | G24: When opponent attempts to disengage from dogfight, declare before opposed check DC20: if target fails to disengage, make attack of opportunity DC25: if target fails to disengage, make attack of opportunity, opposed Pilot check for target -1 DC30: if target fails to disengage, make attack of opportunity, opposed Pilot check for target -2 DC35: if target fails to disengage, make attack of opportunity, opposed Pilot check for target -5
A25: S | B25: 30 | C25: Target Lock | D25: dogfight | E25: stan | F25: 1 | G25: Make a pilot check: DC15: +1 opposed Pilot checks and attack rolls DC20: +2 opposed Pilot checks and +1 to attack rolls DC25: +2 opposed Pilot checks and attack rolls DC30: +5 opposed Pilot checks and +2 to attack rolls DC35: +5 opposed Pilot checks and attack rolls Target disengages maneuver ends.
A26: S | B26: 30 | C26: Target Sense | D26: Force | E26: swif | F26: you | G26: Cha bonus replaces Int bonus for vehicle weapons this round. Make a Use the Force check: DC20: Add Charisma Bonus to all attack rolls until start of next turn. DC25: Additional +2 to rolls. DC30: Additional +5 to rolls. Stacks with Battle Strike force power.
A27: S | B27: 30 | C27: Thruster Hit | D27: gunner | E27: reac | F27: 1 | G27: Use when crit or over thresh. Attack Roll Exceeds Ref by: 0-4: target's Ref Def, Init, & Pilot all -1 5-9: target's Ref Def, Init, & Pilot all -2 10+: target's Ref Def, Init, & Pilot all -5, target can only move in a straight line Effect last the remainder of the encounter.
A28: S | B28: 30 | C28: Wotan Weave | E28: swif | F28: you | G28: when fighting defensively or with total defense, make a pilot check: DC15: reduce speed by half (round down) +1 Ref Def DC20:reduce speed by half (round down) +2 Ref Def DC25: reduce speed by half (round down) +5 Ref Def if reduce speed to 0, maneuver fails

Sheet Force Powers
A1: BOOK | B1: PAGE | C1: FORCE POWER | D1: ACT | E1: Target | F1: Sq. | G1: LOS | H1: EFFECT | I1: Dark/Light | J1: Lightsaber | K1: Mind-affect. | L1: Telekinetic
A2: J | B2: 29 | C2: Assured Strike (lightsaber form) | D2: stan | E2: 1 | H2: DC15: make a single atk rolling twice & keeping the better, -5 dam DC20: make a single atk rolling twice & keeping the better, -2 dam DC25: make a single atk rolling twice & keeping the better, -1 dam DC30: make a single atk rolling twice & keeping the better Lightsaber form (Juyo): if you miss with both this power remains in your suite spend a Force Point for three rolls, keeping the highest | J2: x
A3: L | B3: 53 | C3: Ballistakinesis (telekinetic) | D3: stan | E3: 2x2 | F3: 12 | G3: Y | H3: v. Ref Def for 3d8 dam & -2 attack, area attack spend Force Point for half dam on a miss | L3: x
A4: J | B4: 29 | C4: Barrier of Blades (lightsaber form) | D4: swif | E4: you | H4: Use the Force replaces your Ref Def against non-area ranged attacks Lightsaber form (Shien): can redirect one shot that misses you spend a Force Point for autofire attacks, half or no dam | J4: x
A5: CR | B5: 96 | C5: Battlestrike | D5: swif | E5: you | H5: DC15: +1 next Atk made before end of next turn, gain +1d6 dam DC20: +1 next Atk made before end of next turn, gain +2d6 dam DC25: +1 next Atk made before end of next turn, gain +3d6 dam spend a Force Point for an additional +2d6 damage
A6: J | B6: 24 | C6: Blind | D6: swif | E6: 1 | F6: 12 | G6: Y | H6: Use the Force v. Ref Def, if over target flat-footed & all others have concealment until start of your next turn, spend Force Point to use as a free action
A7: J | B7: 29 | C7: Circle of Shelter (lightsaber form) | D7: stan | E7: you | H7: DC20: you & all adjacent allies +1 Ref Def DC25: you & all adjacent allies +2 Ref Def DC30: you & all adjacent allies +5 Ref Def Lightsaber form (Soresu): add bonus to Deflect and Block spend a Force Point for Fort Def of adjacent allies | J7: x
A8: C | B8: 50 | C8: Cloak | D8: stan | E8: you | H8: DC15: have total concealment against all targets DC20:have total concealment against all targets, +2 Stealth DC25:have total concealment against all targets, +3 Stealth DC30:have total concealment against all targets, +5 Stealth spend a Force Point to increase Stealth +5
A9: L | B9: 53 | C9: Combustion | D9: stan | E9: 2x2 | F9: 12 | G9: Y | H9: v. Fort Def for 4d6 fire dam & catches on fire, half dam on miss, area atk, Use the Force = atk bonus of fire spend Force Point to move -1 down track
A10: J | B10: 29 | C10: Contentious Opportunity (lightsaber form) | D10: free | E10: 1 | H10: DC20: if attack of opportunity hits +1 die dam DC25: if attack of opportunity hits +2 die dam DC30: if attack of opportunity hits +3 die dam DC35: if attack of opportunity hits +4 die dam Lightsaber form (Makashi): +2 atk on attacks of opportunity spend a Force Point for -2 sq move until the end of its next turn | J10: x
A11: J | B11: 24 | C11: Convection | D11: swif | E11: you | H11: DC15: your unarmed melee attacks deal +1d6 fire dam, if damaged catches fire DC20: your unarmed melee attacks deal +2d6 fire dam, if damaged catches fire DC25: your unarmed melee attacks deal +3d6 fire dam, if damaged catches fire DC30: your unarmed melee attacks deal +4d6 fire dam, if damaged catches fire spend a Force Point for fire damage to any creature that strikes you unarmed
A12: F | B12: 85 | C12: Corruption (dark) | D12: stan | E12: 1 | F12: 12 | G12: Y | H12: DC15: Use the Force v. Fort Def, 2d6 dam & half next turn if exceed by 5 or more DC20: Use the Force v. Fort Def, 3d6 dam & half next turn if exceed by 5 or more DC25: Use the Force v. Fort Def, 4d6 dam & half next turn if exceed by 5 or more DC30: Use the Force v. Fort Def, 5d6 dam & half next turn if exceed by 5 or more spend a Force Point for all adjacent to target take half once if over their Fort Def | I12: D
A13: J | B13: 24 | C13: Crucitorn | D13: reac | E13: you | H13: DC15: +5 threshold against damage from Force attack or power DC20: +10 threshold against damage from Force attack or power DC25: +15 threshold against damage from Force attack or power DC30: +20 threshold against damage from Force attack or power spend a Force Point for +5 threshold
A14: J | B14: 25 | C14: Cryokinesis | D14: stan | E14: 1 | F14: 12 | G14: Y | H14: DC20: unattended object's DR reduced by 5, if mechanical or electronic moves -1 down track DC25: unattended object's DR reduced by 10, if mechanical or electronic moves -1 down track DC30: unattended object's DR reduced by 15, if mechanical or electronic moves -1 down track DC35: unattended object's DR reduced by 20, if mechanical or electronic moves -1 down track spend a Force Point to decrease DR by 5
A15: CR | B15: 96 | C15: Dark Rage (dark) | D15: swif | E15: you | H15: DC15: +2 melee Atk & dam until end of next turn DC20: +4 melee Atk & dam until end of next turn DC25: +6 melee Atk & dam until end of next turn spend a Force Point to extend rage until end of encounter | I15: D
A16: W | C16: Dark Transfer (dark) | D16: stan | E16: 1 | F16: touch | H16: DC15: heals hp = your character level DC20: heals hp = 2 x your character level DC25: heals hp = 3 x your character level DC30: heals hp = 4 x your character level you move -1 down track, must rest 8 hours to remove this condition & gain 1 DSP avoid moving down track by spending Force Point Destiny Point to revive dead creature w/in 1 round of death (DC25), creature unconscious & no hp healed | I16: D
A17: L | B17: 53 | C17: Dark Transfer (dark) | D17: stan | E17: 1 | F17: touch | H17: DC15: heals hp = your character level DC20: heals hp = 2 x your character level DC25: heals hp = 3 x your character level DC30: heals hp = 4 x your character level you move -1 down track, must rest 8 hours to remove this condition & gain 1 DSP avoid moving down track by spending Force Point | I17: D
A18: J | B18: 30 | C18: Deflecting Slash (lightsaber form) | D18: reac | E18: you | H18: DC15: Use the Force v. attack roll for half dam, make single melee atk v. one target in reach after dam DC20: Use the Force v. attack roll for half dam, make single melee atk v. one target in reach after dam +1 dam DC25: Use the Force v. attack roll for half dam, make single melee atk v. one target in reach after dam +3 dam DC30: Use the Force v. attack roll for half dam, make single melee atk v. one target in reach after dam +5 dam Lightsaber form (Soresu): spend a Force Point to redirect incoming atk at target w/in 6 sq spend a Force Point for no damage from incoming atk | J18: x
A19: L | B19: 53 | C19: Detonate (telekinetic) | D19: stan | E19: 1 | F19: 12 | G19: Y | H19: DC20: object takes 4d6 damage DC25: object takes 6d6 damage DC30: object takes 8d6 damage DC35: object takes 10d6 damage spend a Force Point to use increase damage by +2d6 | L19: x
A20: J | B20: 30 | C20: Disarming Slash (lightsaber form) | D20: stan | E20: 1 | H20: DC15: if damage adjacent enemy can use Use the Force as a disarm attempt DC20: if dam adjacent enemy can use Use the Force as a disarm attempt with target getting only +5 to resist DC25: if dam adjacent enemy can use Use the Force as a disarm attempt with target getting only +2 to resist DC30: if dam adjacent enemy can use Use the Force as a disarm attempt with target getting +0 to resist Lightsaber form (Shii-Cho): can use as a reac spend a Force Point to deal dam to weapon equal to target's dam if successful disarm | J20: x
A21: J | B21: 25 | C21: Drain Energy | D21: stan | E21: 1 | F21: 6 | G21: Y | H21: DC20: drain energy from Small or smaller weapon or powered object DC25: drain energy from Medium or smaller weapon or powered object DC30: drain energy from Large or smaller weapon or powered object DC35: drain energy from Huge or smaller weapon or powered object spend a Force Point to increase the size by one size category (up to Gargantuan)
A22: J | B22: 30 | C22: Draw Closer (lightsaber form) | D22: stan | E22: 1 | F22: 6 | G22: Y | H22: DC15: pull Med creature that is not grabbed/grappled into nearest unoccupied space adjacent to you & atk DC20: pull Large creature that is not grabbed/grappled into nearest unoccupied space adjacent to you & atk DC25: pull Huge creature that is not grabbed/grappled into nearest unoccupied space adjacent to you & atk DC30: pull Gar creature that is not grabbed/grappled into nearest unoccupied space adjacent to you & atk Lightsaber form (Niman): can target a creature 12 sq away spend a Force Point to pull target to any adjacent space | J22: x
A23: K | B23: 50 | C23: Energy Resistance | D23: stan | E23: you | H23: DC20: DR5 v. energy damage DC25: DR10 v. energy damage DC30: DR15 v. energy damage DC35: DR20 v. energy damage spend a Force Point to use as a swif action
A24: L | B24: 54 | C24: Enlighten (light side, mind-affecting) | D24: reac | E24: ally | F24: 12 | G24: Y | H24: target may use your check instead of one attack, skill, or opposed check, or to replace a defense spend Force Point to prolong until end of your next turn, not the start | I24: L | K24: x
A25: J | B25: 31 | C25: Falling Avalanche (lightsaber form) | D25: stan | E25: you | H25: DC15: against target in reach if not more than 1 size larger, if deal dam can push 1 sq & then move into their space which does not provoke atk of opp for either, not if grappled or grabbed DC20: can push 2 sq & move through spaces target passed DC25: can push 3 sq & move through spaces target passed DC30: can push 4 sq & move through spaces target passed Lightsaber form (Djem So): gain one temporary Force Point to be used only for Djem So before end of enc spend a Force Point to knock opponent prone at the end of forced move | J25: x
A26: CR | B26: 96 | C26: Farseeing | D26: full | E26: 1 | H26: Use the Force v. target's Will Def, cannot reuse for 24 hours, can get a sense of target spend a Force Point for a clear image w/in 6 squares of target's surroundings
A27: K | B27: 50 | C27: Fear (dark) | D27: swif | E27: 1 | F27: 12 | G27: Y | H27: DC15: Use the Force v. Will Def, if equals target can take only 1 stan on next turn DC20: Use the Force v. Will Def, if equals target can take only 1 move on next turn DC25: Use the Force v. Will Def, if equals target can take only 1 swif on next turn DC30: Use the Force v. Will Def, if equals target can take no actions on next turn when successful, can spend FP to make all their Def -2 until your next turn | I27: D
A28: J | B28: 31 | C28: Fluid Riposte (lightsaber form) | D28: reac | E28: you | H28: Use the Force v. attack for half dam & move adjacent to attacker & make single atk, no Atk of Opp Lightsaber form (Djem So): gain one temporary Force Point to be used only for Djem So before end of enc spend a Force Point to treat attacker as flat-footed | J28: x
A29: J | B29: 25 | C29: Fold Space | D29: full | E29: 1 | F29: 6 | G29: Y | H29: DC20: move Medium up to 6 squares DC25: move Large up to 12 squares DC30: move Huge up to 18 squares DC35: move Gargantuan up to 24 squares DC40: move Colossal up to 30 squares spend a Force Point to increase size by up to two size categories (to Colossal [cruiser]) or distance x2
A30: F | B30: 86 | C30: Force Blast | D30: stan | E30: 1 | F30: 12 | G30: Y | H30: DC15: Use the Force v. Ref Def 2d6 dam DC20: Use the Force v. Ref Def 3d6 dam DC25: Use the Force v. Ref Def 4d6 dam DC30: Use the Force v. Ref Def 5d6 dam spend a Force Point to add half Heroic Level as dam bonus
A31: CR | B31: 97 | C31: Force Disarm | D31: stan | E31: 1 | F31: 6 | G31: Y | H31: replaces Atk to disarm, drop item or fly to your hand spend Force Point to destroy object, dam = check | L31: x
A32: CR | B32: 97 | C32: Force Grip | D32: stan | E32: 1 | F32: 6 | G32: Y | H32: DC15: 2d6 dam, if check over target's Fort Def, target can only take 1 swif next turn or 1/2 dam & may act DC20: 4d6 dam, if check over target's Fort Def, target can only take 1 swif next turn or 1/2 dam & may act DC25: 6d6 dam, if check over target's Fort Def, target can only take 1 swif next turn or 1/2 dam & may act spend a Force Point to deal +2d6 damage | L32: x
A33: J | B33: 25 | C33: Force Light (light) | D33: stan | H33: DC20: until start of your next turn creature with Dark Side of 1+ takes 1d6 dam & -1 atk DC25: until start of your next turn creature with Dark Side of 1+ takes 2d6 dam & -1 atk DC30: until start of your next turn creature with Dark Side of 1+ takes 3d6 dam & -1 atk DC35: until start of your next turn creature with Dark Side of 1+ takes 4d6 dam & -1 atk spend a Force Point to deal +1d6 dam | I33: L
A34: CR | B34: 97 | C34: Force Lightning (dark) | D34: stan | E34: 1 | F34: 6 | G34: Y | H34: Use the Force v. Ref Def, target takes 8d6 dam & 1 down track or half damage with save spend a Force Point to move target an additional step down track | I34: D
A35: K | B35: 50 | C35: Force Scream (dark) | D35: stan | E35: all | F35: 12 | H35: DC15: Use the Force v. Fort Def, 1d6 force dam & their thresh -5 until end of your next turn DC20: Use the Force v. Fort Def, 2d6 force dam & their thresh -5 until end of your next turn DC25: Use the Force v. Fort Def, 3d6 force dam & their thresh -5 until end of your next turn DC30: Use the Force v. Fort Def, 4d6 force dam & their thresh -5 until end of your next turn spend a Force Point to reduce thresh -10 | I35: D
A36: L | B36: 54 | C36: Force Shield (telekinetic) | D36: reac | E36: you | H36: DC15: SR5 until your next turn, cannot be recharged DC20: SR10 until your next turn, cannot be recharged DC25: SR15 until your next turn, cannot be recharged DC30: SR20 until your next turn, cannot be recharged spend a Force Point for +5 SR, maintain as standard action | L36: x
A37: F | B37: 86 | C37: Force Shield (telekinetic) | D37: reac | E37: you | H37: DC15: SR5 until your next turn, cannot be recharged DC20: SR10 until your next turn, cannot be recharged DC25: SR15 until your next turn, cannot be recharged DC30: SR20 until your next turn, cannot be recharged spend a Force Point for +5 SR, maintain as standard action | L37: x
A38: CR | B38: 97 | C38: Force Slam | D38: stan | E38: all | F38: 6 | G38: Y | H38: Use the Force v. Will Def, 4d6 dam & prone or half damage with save spend a Force Point to deal +2d6 damage | L38: x
A39: F | B39: 86 | C39: Force Storm (dark, telekinetic) | D39: stan | E39: you | H39: DC20: for 2 rounds, 2d6 dam adjacent targets DC25: for 4 rounds, 2d6 dam adjacent targets DC30: for 6 rounds, 2d6 dam adjacent targets DC35: for 8 rounds, 2d6 dam adjacent targets spend a Force Point for +2d6 dam | I39: D | L39: x
A40: J | B40: 26 | C40: Force Storm (dark) | D40: stan | E40: 1 | F40: 12 | G40: Y | H40: DC20: 3x3 sq area, 2d6 acid dam & concealment, -5 Perception to listen until end of your next turn DC25: 4x4 sq area, 2d6 acid dam & concealment, -5 Perception to listen until end of your next turn DC30: 5x5 sq area, 2d6 acid dam & concealment, -5 Perception to listen until end of your next turn DC35: 6x6 sq area, 2d6 acid dam & concealment, -5 Perception to listen until end of your next turn spend a Force Point for +2d6 dam | I40: D
A41: CR | B41: 98 | C41: Force Stun | D41: stan | E41: 1 | F41: 6 | G41: Y | H41: Use the Force v. Fort Def, target moves 1 down track, for every 5 points over add an additional step spend a Force Point to move target an additional step down track
A42: CR | B42: 98 | C42: Force Thrust | D42: stan | E42: 1 | F42: 12 | G42: Y | H42: Use the Force v. Str check + size mod, push back 1 square + 1 per 5 over check spend a Force Point to apply -5 to opponent's check, pushed into larger object = 2d6 dam | L42: x
A43: J | B43: 26 | C43: Force Track | D43: swif | E43: you | H43: DC15: Track without Survival if within LOS of trail & target passed through within last minute DC20: Track without Survival if within LOS of trail & target passed through within last 10 minutes DC25: Track without Survival if within LOS of trail & target passed through within last hour DC30: Track without Survival if within LOS of trail & target passed through within last day spend a Force Point to track two targets
A44: K | B44: 51 | C44: Force Whirlwind (telekinetic) | D44: stan | E44: 1 | F44: 12 | G44: Y | H44: DC15: Use the Force v. Fort Def, skills & Atk -5, prone at end, 1d6 damage DC20: Use the Force v. Fort Def, skills & Atk -5, prone at end, 2d6 damage DC25: Use the Force v. Fort Def, skills & Atk -5, prone at end, 3d6 damage DC30: Use the Force v. Fort Def, skills & Atk -5, prone at end, 4d6 damage spend a Force Point to make skills & Atk -10 | L44: x
A45: J | B45: 26 | C45: Hatred (dark) | D45: stan | H45: DC15: any creature that starts turn w/in 6 sq takes 1d6 dam & -1 atk DC20: any creature that starts turn w/in 6 sq takes 2d6 dam & -1 atk DC25: any creature that starts turn w/in 6 sq takes 3d6 dam & -1 atk DC30: any creature that starts turn w/in 6 sq takes 4d6 dam & -1 atk spend a Force Point for +1d6 dam | I45: D
A46: J | B46: 31 | C46: Hawk-Bat Swoop (lightsaber form) | E46: you | H46: DC15: you move 2 sq without provoking attacks of opportunity & make single melee atk DC20: you move 4 sq without provoking attacks of opportunity & make single melee atk DC25: you move 6 sq without provoking attacks of opportunity & make single melee atk DC30: you move 8 sq without provoking attacks of opportunity & make single melee atk Lightsaber form (Ataru): can move 2 sq after your attack also spend a Force Point for +2 dice dam | J46: x
A47: J | B47: 32 | C47: High Ground Defense (lightsaber form) | D47: swif | E47: you | H47: DC15: if you are on a low object or difficult terrain any creature that moves adjacent provokes Atk of Opp DC20: on a low object or difficult terrain any creature that moves adjacent provokes Atk of Opp +1 atk DC25: on a low object or difficult terrain any creature that moves adjacent provokes Atk of Opp +2 atk DC30: on a low object or difficult terrain any creature that moves adjacent provokes Atk of Opp +5 atk Lightsaber form (Sokan): deal +1 die dam on atk of opp spend a Force Point to move 1 sq each time you make an atk of opp, which does not provoke one | J47: x
A48: J | B48: 27 | C48: Inertia | D48: move | E48: you | H48: DC15: move half speed along a wall, fall to ground if do not end move on the ground DC20: move normal speed along a wall, fall to ground if do not end move on the ground DC25: move your speed +2 sq along a wall, fall to ground if do not end move on the ground DC30: move your speed +4 sq along a wall, fall to ground if do not end move on the ground spend a Force Point for +2 sq
A49: J | B49: 27 | C49: Inspire (light) | D49: swif | E49: allies | F49: 6 | G49: Y | H49: DC20: all allies +2 Will Def against mind-affecting & fear effects until the end of your next turn DC25: all allies +5 Will Def against mind-affecting & fear effects until the end of your next turn DC30: all allies +10 Will Def against mind-affecting & fear effects until the end of your next turn DC35: all allies immune against mind-affecting & fear effects until the end of your next turn spend a Force Point for +2d6 hp when power is first activated | I49: L
A50: J | B50: 27 | C50: Intercept (telekinetic) | D50: reac | E50: 1 | H50: Use the Force v. ranged atk or Use the Force if move object spend a Force Point to intercept autofire, take half or no damage | L50: x
A51: K | B51: 51 | C51: Ionize | D51: stan | E51: 1 | F51: 6 | G51: Y | H51: DC20: Use the Force v. Ref Def, 4d6 ion damage DC25: Use the Force v. Ref Def, 5d6 ion damage DC30: Use the Force v. Ref Def, 6d6 ion damage spend a Force Point +2d6 damage
A52: F | B52: 86 | C52: Kinetic Combat | D52: stan | E52: you | F52: 12 | H52: DC20 to attack with one-handed melee weapon, Atk use Cha mod not Str, threatens adjacent spend a Force Point for +1 Atk | L52: x
A53: K | B53: 51 | C53: Kinetic Combat (telekinetic) | D53: stan | E53: you | F53: 12 | H53: DC20 to attack with one-handed melee weapon, Atk use Cha mod not Str, threatens adjacent spend a Force Point for +1 Atk | L53: x
A54: C | B54: 50 | C54: Levitate (telekinetic) | D54: move | E54: you | H54: DC15: fly 2, vertical only, can move 1 sq onto horizontal surface or fall DC20: fly 4, vertical only, can move 1 sq onto horizontal surface or fall DC25: fly 6, vertical only, can move 1 sq onto horizontal surface or fall spend Force Point as reac when falling to reduce falling by fly speed | L54: x
A55: L | B55: 54 | C55: Lightning Burst (dark side) | D55: stan | E55: all | F55: adjacent | H55: v. Ref Def for 3d8 dam & -1 down track, half damage on miss spend a Force Point +2d6 damage | I55: D
A56: J | B56: 32 | C56: Makashi Riposte (lightsaber form) | D56: reac | E56: you | H56: Use the Force v. atk roll for half dam & make single atk against target after dam & deal half dam on miss Lightsaber form (Makashi): until end of your next turn target provokes atk of opp if it attacks & in reach spend a Force Point for no dam from incoming atk | J56: x
A57: C | B57: 51 | C57: Malacia (light) | D57: stan | E57: 1 | F57: 6 | G57: Y | H57: Use the Force v. Fort Def target moves -1 down track & -5 threshold spend Force Point to increase threshold penalty to -10 | I57: L
A58: J | B58: 27 | C58: Memory Walk (dark, mind-affecting) | D58: stan | E58: 1 | F58: 6 | G58: Y | H58: DC20: 1 creature with Int 3+, Use the Force v. Will Def for 2d6 dam & loses swif on next turn DC25: 1 creature with Int 3+, Use the Force v. Will Def for 2d6 dam & loses move on next turn DC30: 1 creature with Int 3+, Use the Force v. Will Def for 2d6 dam & loses stan on next turn DC35: 1 creature with Int 3+, Use the Force v. Will Def for 2d6 dam & loses stan & swif on next turn spend a Force Point for +2d6 dam | I58: D | K58: x
A59: J | B59: 28 | C59: Mind Shard (mind-affecting) | D59: stan | E59: 1 | F59: 12 | G59: Y | H59: DC15: Use the Force v. Will Def for 2d8 dam & -1 down track & can't improve until end of your next turn DC20: Use the Force v. Will Def for 3d8 dam & -1 down track & can't improve until end of your next turn DC25: Use the Force v. Will Def for 4d8 dam & -1 down track & can't improve until end of your next turn DC30: Use the Force v. Will Def for 5d8 dam & -1 down track & can't improve until end of your next turn spend a Force Point for +2d8 dam | K59: x
A60: CR | B60: 98 | C60: Mind Trick (mind-affecting) | D60: stan | E60: 1 | F60: 12 | G60: Y | H60: Use the Force v. Will Def to either 1. create an hallucination to use Stealth even if aware 2. perform a feint so that target loses Ref to Def next attack 3. make an unpalatable suggestion 4. fill target with terror to flee at top speed 1 minute, stops fleeing if wounded, not if higher level spend a Force Point to improve attitude one step + one step per 5 over check | K60: x
A61: C | B61: 51 | C61: Morichro | D61: stan | E61: 1 | H61: grab or grapple, Use the Force v. Fort Def target moves -1 down track, if at bottom kill or trance
